Organisation Name,Organisation Code,Date Paid,Transaction Number,Amount,Supplier Name,Supplier ID,Supplier post code (first 4 digits),Directorate,Service Area,General Ledger code Description,BVACOP class,Revenue/ Capital Spend
Wiltshire, http://opendatacommunities.org/id/unitary-authority/wiltshire,09/09/2020,1902672713,3495,1st Choice Stairlifts ,113095,SN11,Wiltshire Council,Wiltshire Council,Other Contracts,Third Party Payments,CAPITAL
Wiltshire, http://opendatacommunities.org/id/unitary-authority/wiltshire,15/09/2020,1902674621,2463.44,2 Care UK Ltd ,110002,BH7 ,Community Services,MH AOWA South Locali,Supported Living,Third Party Payments,REVENUE
Wiltshire, http://opendatacommunities.org/id/unitary-authority/wiltshire,15/09/2020,1902674622,2463.44,2 Care UK Ltd ,110002,BH7 ,Community Services,MH AOWA South Locali,Supported Living,Third Party Payments,REVENUE
Wiltshire, http://opendatacommunities.org/id/unitary-authority/wiltshire,15/09/2020,1902674623,2463.44,2 Care UK Ltd ,110002,BH7 ,Community Services,MH AOWA South Locali,Supported Living,Third Party Payments,REVENUE
Wiltshire, http://opendatacommunities.org/id/unitary-authority/wiltshire,15/09/2020,1902674624,2463.44,2 Care UK Ltd ,110002,BH7 ,Community Services,MH AOWA South Locali,Supported Living,Third Party Payments,REVENUE
Wiltshire, http://opendatacommunities.org/id/unitary-authority/wiltshire,15/09/2020,1902674625,2463.44,2 Care UK Ltd ,110002,BH7 ,Community Services,MH AOWA South Locali,Supported Living,Third Party Payments,REVENUE
Wiltshire, http://opendatacommunities.org/id/unitary-authority/wiltshire,15/09/2020,1902674975,657,247 Home Care ,148234,SN5 ,Community Services,CTPLD Placements,Supported Living,Third Party Payments,REVENUE
Wiltshire, http://opendatacommunities.org/id/unitary-authority/wiltshire,30/09/2020,1902681547,1357.12,247 Home Care ,148234,SN5 ,Community Services,North Care Packages,Adult Domiciliary Care,Third Party Payments,REVENUE
Wiltshire, http://opendatacommunities.org/id/unitary-authority/wiltshire,30/09/2020,1902681548,1532.52,247 Home Care ,148234,SN5 ,Community Services,North Care Packages,Adult Domiciliary Care,Third Party Payments,REVENUE
Wiltshire, http://opendatacommunities.org/id/unitary-authority/wiltshire,30/09/2020,1902681549,1711.5,247 Home Care ,148234,SN5 ,Community Services,North Care Packages,Adult Domiciliary Care,Third Party Payments,REVENUE
Wiltshire, http://opendatacommunities.org/id/unitary-authority/wiltshire,30/09/2020,1902681550,2511.17,247 Home Care ,148234,SN5 ,Community Services,North Care Packages,Adult Domiciliary Care,Third Party Payments,REVENUE
Wiltshire, http://opendatacommunities.org/id/unitary-authority/wiltshire,30/09/2020,1902681551,4258.88,247 Home Care ,148234,SN5 ,Community Services,North Care Packages,Adult Domiciliary Care,Third Party Payments,REVENUE
Wiltshire, http://opendatacommunities.org/id/unitary-authority/wiltshire,30/09/2020,1902681552,1700.16,247 Home Care ,148234,SN5 ,Resources,Covid19 - Hospital D,Adult Domiciliary Care,Third Party Payments,REVENUE
Wiltshire, http://opendatacommunities.org/id/unitary-authority/wiltshire,30/09/2020,1902681553,2379.84,247 Home Care ,148234,SN5 ,Resources,Covid19 - Hospital D,Adult Domiciliary Care,Third Party Payments,REVENUE
Wiltshire, http://opendatacommunities.org/id/unitary-authority/wiltshire,30/09/2020,1902690928,1524.08,247 Home Care ,148234,SN5 ,Community Services,North Care Packages,Adult Domiciliary Care,Third Party Payments,REVENUE
Wiltshire, http://opendatacommunities.org/id/unitary-authority/wiltshire,30/09/2020,1902690929,2492,247 Home Care ,148234,SN5 ,Community Services,North Care Packages,Adult Domiciliary Care,Third Party Payments,REVENUE
Wiltshire, http://opendatacommunities.org/id/unitary-authority/wiltshire,16/09/2020,1902679160,264,4K Travel ,146614,SN2 ,Neighbourhood & Planning,Public Transport,Transport Contracts,Third Party Payments,REVENUE
Wiltshire, http://opendatacommunities.org/id/unitary-authority/wiltshire,16/09/2020,1902679168,3166.67,4K Travel ,146614,SN2 ,Neighbourhood & Planning,Mainstream Secondary,Transport Contracts,Third Party Payments,REVENUE
Wiltshire, http://opendatacommunities.org/id/unitary-authority/wiltshire,16/09/2020,1902679169,3233.5,4K Travel ,146614,SN2 ,Neighbourhood & Planning,Mainstream Secondary,Transport Contracts,Third Party Payments,REVENUE
Wiltshire, http://opendatacommunities.org/id/unitary-authority/wiltshire,16/09/2020,1902679170,3233.5,4K Travel ,146614,SN2 ,Neighbourhood & Planning,Mainstream Primary,Transport Contracts,Third Party Payments,REVENUE
Wiltshire, http://opendatacommunities.org/id/unitary-authority/wiltshire,16/09/2020,1902679171,445.42,4K Travel ,146614,SN2 ,Neighbourhood & Planning,Public Transport,Transport Contracts,Third Party Payments,REVENUE
Wiltshire, http://opendatacommunities.org/id/unitary-authority/wiltshire,16/09/2020,1902679171,2333.33,4K Travel ,146614,SN2 ,Neighbourhood & Planning,Mainstream Primary,Transport Contracts,Third Party Payments,REVENUE
Wiltshire, http://opendatacommunities.org/id/unitary-authority/wiltshire,16/09/2020,1902679172,2516.58,4K Travel ,146614,SN2 ,Neighbourhood & Planning,Mainstream Secondary,Transport Contracts,Third Party Payments,REVENUE
Wiltshire, http://opendatacommunities.org/id/unitary-authority/wiltshire,16/09/2020,1902679173,4336.67,4K Travel ,146614,SN2 ,Neighbourhood & Planning,Mainstream Secondary,Transport Contracts,Third Party Payments,REVENUE
Wiltshire, http://opendatacommunities.org/id/unitary-authority/wiltshire,16/09/2020,1902679174,612.73,4K Travel ,146614,SN2 ,Community Services,North Care Packages,Transport Contracts,Third Party Payments,REVENUE
Wiltshire, http://opendatacommunities.org/id/unitary-authority/wiltshire,16/09/2020,1902679174,2450.92,4K Travel ,146614,SN2 ,Community Services,CTPLD Placements,Transport Contracts,Third Party Payments,REVENUE
Wiltshire, http://opendatacommunities.org/id/unitary-authority/wiltshire,17/09/2020,1902680201,3429.17,4K Travel ,146614,SN2 ,Neighbourhood & Planning,Mainstream Secondary,Transport Contracts,Third Party Payments,REVENUE
Wiltshire, http://opendatacommunities.org/id/unitary-authority/wiltshire,08/09/2020,1902672580,997.5,A G Minibuses Ltd ,100878,BA12,Neighbourhood & Planning,Mainstream Primary,Transport Contracts,Third Party Payments,REVENUE
Wiltshire, http://opendatacommunities.org/id/unitary-authority/wiltshire,08/09/2020,1902672580,3065.5,A G Minibuses Ltd ,100878,BA12,Neighbourhood & Planning,Public Transport,Transport Contracts,Third Party Payments,REVENUE
Wiltshire, http://opendatacommunities.org/id/unitary-authority/wiltshire,08/09/2020,1902672581,1583.33,A G Minibuses Ltd ,100878,BA12,Neighbourhood & Planning,Mainstream Secondary,Transport Contracts,Third Party Payments,REVENUE
Wiltshire, http://opendatacommunities.org/id/unitary-authority/wiltshire,08/09/2020,1902672581,4029.13,A G Minibuses Ltd ,100878,BA12,Neighbourhood & Planning,Public Transport,Transport Contracts,Third Party Payments,REVENUE
Wiltshire, http://opendatacommunities.org/id/unitary-authority/wiltshire,10/09/2020,1902673591,2255.56,A G Minibuses Ltd ,100878,BA12,Neighbourhood & Planning,Mainstream Primary,Transport Contracts,Third Party Payments,REVENUE
Wiltshire, http://opendatacommunities.org/id/unitary-authority/wiltshire,10/09/2020,1902673594,1650,A G Minibuses Ltd ,100878,BA12,Community Services,CTPLD Placements,Transport Contracts,Third Party Payments,REVENUE
Wiltshire, http://opendatacommunities.org/id/unitary-authority/wiltshire,11/09/2020,1902674020,272,A2B Taxis (Dorset) ,143353,SP8 ,Community Services,CTPLD Placements,Transport Contracts,Third Party Payments,REVENUE
Wiltshire, http://opendatacommunities.org/id/unitary-authority/wiltshire,11/09/2020,1902674021,720,A2B Taxis (Dorset) ,143353,SP8 ,Community Services,West Care Packages,Transport Contracts,Third Party Payments,REVENUE
Wiltshire, http://opendatacommunities.org/id/unitary-authority/wiltshire,16/09/2020,1902678475,5638.69,AB Learning and Education ,125864,SN8 ,Children & Education,Free Enttlmnt 3 & 4y,Childcare Free Entitlement Early Years,Supplies and Services,REVENUE
Wiltshire, http://opendatacommunities.org/id/unitary-authority/wiltshire,09/09/2020,5107417609,5500,Abavus Ltd ,134621,E18 ,Resources,Applications SuppLOB,ICT - Support arrangements,Supplies and Services,REVENUE
Wiltshire, http://opendatacommunities.org/id/unitary-authority/wiltshire,17/09/2020,1902680200,720,Abbey Taxis (Swindon) Ltd ,100920,SN2 ,Children & Education,CDT DP & Care Packag,Transport Contracts,Third Party Payments,REVENUE
Wiltshire, http://opendatacommunities.org/id/unitary-authority/wiltshire,17/09/2020,1902680211,2056,Abbey Taxis (Swindon) Ltd ,100920,SN2 ,Community Services,CTPLD Placements,Transport Contracts,Third Party Payments,REVENUE
Wiltshire, http://opendatacommunities.org/id/unitary-authority/wiltshire,17/09/2020,1902680212,2200,Abbey Taxis (Swindon) Ltd ,100920,SN2 ,Community Services,CTPLD Placements,Transport Contracts,Third Party Payments,REVENUE
Wiltshire, http://opendatacommunities.org/id/unitary-authority/wiltshire,18/09/2020,1902674735,1260,Abbeyfield ,129686,SP1 ,Community Services,Adult Care Gross Loa,Adult Domiciliary Care,Third Party Payments,REVENUE
Wiltshire, http://opendatacommunities.org/id/unitary-authority/wiltshire,02/09/2020,5107416808,307,Abbott Toxicology Ltd ,131373,OX14,Children & Education,Supp & Safe South,Pathology Fees,Supplies and Services,REVENUE
Wiltshire, http://opendatacommunities.org/id/unitary-authority/wiltshire,11/09/2020,5107416873,497,Abbott Toxicology Ltd ,131373,OX14,Children & Education,Supp & Safe South,Pathology Fees,Supplies and Services,REVENUE
Wiltshire, http://opendatacommunities.org/id/unitary-authority/wiltshire,23/09/2020,5107417296,257,Abbott Toxicology Ltd ,131373,OX14,Children & Education,Supp & Safe South,Pathology Fees,Supplies and Services,REVENUE
Wiltshire, http://opendatacommunities.org/id/unitary-authority/wiltshire,18/09/2020,5107418054,629,Abbott Toxicology Ltd ,131373,OX14,Children & Education,HQ Social Care,Other Social & Welfare Costs,Third Party Payments,REVENUE
Wiltshire, http://opendatacommunities.org/id/unitary-authority/wiltshire,23/09/2020,5107418055,1039,Abbott Toxicology Ltd ,131373,OX14,Children & Education,Supp & Safe West 2,Other Social & Welfare Costs,Third Party Payments,REVENUE
Wiltshire, http://opendatacommunities.org/id/unitary-authority/wiltshire,23/09/2020,5107418056,897,Abbott Toxicology Ltd ,131373,OX14,Children & Education,Supp & Safe West 2,Other Social & Welfare Costs,Third Party Payments,REVENUE
Wiltshire, http://opendatacommunities.org/id/unitary-authority/wiltshire,24/09/2020,5107418083,613,Abbott Toxicology Ltd ,131373,OX14,Children & Education,Supp & Safe North,Pathology Fees,Supplies and Services,REVENUE
Wiltshire, http://opendatacommunities.org/id/unitary-authority/wiltshire,25/09/2020,5107418849,948,Abbott Toxicology Ltd ,131373,OX14,Children & Education,Supp & Safe West 2,Other Social & Welfare Costs,Third Party Payments,REVENUE
Wiltshire, http://opendatacommunities.org/id/unitary-authority/wiltshire,16/09/2020,1902678601,9280,ABC Day Nursery 1027 ,110028,SN12,Children & Education,Free Enttlmnt 3 & 4y,Childcare Free Entitlement Early Years,Supplies and Services,REVENUE
Wiltshire, http://opendatacommunities.org/id/unitary-authority/wiltshire,16/09/2020,1902678602,850.5,ABC Day Nursery 1027 ,110028,SN12,Children & Education,Free Entitlement 2 Y,Childcare Free Entitlement Early Years,Supplies and Services,REVENUE
Wiltshire, http://opendatacommunities.org/id/unitary-authority/wiltshire,16/09/2020,1902678641,6803.68,ABC Nursery ,143051,SN13,Children & Education,Free Enttlmnt 3 & 4y,Childcare Free Entitlement Early Years,Supplies and Services,REVENUE
Wiltshire, http://opendatacommunities.org/id/unitary-authority/wiltshire,16/09/2020,1902678642,2702.7,ABC Nursery ,143051,SN13,Children & Education,Free Entitlement 2 Y,Childcare Free Entitlement Early Years,Supplies and Services,REVENUE
Wiltshire, http://opendatacommunities.org/id/unitary-authority/wiltshire,09/09/2020,1902672719,4803.27,Abicare Services (CareMatch) ,148189,SP2 ,Community Services,South Care Packages,Other Social & Welfare Costs,Third Party Payments,REVENUE
Wiltshire, http://opendatacommunities.org/id/unitary-authority/wiltshire,17/09/2020,1902679695,1135.76,Abicare Services (CareMatch) ,148189,SP2 ,Community Services,South Care Packages,Adult Domiciliary Care Contribution,Income,REVENUE
Wiltshire, http://opendatacommunities.org/id/unitary-authority/wiltshire,22/09/2020,1902671897,869,Abicare Services Ltd Homecare ,110031,SP2 ,Resources,Covid19 - Hospital D,Adult Domiciliary Care,Third Party Payments,REVENUE
Wiltshire, http://opendatacommunities.org/id/unitary-authority/wiltshire,22/09/2020,1902680817,284.32,Abicare Services Ltd Homecare ,110031,SP2 ,Community Services,West Care Packages,Adult Domiciliary Care Contribution,Income,REVENUE
Wiltshire, http://opendatacommunities.org/id/unitary-authority/wiltshire,22/09/2020,1902680818,284.32,Abicare Services Ltd Homecare ,110031,SP2 ,Community Services,West Care Packages,Adult Domiciliary Care Contribution,Income,REVENUE
Wiltshire, http://opendatacommunities.org/id/unitary-authority/wiltshire,22/09/2020,1902680819,1101.52,Abicare Services Ltd Homecare ,110031,SP2 ,Community Services,MH AOWA West Localit,Adult Domiciliary Care,Third Party Payments,REVENUE
Wiltshire, http://opendatacommunities.org/id/unitary-authority/wiltshire,22/09/2020,1902680820,1101.52,Abicare Services Ltd Homecare ,110031,SP2 ,Community Services,MH AOWA West Localit,Adult Domiciliary Care,Third Party Payments,REVENUE
Wiltshire, http://opendatacommunities.org/id/unitary-authority/wiltshire,22/09/2020,1902680821,1101.52,Abicare Services Ltd Homecare ,110031,SP2 ,Community Services,West Care Packages,Adult Domiciliary Care,Third Party Payments,REVENUE
Wiltshire, http://opendatacommunities.org/id/unitary-authority/wiltshire,22/09/2020,1902680822,1106,Abicare Services Ltd Homecare ,110031,SP2 ,Community Services,West Care Packages,Adult Domiciliary Care,Third Party Payments,REVENUE
Wiltshire, http://opendatacommunities.org/id/unitary-authority/wiltshire,22/09/2020,1902680823,1106,Abicare Services Ltd Homecare ,110031,SP2 ,Community Services,West Care Packages,Adult Domiciliary Care,Third Party Payments,REVENUE
Wiltshire, http://opendatacommunities.org/id/unitary-authority/wiltshire,22/09/2020,1902680824,1106,Abicare Services Ltd Homecare ,110031,SP2 ,Community Services,West Care Packages,Adult Domiciliary Care,Third Party Payments,REVENUE
Wiltshire, http://opendatacommunities.org/id/unitary-authority/wiltshire,22/09/2020,1902680825,1180.2,Abicare Services Ltd Homecare ,110031,SP2 ,Community Services,West Care Packages,Adult Domiciliary Care,Third Party Payments,REVENUE
Wiltshire, http://opendatacommunities.org/id/unitary-authority/wiltshire,22/09/2020,1902680826,1214.92,Abicare Services Ltd Homecare ,110031,SP2 ,Community Services,South Care Packages,Adult Domiciliary Care,Third Party Payments,REVENUE
Wiltshire, http://opendatacommunities.org/id/unitary-authority/wiltshire,22/09/2020,1902680827,1547.84,Abicare Services Ltd Homecare ,110031,SP2 ,Community Services,West Care Packages,Adult Domiciliary Care,Third Party Payments,REVENUE
Wiltshire, http://opendatacommunities.org/id/unitary-authority/wiltshire,22/09/2020,1902680829,1656.76,Abicare Services Ltd Homecare ,110031,SP2 ,Community Services,West Care Packages,Adult Domiciliary Care,Third Party Payments,REVENUE
Wiltshire, http://opendatacommunities.org/id/unitary-authority/wiltshire,22/09/2020,1902680830,1691.62,Abicare Services Ltd Homecare ,110031,SP2 ,Community Services,West Care Packages,Adult Domiciliary Care,Third Party Payments,REVENUE
Wiltshire, http://opendatacommunities.org/id/unitary-authority/wiltshire,22/09/2020,1902680831,1718.24,Abicare Services Ltd Homecare ,110031,SP2 ,Community Services,CTPLD Placements,Adult Domiciliary Care,Third Party Payments,REVENUE
Wiltshire, http://opendatacommunities.org/id/unitary-authority/wiltshire,22/09/2020,1902680832,2395.96,Abicare Services Ltd Homecare ,110031,SP2 ,Community Services,West Care Packages,Adult Domiciliary Care,Third Party Payments,REVENUE
Wiltshire, http://opendatacommunities.org/id/unitary-authority/wiltshire,22/09/2020,1902680833,3172.19,Abicare Services Ltd Homecare ,110031,SP2 ,Community Services,West Care Packages,Adult Domiciliary Care,Third Party Payments,REVENUE
Wiltshire, http://opendatacommunities.org/id/unitary-authority/wiltshire,22/09/2020,1902680834,441.84,Abicare Services Ltd Homecare ,110031,SP2 ,Community Services,West Care Packages,Adult Domiciliary Care,Third Party Payments,REVENUE
Wiltshire, http://opendatacommunities.org/id/unitary-authority/wiltshire,22/09/2020,1902680835,629.44,Abicare Services Ltd Homecare ,110031,SP2 ,Community Services,West Care Packages,Adult Domiciliary Care,Third Party Payments,REVENUE
Wiltshire, http://opendatacommunities.org/id/unitary-authority/wiltshire,22/09/2020,1902680836,664.16,Abicare Services Ltd Homecare ,110031,SP2 ,Community Services,West Care Packages,Adult Domiciliary Care,Third Party Payments,REVENUE
Wiltshire, http://opendatacommunities.org/id/unitary-authority/wiltshire,22/09/2020,1902680837,668.78,Abicare Services Ltd Homecare ,110031,SP2 ,Community Services,West Care Packages,Adult Domiciliary Care,Third Party Payments,REVENUE
Wiltshire, http://opendatacommunities.org/id/unitary-authority/wiltshire,22/09/2020,1902680838,773.92,Abicare Services Ltd Homecare ,110031,SP2 ,Resources,Covid19 - Hospital D,Adult Domiciliary Care,Third Party Payments,REVENUE
Wiltshire, http://opendatacommunities.org/id/unitary-authority/wiltshire,22/09/2020,1902680841,805.04,Abicare Services Ltd Homecare ,110031,SP2 ,Community Services,West Care Packages,Adult Domiciliary Care,Third Party Payments,REVENUE
Wiltshire, http://opendatacommunities.org/id/unitary-authority/wiltshire,22/09/2020,1902680842,944.16,Abicare Services Ltd Homecare ,110031,SP2 ,Community Services,North Care Packages,Adult Domiciliary Care,Third Party Payments,REVENUE
Wiltshire, http://opendatacommunities.org/id/unitary-authority/wiltshire,22/09/2020,1902680843,1008.36,Abicare Services Ltd Homecare ,110031,SP2 ,Community Services,South Care Packages,Adult Domiciliary Care,Third Party Payments,REVENUE
Wiltshire, http://opendatacommunities.org/id/unitary-authority/wiltshire,22/09/2020,1902680844,1111.32,Abicare Services Ltd Homecare ,110031,SP2 ,Community Services,South Care Packages,Adult Domiciliary Care,Third Party Payments,REVENUE
Wiltshire, http://opendatacommunities.org/id/unitary-authority/wiltshire,22/09/2020,1902680845,1111.32,Abicare Services Ltd Homecare ,110031,SP2 ,Community Services,South Care Packages,Adult Domiciliary Care,Third Party Payments,REVENUE
Wiltshire, http://opendatacommunities.org/id/unitary-authority/wiltshire,22/09/2020,1902680846,1220.24,Abicare Services Ltd Homecare ,110031,SP2 ,Community Services,South Care Packages,Adult Domiciliary Care,Third Party Payments,REVENUE
Wiltshire, http://opendatacommunities.org/id/unitary-authority/wiltshire,22/09/2020,1902680848,1441.72,Abicare Services Ltd Homecare ,110031,SP2 ,Resources,Covid19 - Hospital D,Adult Domiciliary Care,Third Party Payments,REVENUE
Wiltshire, http://opendatacommunities.org/id/unitary-authority/wiltshire,22/09/2020,1902680849,1441.72,Abicare Services Ltd Homecare ,110031,SP2 ,Resources,Covid19 - Hospital D,Adult Domiciliary Care,Third Party Payments,REVENUE
Wiltshire, http://opendatacommunities.org/id/unitary-authority/wiltshire,22/09/2020,1902680851,2023.2,Abicare Services Ltd Homecare ,110031,SP2 ,Community Services,CTPLD Placements,Adult Domiciliary Care,Third Party Payments,REVENUE
Wiltshire, http://opendatacommunities.org/id/unitary-authority/wiltshire,22/09/2020,1902680852,2222.64,Abicare Services Ltd Homecare ,110031,SP2 ,Community Services,North Care Packages,Adult Domiciliary Care,Third Party Payments,REVENUE
Wiltshire, http://opendatacommunities.org/id/unitary-authority/wiltshire,22/09/2020,1902680853,3392.2,Abicare Services Ltd Homecare ,110031,SP2 ,Community Services,South Care Packages,Adult Domiciliary Care,Third Party Payments,REVENUE
Wiltshire, http://opendatacommunities.org/id/unitary-authority/wiltshire,22/09/2020,1902680854,450.52,Abicare Services Ltd Homecare ,110031,SP2 ,Community Services,South Care Packages,Adult Domiciliary Care,Third Party Payments,REVENUE
Wiltshire, http://opendatacommunities.org/id/unitary-authority/wiltshire,22/09/2020,1902680855,450.52,Abicare Services Ltd Homecare ,110031,SP2 ,Community Services,South Care Packages,Adult Domiciliary Care,Third Party Payments,REVENUE
Wiltshire, http://opendatacommunities.org/id/unitary-authority/wiltshire,22/09/2020,1902680856,450.52,Abicare Services Ltd Homecare ,110031,SP2 ,Community Services,South Care Packages,Adult Domiciliary Care,Third Party Payments,REVENUE
Wiltshire, http://opendatacommunities.org/id/unitary-authority/wiltshire,22/09/2020,1902680857,559.44,Abicare Services Ltd Homecare ,110031,SP2 ,Community Services,South Care Packages,Adult Domiciliary Care,Third Party Payments,REVENUE
Wiltshire, http://opendatacommunities.org/id/unitary-authority/wiltshire,22/09/2020,1902680858,559.44,Abicare Services Ltd Homecare ,110031,SP2 ,Community Services,CTPLD Placements,Adult Domiciliary Care,Third Party Payments,REVENUE
Wiltshire, http://opendatacommunities.org/id/unitary-authority/wiltshire,22/09/2020,1902680859,889.84,Abicare Services Ltd Homecare ,110031,SP2 ,Community Services,North Care Packages,Adult Domiciliary Care,Third Party Payments,REVENUE
Wiltshire, http://opendatacommunities.org/id/unitary-authority/wiltshire,22/09/2020,1902680861,1263.36,Abicare Services Ltd Homecare ,110031,SP2 ,Community Services,South Care Packages,Adult Domiciliary Care,Third Party Payments,REVENUE
Wiltshire, http://opendatacommunities.org/id/unitary-authority/wiltshire,22/09/2020,1902680862,1492.4,Abicare Services Ltd Homecare ,110031,SP2 ,Community Services,South Care Packages,Adult Domiciliary Care,Third Party Payments,REVENUE
Wiltshire, http://opendatacommunities.org/id/unitary-authority/wiltshire,22/09/2020,1902680863,1492.4,Abicare Services Ltd Homecare ,110031,SP2 ,Community Services,South Care Packages,Adult Domiciliary Care,Third Party Payments,REVENUE
Wiltshire, http://opendatacommunities.org/id/unitary-authority/wiltshire,22/09/2020,1902680864,2168.16,Abicare Services Ltd Homecare ,110031,SP2 ,Community Services,South Care Packages,Adult Domiciliary Care,Third Party Payments,REVENUE
Wiltshire, http://opendatacommunities.org/id/unitary-authority/wiltshire,22/09/2020,1902680866,2692.48,Abicare Services Ltd Homecare ,110031,SP2 ,Community Services,South Care Packages,Adult Domiciliary Care,Third Party Payments,REVENUE
Wiltshire, http://opendatacommunities.org/id/unitary-authority/wiltshire,22/09/2020,1902680867,395.36,Abicare Services Ltd Homecare ,110031,SP2 ,Community Services,South Care Packages,Adult Domiciliary Care,Third Party Payments,REVENUE
Wiltshire, http://opendatacommunities.org/id/unitary-authority/wiltshire,22/09/2020,1902680868,666.08,Abicare Services Ltd Homecare ,110031,SP2 ,Community Services,South Care Packages,Adult Domiciliary Care,Third Party Payments,REVENUE
Wiltshire, http://opendatacommunities.org/id/unitary-authority/wiltshire,22/09/2020,1902680869,683.28,Abicare Services Ltd Homecare ,110031,SP2 ,Community Services,South Care Packages,Adult Domiciliary Care,Third Party Payments,REVENUE
Wiltshire, http://opendatacommunities.org/id/unitary-authority/wiltshire,22/09/2020,1902680791,1694.88,Abicare Services Ltd Live in Care. ,113071,SP2 ,Community Services,North Care Packages,Adult Domiciliary Care Contribution,Income,REVENUE
Wiltshire, http://opendatacommunities.org/id/unitary-authority/wiltshire,22/09/2020,1902680792,3954.72,Abicare Services Ltd Live in Care. ,113071,SP2 ,Community Services,North Care Packages,Adult Domiciliary Care Contribution,Income,REVENUE
Wiltshire, http://opendatacommunities.org/id/unitary-authority/wiltshire,22/09/2020,1902680793,1129.92,Abicare Services Ltd Live in Care. ,113071,SP2 ,Resources,Covid19 - Hospital D,Adult Domiciliary Care,Third Party Payments,REVENUE
Wiltshire, http://opendatacommunities.org/id/unitary-authority/wiltshire,22/09/2020,1902680794,2628.36,Abicare Services Ltd Live in Care. ,113071,SP2 ,Community Services,North Care Packages,Adult Domiciliary Care,Third Party Payments,REVENUE
Wiltshire, http://opendatacommunities.org/id/unitary-authority/wiltshire,22/09/2020,1902680795,2640.68,Abicare Services Ltd Live in Care. ,113071,SP2 ,Community Services,West Care Packages,Adult Domiciliary Care,Third Party Payments,REVENUE
Wiltshire, http://opendatacommunities.org/id/unitary-authority/wiltshire,22/09/2020,1902680796,3394.16,Abicare Services Ltd Live in Care. ,113071,SP2 ,Community Services,West Care Packages,Adult Domiciliary Care,Third Party Payments,REVENUE
Wiltshire, http://opendatacommunities.org/id/unitary-authority/wiltshire,22/09/2020,1902680797,3628.24,Abicare Services Ltd Live in Care. ,113071,SP2 ,Community Services,South Care Packages,Adult Domiciliary Care,Third Party Payments,REVENUE
Wiltshire, http://opendatacommunities.org/id/unitary-authority/wiltshire,22/09/2020,1902680798,3628.24,Abicare Services Ltd Live in Care. ,113071,SP2 ,Community Services,South Care Packages,Adult Domiciliary Care,Third Party Payments,REVENUE
Wiltshire, http://opendatacommunities.org/id/unitary-authority/wiltshire,22/09/2020,1902680799,3628.24,Abicare Services Ltd Live in Care. ,113071,SP2 ,Community Services,MH AOWA West Localit,Adult Domiciliary Care,Third Party Payments,REVENUE
Wiltshire, http://opendatacommunities.org/id/unitary-authority/wiltshire,22/09/2020,1902680800,3628.24,Abicare Services Ltd Live in Care. ,113071,SP2 ,Community Services,West Care Packages,Adult Domiciliary Care,Third Party Payments,REVENUE
Wiltshire, http://opendatacommunities.org/id/unitary-authority/wiltshire,22/09/2020,1902680801,3628.24,Abicare Services Ltd Live in Care. ,113071,SP2 ,Community Services,South Care Packages,Adult Domiciliary Care,Third Party Payments,REVENUE
Wiltshire, http://opendatacommunities.org/id/unitary-authority/wiltshire,22/09/2020,1902680802,3768.52,Abicare Services Ltd Live in Care. ,113071,SP2 ,Resources,Covid19 - Hospital D,Adult Domiciliary Care,Third Party Payments,REVENUE
Wiltshire, http://opendatacommunities.org/id/unitary-authority/wiltshire,22/09/2020,1902680803,3820.88,Abicare Services Ltd Live in Care. ,113071,SP2 ,Community Services,MH OP West Locality,Adult Domiciliary Care,Third Party Payments,REVENUE
Wiltshire, http://opendatacommunities.org/id/unitary-authority/wiltshire,22/09/2020,1902680804,3820.88,Abicare Services Ltd Live in Care. ,113071,SP2 ,Community Services,West Care Packages,Adult Domiciliary Care,Third Party Payments,REVENUE
Wiltshire, http://opendatacommunities.org/id/unitary-authority/wiltshire,22/09/2020,1902680805,3954.72,Abicare Services Ltd Live in Care. ,113071,SP2 ,Community Services,North Care Packages,Adult Domiciliary Care,Third Party Payments,REVENUE
Wiltshire, http://opendatacommunities.org/id/unitary-authority/wiltshire,22/09/2020,1902680806,4130.56,Abicare Services Ltd Live in Care. ,113071,SP2 ,Community Services,South Care Packages,Adult Domiciliary Care,Third Party Payments,REVENUE
Wiltshire, http://opendatacommunities.org/id/unitary-authority/wiltshire,22/09/2020,1902680807,7909.44,Abicare Services Ltd Live in Care. ,113071,SP2 ,Resources,Covid19 - Hospital D,Adult Domiciliary Care,Third Party Payments,REVENUE
Wiltshire, http://opendatacommunities.org/id/unitary-authority/wiltshire,22/09/2020,1902680808,7909.44,Abicare Services Ltd Live in Care. ,113071,SP2 ,Resources,Covid19 - Hospital D,Adult Domiciliary Care,Third Party Payments,REVENUE
Wiltshire, http://opendatacommunities.org/id/unitary-authority/wiltshire,15/09/2020,1902674488,443.44,ABLE ,101029,BA14,Community Services,MH AOWA N&E Locality,Supported Living,Third Party Payments,REVENUE
Wiltshire, http://opendatacommunities.org/id/unitary-authority/wiltshire,15/09/2020,1902674489,443.44,ABLE ,101029,BA14,Community Services,MH AOWA N&E Locality,Supported Living,Third Party Payments,REVENUE
Wiltshire, http://opendatacommunities.org/id/unitary-authority/wiltshire,15/09/2020,1902674490,443.44,ABLE ,101029,BA14,Community Services,MH AOWA N&E Locality,Supported Living,Third Party Payments,REVENUE
Wiltshire, http://opendatacommunities.org/id/unitary-authority/wiltshire,15/09/2020,1902674491,443.44,ABLE ,101029,BA14,Community Services,MH AOWA N&E Locality,Supported Living,Third Party Payments,REVENUE
Wiltshire, http://opendatacommunities.org/id/unitary-authority/wiltshire,15/09/2020,1902674492,443.44,ABLE ,101029,BA14,Community Services,MH AOWA N&E Locality,Supported Living,Third Party Payments,REVENUE
Wiltshire, http://opendatacommunities.org/id/unitary-authority/wiltshire,28/09/2020,5107418890,3353.76,ABLE ,101029,BA14,Community Services,MH Commissioned Cont,Grants Expenditure,Supplies and Services,REVENUE
Wiltshire, http://opendatacommunities.org/id/unitary-authority/wiltshire,16/09/2020,1902679029,1051.43,ABLE ,110034,BA14,Community Services,MH AOWA N&E Locality,Adult Residential Placements - Spot Purchase,Third Party Payments,REVENUE
Wiltshire, http://opendatacommunities.org/id/unitary-authority/wiltshire,16/09/2020,1902679030,3120,ABLE ,110034,BA14,Community Services,MH OP West Locality,Adult Residential Placements - Spot Purchase,Third Party Payments,REVENUE
Wiltshire, http://opendatacommunities.org/id/unitary-authority/wiltshire,16/09/2020,1902679031,3154.29,ABLE ,110034,BA14,Community Services,MH AOWA N&E Locality,Adult Residential Placements - Spot Purchase,Third Party Payments,REVENUE
Wiltshire, http://opendatacommunities.org/id/unitary-authority/wiltshire,16/09/2020,1902679032,3194.88,ABLE ,110034,BA14,Community Services,MH AOWA West Localit,Adult Residential Placements - Spot Purchase,Third Party Payments,REVENUE
Wiltshire, http://opendatacommunities.org/id/unitary-authority/wiltshire,16/09/2020,1902679033,3194.88,ABLE ,110034,BA14,Community Services,MH AOWA West Localit,Adult Residential Placements - Spot Purchase,Third Party Payments,REVENUE
Wiltshire, http://opendatacommunities.org/id/unitary-authority/wiltshire,16/09/2020,1902679034,3680,ABLE ,110034,BA14,Community Services,MH AOWA N&E Locality,Adult Residential Placements - Spot Purchase,Third Party Payments,REVENUE
Wiltshire, http://opendatacommunities.org/id/unitary-authority/wiltshire,16/09/2020,1902679035,3680,ABLE ,110034,BA14,Community Services,MH AOWA N&E Locality,Adult Residential Placements - Spot Purchase,Third Party Payments,REVENUE
Wiltshire, http://opendatacommunities.org/id/unitary-authority/wiltshire,16/09/2020,1902679036,3680,ABLE ,110034,BA14,Community Services,MH AOWA N&E Locality,Adult Residential Placements - Spot Purchase,Third Party Payments,REVENUE
Wiltshire, http://opendatacommunities.org/id/unitary-authority/wiltshire,22/09/2020,1902681792,420,Able Hands Together CIC ,144783,SP11,Community Services,CTPLD Placements,Adult Day Care Contracts,Third Party Payments,REVENUE
Wiltshire, http://opendatacommunities.org/id/unitary-authority/wiltshire,22/09/2020,1902681795,1200,Able Hands Together CIC ,144783,SP11,Community Services,CTPLD Placements,Adult Day Care Contracts,Third Party Payments,REVENUE
Wiltshire, http://opendatacommunities.org/id/unitary-authority/wiltshire,22/09/2020,1902681796,480,Able Hands Together CIC ,144783,SP11,Community Services,CTPLD Placements,Adult Day Care Contracts,Third Party Payments,REVENUE
Wiltshire, http://opendatacommunities.org/id/unitary-authority/wiltshire,29/09/2020,5107418925,4500,Able Hands Together CIC ,144783,SP11,Children & Education,SEN EHE & AP,Educational Fees,Supplies and Services,REVENUE
Wiltshire, http://opendatacommunities.org/id/unitary-authority/wiltshire,07/09/2020,1902672421,931.6,Abney & Baker (Bath) Ltd ,146229,BA1 ,Community Services,CTPLD Placements,Adult Domiciliary Care,Third Party Payments,REVENUE
Wiltshire, http://opendatacommunities.org/id/unitary-authority/wiltshire,07/09/2020,1902672422,1111.66,Abney & Baker (Bath) Ltd ,146229,BA1 ,Community Services,North Care Packages,Adult Domiciliary Care,Third Party Payments,REVENUE
Wiltshire, http://opendatacommunities.org/id/unitary-authority/wiltshire,07/09/2020,1902672423,1168.31,Abney & Baker (Bath) Ltd ,146229,BA1 ,Community Services,West Care Packages,Adult Domiciliary Care,Third Party Payments,REVENUE
Wiltshire, http://opendatacommunities.org/id/unitary-authority/wiltshire,07/09/2020,1902672424,1419.66,Abney & Baker (Bath) Ltd ,146229,BA1 ,Community Services,MH OP West Locality,Adult Domiciliary Care,Third Party Payments,REVENUE
Wiltshire, http://opendatacommunities.org/id/unitary-authority/wiltshire,07/09/2020,1902672425,1474.88,Abney & Baker (Bath) Ltd ,146229,BA1 ,Community Services,West Care Packages,Adult Domiciliary Care,Third Party Payments,REVENUE
Wiltshire, http://opendatacommunities.org/id/unitary-authority/wiltshire,07/09/2020,1902672426,1474.88,Abney & Baker (Bath) Ltd ,146229,BA1 ,Community Services,West Care Packages,Adult Domiciliary Care,Third Party Payments,REVENUE
Wiltshire, http://opendatacommunities.org/id/unitary-authority/wiltshire,07/09/2020,1902672427,1533.39,Abney & Baker (Bath) Ltd ,146229,BA1 ,Community Services,West Care Packages,Adult Domiciliary Care,Third Party Payments,REVENUE
Wiltshire, http://opendatacommunities.org/id/unitary-authority/wiltshire,07/09/2020,1902672428,1551.1,Abney & Baker (Bath) Ltd ,146229,BA1 ,Community Services,West Care Packages,Adult Domiciliary Care,Third Party Payments,REVENUE
Wiltshire, http://opendatacommunities.org/id/unitary-authority/wiltshire,07/09/2020,1902672429,1590.24,Abney & Baker (Bath) Ltd ,146229,BA1 ,Community Services,North Care Packages,Adult Domiciliary Care,Third Party Payments,REVENUE
Wiltshire, http://opendatacommunities.org/id/unitary-authority/wiltshire,07/09/2020,1902672430,1833.95,Abney & Baker (Bath) Ltd ,146229,BA1 ,Community Services,West Care Packages,Adult Domiciliary Care,Third Party Payments,REVENUE
Wiltshire, http://opendatacommunities.org/id/unitary-authority/wiltshire,07/09/2020,1902672433,2068.82,Abney & Baker (Bath) Ltd ,146229,BA1 ,Community Services,West Care Packages,Adult Domiciliary Care,Third Party Payments,REVENUE
Wiltshire, http://opendatacommunities.org/id/unitary-authority/wiltshire,07/09/2020,1902672434,2068.82,Abney & Baker (Bath) Ltd ,146229,BA1 ,Community Services,West Care Packages,Adult Domiciliary Care,Third Party Payments,REVENUE
Wiltshire, http://opendatacommunities.org/id/unitary-authority/wiltshire,07/09/2020,1902672435,2068.82,Abney & Baker (Bath) Ltd ,146229,BA1 ,Community Services,West Care Packages,Adult Domiciliary Care,Third Party Payments,REVENUE
Wiltshire, http://opendatacommunities.org/id/unitary-authority/wiltshire,07/09/2020,1902672436,2164.61,Abney & Baker (Bath) Ltd ,146229,BA1 ,Community Services,West Care Packages,Adult Domiciliary Care,Third Party Payments,REVENUE
Wiltshire, http://opendatacommunities.org/id/unitary-authority/wiltshire,07/09/2020,1902672437,2279.97,Abney & Baker (Bath) Ltd ,146229,BA1 ,Community Services,West Care Packages,Adult Domiciliary Care,Third Party Payments,REVENUE
Wiltshire, http://opendatacommunities.org/id/unitary-authority/wiltshire,07/09/2020,1902672438,2279.97,Abney & Baker (Bath) Ltd ,146229,BA1 ,Community Services,West Care Packages,Adult Domiciliary Care,Third Party Payments,REVENUE
Wiltshire, http://opendatacommunities.org/id/unitary-authority/wiltshire,07/09/2020,1902672440,2395.33,Abney & Baker (Bath) Ltd ,146229,BA1 ,Community Services,North Care Packages,Adult Domiciliary Care,Third Party Payments,REVENUE
Wiltshire, http://opendatacommunities.org/id/unitary-authority/wiltshire,07/09/2020,1902672441,2414.9,Abney & Baker (Bath) Ltd ,146229,BA1 ,Community Services,West Care Packages,Adult Domiciliary Care,Third Party Payments,REVENUE
Wiltshire, http://opendatacommunities.org/id/unitary-authority/wiltshire,07/09/2020,1902672442,478.58,Abney & Baker (Bath) Ltd ,146229,BA1 ,Community Services,West Care Packages,Adult Domiciliary Care,Third Party Payments,REVENUE
Wiltshire, http://opendatacommunities.org/id/unitary-authority/wiltshire,07/09/2020,1902672443,517.72,Abney & Baker (Bath) Ltd ,146229,BA1 ,Community Services,North Care Packages,Adult Domiciliary Care,Third Party Payments,REVENUE
Wiltshire, http://opendatacommunities.org/id/unitary-authority/wiltshire,07/09/2020,1902672444,957.16,Abney & Baker (Bath) Ltd ,146229,BA1 ,Community Services,West Care Packages,Adult Domiciliary Care,Third Party Payments,REVENUE
Wiltshire, http://opendatacommunities.org/id/unitary-authority/wiltshire,07/09/2020,1902672445,957.16,Abney & Baker (Bath) Ltd ,146229,BA1 ,Community Services,West Care Packages,Adult Domiciliary Care,Third Party Payments,REVENUE
Wiltshire, http://opendatacommunities.org/id/unitary-authority/wiltshire,07/09/2020,1902672446,990.12,Abney & Baker (Bath) Ltd ,146229,BA1 ,Community Services,West Care Packages,Adult Domiciliary Care,Third Party Payments,REVENUE
Wiltshire, http://opendatacommunities.org/id/unitary-authority/wiltshire,07/09/2020,1902672447,996.3,Abney & Baker (Bath) Ltd ,146229,BA1 ,Community Services,West Care Packages,Adult Domiciliary Care,Third Party Payments,REVENUE
Wiltshire, http://opendatacommunities.org/id/unitary-authority/wiltshire,16/09/2020,1902679143,3602.78,Abney & Baker (Bath) Ltd ,146229,BA1 ,Community Services,North Care Packages,Adult Domiciliary Care,Third Party Payments,REVENUE
Wiltshire, http://opendatacommunities.org/id/unitary-authority/wiltshire,16/09/2020,1902679144,647.4,Abney & Baker (Bath) Ltd ,146229,BA1 ,Community Services,North Care Packages,Adult Domiciliary Care,Third Party Payments,REVENUE
Wiltshire, http://opendatacommunities.org/id/unitary-authority/wiltshire,15/09/2020,1902673856,2367.36,Acacia London Residential Healthcar ,147333,KT6 ,Community Services,North Care Packages,Adult Care Nursing Placements - Spot,Third Party Payments,REVENUE
Wiltshire, http://opendatacommunities.org/id/unitary-authority/wiltshire,29/09/2020,5107419010,1400,Academy21 Ltd ,136859,NP8 ,Children & Education,EOTAS Service,Educational Fees,Supplies and Services,REVENUE
Wiltshire, http://opendatacommunities.org/id/unitary-authority/wiltshire,22/09/2020,1902680788,2889.96,Access Care Ltd ,110037,SP10,Community Services,North Care Packages,Adult Domiciliary Care,Third Party Payments,REVENUE
Wiltshire, http://opendatacommunities.org/id/unitary-authority/wiltshire,22/09/2020,1902680789,4755.4,Access Care Ltd ,110037,SP10,Community Services,West Care Packages,Adult Domiciliary Care,Third Party Payments,REVENUE
Wiltshire, http://opendatacommunities.org/id/unitary-authority/wiltshire,15/09/2020,1902673636,6172.68,Accomplish Group Limited ,112775,B45 ,Community Services,CTPLD Placements,Adult Residential Placements - Spot Purchase,Third Party Payments,REVENUE
Wiltshire, http://opendatacommunities.org/id/unitary-authority/wiltshire,15/09/2020,1902673637,6740,Accomplish Group Limited ,112775,B45 ,Community Services,MH AOWA N&E Locality,Adult Residential Placements - Spot Purchase,Third Party Payments,REVENUE
Wiltshire, http://opendatacommunities.org/id/unitary-authority/wiltshire,15/09/2020,1902673638,7775.04,Accomplish Group Limited ,112775,B45 ,Community Services,CTPLD Placements,Adult Residential Placements - Spot Purchase,Third Party Payments,REVENUE
Wiltshire, http://opendatacommunities.org/id/unitary-authority/wiltshire,15/09/2020,1902673639,8266,Accomplish Group Limited ,112775,B45 ,Community Services,CTPLD Placements,Adult Residential Placements - Spot Purchase,Third Party Payments,REVENUE
Wiltshire, http://opendatacommunities.org/id/unitary-authority/wiltshire,16/09/2020,1902679430,1762,Accomplish Group Limited ,112775,B45 ,Community Services,MH AOWA West Localit,Adult Residential Placements - Spot Purchase,Third Party Payments,REVENUE
Wiltshire, http://opendatacommunities.org/id/unitary-authority/wiltshire,16/09/2020,1902679431,7048,Accomplish Group Limited ,112775,B45 ,Community Services,MH AOWA West Localit,Adult Residential Placements - Spot Purchase,Third Party Payments,REVENUE
Wiltshire, http://opendatacommunities.org/id/unitary-authority/wiltshire,10/09/2020,5107417924,350,Acer Tree Surgeons Ltd ,113296,BA13,Neighbourhood & Planning,Rights of Way,Grounds Maintenance,Premises Related,REVENUE
Wiltshire, http://opendatacommunities.org/id/unitary-authority/wiltshire,22/09/2020,5107418603,800,Acer Tree Surgeons Ltd ,113296,BA13,Neighbourhood & Planning,Rights of Way,Grounds Maintenance,Premises Related,REVENUE
Wiltshire, http://opendatacommunities.org/id/unitary-authority/wiltshire,15/09/2020,1902673705,10089,Achieve Together ,110312,KT22,Community Services,CTPLD Placements,Adult Residential Placements - Spot Purchase,Third Party Payments,REVENUE
Wiltshire, http://opendatacommunities.org/id/unitary-authority/wiltshire,15/09/2020,1902673706,10101.93,Achieve Together ,110312,KT22,Community Services,CTPLD Placements,Adult Residential Placements - Spot Purchase,Third Party Payments,REVENUE
Wiltshire, http://opendatacommunities.org/id/unitary-authority/wiltshire,15/09/2020,1902673707,10130.91,Achieve Together ,110312,KT22,Community Services,CTPLD Placements,Adult Residential Placements - Spot Purchase,Third Party Payments,REVENUE
Wiltshire, http://opendatacommunities.org/id/unitary-authority/wiltshire,15/09/2020,1902673708,10383.72,Achieve Together ,110312,KT22,Community Services,CTPLD Placements,Adult Residential Placements - Spot Purchase,Third Party Payments,REVENUE
Wiltshire, http://opendatacommunities.org/id/unitary-authority/wiltshire,15/09/2020,1902673709,11487.18,Achieve Together ,110312,KT22,Community Services,CTPLD Placements,Adult Residential Placements - Spot Purchase,Third Party Payments,REVENUE
Wiltshire, http://opendatacommunities.org/id/unitary-authority/wiltshire,15/09/2020,1902673710,12030.96,Achieve Together ,110312,KT22,Community Services,CTPLD Placements,Adult Residential Placements - Spot Purchase,Third Party Payments,REVENUE
Wiltshire, http://opendatacommunities.org/id/unitary-authority/wiltshire,15/09/2020,1902673711,13418.6,Achieve Together ,110312,KT22,Community Services,CTPLD Placements,Adult Residential Placements - Spot Purchase,Third Party Payments,REVENUE
Wiltshire, http://opendatacommunities.org/id/unitary-authority/wiltshire,15/09/2020,1902673712,14442.6,Achieve Together ,110312,KT22,Community Services,CTPLD Placements,Adult Residential Placements - Spot Purchase,Third Party Payments,REVENUE
Wiltshire, http://opendatacommunities.org/id/unitary-authority/wiltshire,15/09/2020,1902673713,8499.99,Achieve Together ,110312,KT22,Community Services,CTPLD Placements,Adult Residential Placements - Spot Purchase,Third Party Payments,REVENUE
Wiltshire, http://opendatacommunities.org/id/unitary-authority/wiltshire,15/09/2020,1902673714,8564.12,Achieve Together ,110312,KT22,Community Services,CTPLD Placements,Adult Residential Placements - Spot Purchase,Third Party Payments,REVENUE
Wiltshire, http://opendatacommunities.org/id/unitary-authority/wiltshire,15/09/2020,1902673715,8673.68,Achieve Together ,110312,KT22,Community Services,CTPLD Placements,Adult Residential Placements - Spot Purchase,Third Party Payments,REVENUE
Wiltshire, http://opendatacommunities.org/id/unitary-authority/wiltshire,15/09/2020,1902673716,8838.93,Achieve Together ,110312,KT22,Community Services,CTPLD Placements,Adult Residential Placements - Spot Purchase,Third Party Payments,REVENUE
Wiltshire, http://opendatacommunities.org/id/unitary-authority/wiltshire,15/09/2020,1902673717,8874.12,Achieve Together ,110312,KT22,Community Services,CTPLD Placements,Adult Residential Placements - Spot Purchase,Third Party Payments,REVENUE
Wiltshire, http://opendatacommunities.org/id/unitary-authority/wiltshire,15/09/2020,1902673718,9154.74,Achieve Together ,110312,KT22,Community Services,CTPLD Placements,Adult Residential Placements - Spot Purchase,Third Party Payments,REVENUE
Wiltshire, http://opendatacommunities.org/id/unitary-authority/wiltshire,15/09/2020,1902673719,9482.01,Achieve Together ,110312,KT22,Community Services,CTPLD Placements,Adult Residential Placements - Spot Purchase,Third Party Payments,REVENUE
Wiltshire, http://opendatacommunities.org/id/unitary-authority/wiltshire,15/09/2020,1902673720,9663.69,Achieve Together ,110312,KT22,Community Services,CTPLD Placements,Adult Residential Placements - Spot Purchase,Third Party Payments,REVENUE
Wiltshire, http://opendatacommunities.org/id/unitary-authority/wiltshire,15/09/2020,1902673721,9739.17,Achieve Together ,110312,KT22,Community Services,CTPLD Placements,Adult Residential Placements - Spot Purchase,Third Party Payments,REVENUE
Wiltshire, http://opendatacommunities.org/id/unitary-authority/wiltshire,15/09/2020,1902673722,9852.75,Achieve Together ,110312,KT22,Community Services,CTPLD Placements,Adult Residential Placements - Spot Purchase,Third Party Payments,REVENUE
Wiltshire, http://opendatacommunities.org/id/unitary-authority/wiltshire,15/09/2020,1902673723,9906.75,Achieve Together ,110312,KT22,Community Services,CTPLD Placements,Adult Residential Placements - Spot Purchase,Third Party Payments,REVENUE
Wiltshire, http://opendatacommunities.org/id/unitary-authority/wiltshire,15/09/2020,1902674627,15330,Achieve Together ,110312,KT22,Community Services,CTPLD Placements,Supported Living,Third Party Payments,REVENUE
Wiltshire, http://opendatacommunities.org/id/unitary-authority/wiltshire,15/09/2020,1902674628,3669.76,Achieve Together ,110312,KT22,Community Services,West Care Packages,Supported Living,Third Party Payments,REVENUE
Wiltshire, http://opendatacommunities.org/id/unitary-authority/wiltshire,15/09/2020,1902674629,4118.32,Achieve Together ,110312,KT22,Community Services,MH AOWA West Localit,Supported Living,Third Party Payments,REVENUE
Wiltshire, http://opendatacommunities.org/id/unitary-authority/wiltshire,16/09/2020,1902678761,1131,Acorn Education Trust - New Close ,148417,BA12,Children & Education,Free Enttlmnt 3 & 4y,Childcare Free Entitlement Early Years,Supplies and Services,REVENUE
Wiltshire, http://opendatacommunities.org/id/unitary-authority/wiltshire,15/09/2020,5107418207,13938.6,Acorn Homes (UK) Ltd ,150121,CT12,Children & Education,Independent Fosterin,Childrens Agency Placement,Third Party Payments,REVENUE
Wiltshire, http://opendatacommunities.org/id/unitary-authority/wiltshire,15/09/2020,5107418208,5100,Acorn Homes (UK) Ltd ,150121,CT12,Children & Education,Independent Fosterin,Childrens Agency Placement,Third Party Payments,REVENUE
Wiltshire, http://opendatacommunities.org/id/unitary-authority/wiltshire,15/09/2020,5107418209,10961.4,Acorn Homes (UK) Ltd ,150121,CT12,Children & Education,IndepSpecialSchFees,Childrens Agency Placement,Third Party Payments,REVENUE
Wiltshire, http://opendatacommunities.org/id/unitary-authority/wiltshire,18/09/2020,1902680289,4200,Action on Addiction ,110046,SP3 ,Community Services,T4 Treatments,Rehabilitation,Third Party Payments,REVENUE
Wiltshire, http://opendatacommunities.org/id/unitary-authority/wiltshire,18/09/2020,1902680290,4200,Action on Addiction ,110046,SP3 ,Community Services,T4 Treatments,Rehabilitation,Third Party Payments,REVENUE
Wiltshire, http://opendatacommunities.org/id/unitary-authority/wiltshire,15/09/2020,1902677787,2447.34,Action on Hearing Loss ,112215,N1 1,Community Services,MH AOWA South Locali,Adult Care Nursing Placements - Spot,Third Party Payments,REVENUE
Wiltshire, http://opendatacommunities.org/id/unitary-authority/wiltshire,15/09/2020,1902677788,6229.6,Action on Hearing Loss ,112215,N1 1,Community Services,MH AOWA South Locali,Adult Care Nursing Placements - Spot,Third Party Payments,REVENUE
Wiltshire, http://opendatacommunities.org/id/unitary-authority/wiltshire,15/09/2020,1902677789,3880.56,Action on Hearing Loss ,112215,N1 1,Community Services,North Care Packages,Adult Residential Placements - Spot Purchase,Third Party Payments,REVENUE
Wiltshire, http://opendatacommunities.org/id/unitary-authority/wiltshire,15/09/2020,1902677790,6403.36,Action on Hearing Loss ,112215,N1 1,Community Services,South Care Packages,Adult Residential Placements - Spot Purchase,Third Party Payments,REVENUE
Wiltshire, http://opendatacommunities.org/id/unitary-authority/wiltshire,25/09/2020,5107417416,325.5,Adams Morey Ltd ,110053,SP2 ,Neighbourhood & Planning,Fleet,Vehicle 3rd Party Repairs,Transport Related,REVENUE
Wiltshire, http://opendatacommunities.org/id/unitary-authority/wiltshire,25/09/2020,5107417623,3250,ADPH ,140081,EC4A,Neighbourhood & Planning,Public Health Managt,Grants Expenditure,Supplies and Services,REVENUE
Wiltshire, http://opendatacommunities.org/id/unitary-authority/wiltshire,14/09/2020,1902675314,3459.58,Adrains Engineering Psv ,100848,SN15,Neighbourhood & Planning,Mainstream Primary,Transport Contracts,Third Party Payments,REVENUE
Wiltshire, http://opendatacommunities.org/id/unitary-authority/wiltshire,14/09/2020,1902675315,3720.83,Adrains Engineering Psv ,100848,SN15,Neighbourhood & Planning,Mainstream Secondary,Transport Contracts,Third Party Payments,REVENUE
Wiltshire, http://opendatacommunities.org/id/unitary-authority/wiltshire,14/09/2020,1902675316,3419.17,Adrains Engineering Psv ,100848,SN15,Neighbourhood & Planning,Mainstream Secondary,Transport Contracts,Third Party Payments,REVENUE
Wiltshire, http://opendatacommunities.org/id/unitary-authority/wiltshire,03/09/2020,5107417535,3100,Advance Social Care Limited ,150285,BB11,Children & Education,Independent Fosterin,Childrens Agency Placement,Third Party Payments,REVENUE
Wiltshire, http://opendatacommunities.org/id/unitary-authority/wiltshire,28/09/2020,5107418318,6750,AECOM Ltd ,127871,SW19,Wiltshire Council,Wiltshire Council,Consultants Fees,Supplies and Services,CAPITAL
Wiltshire, http://opendatacommunities.org/id/unitary-authority/wiltshire,28/09/2020,5107418319,6586,AECOM Ltd ,127871,SW19,Wiltshire Council,Wiltshire Council,Consultants Fees,Supplies and Services,CAPITAL
Wiltshire, http://opendatacommunities.org/id/unitary-authority/wiltshire,07/09/2020,1902671919,492.4,AginCare Live In Care Services Ltd ,110071,DT5 ,Community Services,North Care Packages,Adult Domiciliary Care Contribution,Income,REVENUE
Wiltshire, http://opendatacommunities.org/id/unitary-authority/wiltshire,07/09/2020,1902671920,3620.57,AginCare Live In Care Services Ltd ,110071,DT5 ,Resources,Covid19 - Hospital D,Adult Domiciliary Care,Third Party Payments,REVENUE
Wiltshire, http://opendatacommunities.org/id/unitary-authority/wiltshire,07/09/2020,1902671921,765.71,AginCare Live In Care Services Ltd ,110071,DT5 ,Community Services,North Care Packages,Adult Domiciliary Care,Third Party Payments,REVENUE
Wiltshire, http://opendatacommunities.org/id/unitary-authority/wiltshire,07/09/2020,1902671922,7957.6,AginCare Live In Care Services Ltd ,110071,DT5 ,Community Services,MH AOWA South Locali,Adult Domiciliary Care,Third Party Payments,REVENUE
Wiltshire, http://opendatacommunities.org/id/unitary-authority/wiltshire,07/09/2020,1902671923,7957.6,AginCare Live In Care Services Ltd ,110071,DT5 ,Community Services,MH AOWA South Locali,Adult Domiciliary Care,Third Party Payments,REVENUE
Wiltshire, http://opendatacommunities.org/id/unitary-authority/wiltshire,16/09/2020,1902678895,1651.83,AginCare Live In Care Services Ltd ,110071,DT5 ,Resources,Covid19 - Hospital D,Adult Domiciliary Care,Third Party Payments,REVENUE
Wiltshire, http://opendatacommunities.org/id/unitary-authority/wiltshire,16/09/2020,1902678896,4443.43,AginCare Live In Care Services Ltd ,110071,DT5 ,Resources,Covid19 - Hospital D,Adult Domiciliary Care,Third Party Payments,REVENUE
Wiltshire, http://opendatacommunities.org/id/unitary-authority/wiltshire,16/09/2020,1902678897,4640,AginCare Live In Care Services Ltd ,110071,DT5 ,Community Services,North Care Packages,Adult Domiciliary Care,Third Party Payments,REVENUE
Wiltshire, http://opendatacommunities.org/id/unitary-authority/wiltshire,16/09/2020,1902678898,4640,AginCare Live In Care Services Ltd ,110071,DT5 ,Community Services,North Care Packages,Adult Domiciliary Care,Third Party Payments,REVENUE
Wiltshire, http://opendatacommunities.org/id/unitary-authority/wiltshire,22/09/2020,1902671899,276.64,Agincare Ltd ,110069,DT5 ,Community Services,North Care Packages,Adult Domiciliary Care Contribution,Income,REVENUE
Wiltshire, http://opendatacommunities.org/id/unitary-authority/wiltshire,22/09/2020,1902671900,1015.6,Agincare Ltd ,110069,DT5 ,Community Services,North Care Packages,Adult Domiciliary Care,Third Party Payments,REVENUE
Wiltshire, http://opendatacommunities.org/id/unitary-authority/wiltshire,22/09/2020,1902671904,312.32,Agincare Ltd ,110069,DT5 ,Community Services,North Care Packages,Adult Domiciliary Care,Third Party Payments,REVENUE
Wiltshire, http://opendatacommunities.org/id/unitary-authority/wiltshire,22/09/2020,1902671905,312.32,Agincare Ltd ,110069,DT5 ,Community Services,North Care Packages,Adult Domiciliary Care,Third Party Payments,REVENUE
Wiltshire, http://opendatacommunities.org/id/unitary-authority/wiltshire,22/09/2020,1902671906,312.32,Agincare Ltd ,110069,DT5 ,Community Services,North Care Packages,Adult Domiciliary Care,Third Party Payments,REVENUE
Wiltshire, http://opendatacommunities.org/id/unitary-authority/wiltshire,22/09/2020,1902671907,312.32,Agincare Ltd ,110069,DT5 ,Community Services,North Care Packages,Adult Domiciliary Care,Third Party Payments,REVENUE
Wiltshire, http://opendatacommunities.org/id/unitary-authority/wiltshire,22/09/2020,1902671908,312.32,Agincare Ltd ,110069,DT5 ,Community Services,North Care Packages,Adult Domiciliary Care,Third Party Payments,REVENUE
Wiltshire, http://opendatacommunities.org/id/unitary-authority/wiltshire,22/09/2020,1902671909,370.88,Agincare Ltd ,110069,DT5 ,Community Services,West Care Packages,Adult Domiciliary Care,Third Party Payments,REVENUE
Wiltshire, http://opendatacommunities.org/id/unitary-authority/wiltshire,22/09/2020,1902671910,436.05,Agincare Ltd ,110069,DT5 ,Community Services,North Care Packages,Adult Domiciliary Care,Third Party Payments,REVENUE
Wiltshire, http://opendatacommunities.org/id/unitary-authority/wiltshire,22/09/2020,1902671912,565.07,Agincare Ltd ,110069,DT5 ,Resources,Covid19 - Hospital D,Adult Domiciliary Care,Third Party Payments,REVENUE
Wiltshire, http://opendatacommunities.org/id/unitary-authority/wiltshire,22/09/2020,1902671914,812.76,Agincare Ltd ,110069,DT5 ,Resources,Covid19 - Hospital D,Adult Domiciliary Care,Third Party Payments,REVENUE
Wiltshire, http://opendatacommunities.org/id/unitary-authority/wiltshire,22/09/2020,1902671915,985.32,Agincare Ltd ,110069,DT5 ,Resources,Covid19 - Hospital D,Adult Domiciliary Care,Third Party Payments,REVENUE
Wiltshire, http://opendatacommunities.org/id/unitary-authority/wiltshire,22/09/2020,1902680871,1015.6,Agincare Ltd ,110069,DT5 ,Community Services,North Care Packages,Adult Domiciliary Care,Third Party Payments,REVENUE
Wiltshire, http://opendatacommunities.org/id/unitary-authority/wiltshire,22/09/2020,1902680872,1093.24,Agincare Ltd ,110069,DT5 ,Community Services,MH OP West Locality,Adult Domiciliary Care,Third Party Payments,REVENUE
Wiltshire, http://opendatacommunities.org/id/unitary-authority/wiltshire,22/09/2020,1902680873,1142.32,Agincare Ltd ,110069,DT5 ,Community Services,MH AOWA N&E Locality,Adult Domiciliary Care,Third Party Payments,REVENUE
Wiltshire, http://opendatacommunities.org/id/unitary-authority/wiltshire,22/09/2020,1902680874,1250.96,Agincare Ltd ,110069,DT5 ,Community Services,MH AOWA N&E Locality,Adult Domiciliary Care,Third Party Payments,REVENUE
Wiltshire, http://opendatacommunities.org/id/unitary-authority/wiltshire,22/09/2020,1902680877,1438.36,Agincare Ltd ,110069,DT5 ,Community Services,West Care Packages,Adult Domiciliary Care,Third Party Payments,REVENUE
Wiltshire, http://opendatacommunities.org/id/unitary-authority/wiltshire,22/09/2020,1902680878,1438.36,Agincare Ltd ,110069,DT5 ,Resources,Covid19 - Hospital D,Adult Domiciliary Care,Third Party Payments,REVENUE
Wiltshire, http://opendatacommunities.org/id/unitary-authority/wiltshire,22/09/2020,1902680879,1532.72,Agincare Ltd ,110069,DT5 ,Community Services,North Care Packages,Adult Domiciliary Care,Third Party Payments,REVENUE
Wiltshire, http://opendatacommunities.org/id/unitary-authority/wiltshire,22/09/2020,1902680880,1545.32,Agincare Ltd ,110069,DT5 ,Community Services,North Care Packages,Adult Domiciliary Care,Third Party Payments,REVENUE
Wiltshire, http://opendatacommunities.org/id/unitary-authority/wiltshire,22/09/2020,1902680882,1890.56,Agincare Ltd ,110069,DT5 ,Community Services,North Care Packages,Adult Domiciliary Care,Third Party Payments,REVENUE
Wiltshire, http://opendatacommunities.org/id/unitary-authority/wiltshire,22/09/2020,1902680883,1997.52,Agincare Ltd ,110069,DT5 ,Community Services,West Care Packages,Adult Domiciliary Care,Third Party Payments,REVENUE
Wiltshire, http://opendatacommunities.org/id/unitary-authority/wiltshire,22/09/2020,1902680885,2095.8,Agincare Ltd ,110069,DT5 ,Community Services,West Care Packages,Adult Domiciliary Care,Third Party Payments,REVENUE
Wiltshire, http://opendatacommunities.org/id/unitary-authority/wiltshire,22/09/2020,1902680887,258,Agincare Ltd ,110069,DT5 ,Community Services,North Care Packages,Adult Domiciliary Care,Third Party Payments,REVENUE
Wiltshire, http://opendatacommunities.org/id/unitary-authority/wiltshire,22/09/2020,1902680888,312.32,Agincare Ltd ,110069,DT5 ,Community Services,North Care Packages,Adult Domiciliary Care,Third Party Payments,REVENUE
Wiltshire, http://opendatacommunities.org/id/unitary-authority/wiltshire,22/09/2020,1902680889,328.72,Agincare Ltd ,110069,DT5 ,Community Services,North Care Packages,Adult Domiciliary Care,Third Party Payments,REVENUE
Wiltshire, http://opendatacommunities.org/id/unitary-authority/wiltshire,22/09/2020,1902680890,328.72,Agincare Ltd ,110069,DT5 ,Community Services,North Care Packages,Adult Domiciliary Care,Third Party Payments,REVENUE
Wiltshire, http://opendatacommunities.org/id/unitary-authority/wiltshire,22/09/2020,1902680891,452.2,Agincare Ltd ,110069,DT5 ,Community Services,North Care Packages,Adult Domiciliary Care,Third Party Payments,REVENUE
Wiltshire, http://opendatacommunities.org/id/unitary-authority/wiltshire,22/09/2020,1902680892,452.2,Agincare Ltd ,110069,DT5 ,Community Services,North Care Packages,Adult Domiciliary Care,Third Party Payments,REVENUE
Wiltshire, http://opendatacommunities.org/id/unitary-authority/wiltshire,22/09/2020,1902680893,452.2,Agincare Ltd ,110069,DT5 ,Community Services,West Care Packages,Adult Domiciliary Care,Third Party Payments,REVENUE
Wiltshire, http://opendatacommunities.org/id/unitary-authority/wiltshire,22/09/2020,1902680894,452.2,Agincare Ltd ,110069,DT5 ,Community Services,North Care Packages,Adult Domiciliary Care,Third Party Payments,REVENUE
Wiltshire, http://opendatacommunities.org/id/unitary-authority/wiltshire,22/09/2020,1902680895,452.2,Agincare Ltd ,110069,DT5 ,Community Services,North Care Packages,Adult Domiciliary Care,Third Party Payments,REVENUE
Wiltshire, http://opendatacommunities.org/id/unitary-authority/wiltshire,22/09/2020,1902680896,452.2,Agincare Ltd ,110069,DT5 ,Resources,Covid19 - Hospital D,Adult Domiciliary Care,Third Party Payments,REVENUE
Wiltshire, http://opendatacommunities.org/id/unitary-authority/wiltshire,22/09/2020,1902680897,479.16,Agincare Ltd ,110069,DT5 ,Community Services,North Care Packages,Adult Domiciliary Care,Third Party Payments,REVENUE
Wiltshire, http://opendatacommunities.org/id/unitary-authority/wiltshire,22/09/2020,1902680898,516.4,Agincare Ltd ,110069,DT5 ,Community Services,CTPLD Placements,Adult Domiciliary Care,Third Party Payments,REVENUE
Wiltshire, http://opendatacommunities.org/id/unitary-authority/wiltshire,22/09/2020,1902680899,546.56,Agincare Ltd ,110069,DT5 ,Community Services,CTPLD Placements,Adult Domiciliary Care,Third Party Payments,REVENUE
Wiltshire, http://opendatacommunities.org/id/unitary-authority/wiltshire,22/09/2020,1902680900,546.56,Agincare Ltd ,110069,DT5 ,Community Services,West Care Packages,Adult Domiciliary Care,Third Party Payments,REVENUE
Wiltshire, http://opendatacommunities.org/id/unitary-authority/wiltshire,22/09/2020,1902680901,554.82,Agincare Ltd ,110069,DT5 ,Community Services,North Care Packages,Adult Domiciliary Care,Third Party Payments,REVENUE
Wiltshire, http://opendatacommunities.org/id/unitary-authority/wiltshire,22/09/2020,1902680903,780.92,Agincare Ltd ,110069,DT5 ,Community Services,North Care Packages,Adult Domiciliary Care,Third Party Payments,REVENUE
Wiltshire, http://opendatacommunities.org/id/unitary-authority/wiltshire,22/09/2020,1902680904,780.92,Agincare Ltd ,110069,DT5 ,Community Services,North Care Packages,Adult Domiciliary Care,Third Party Payments,REVENUE
Wiltshire, http://opendatacommunities.org/id/unitary-authority/wiltshire,22/09/2020,1902680905,875.28,Agincare Ltd ,110069,DT5 ,Community Services,North Care Packages,Adult Domiciliary Care,Third Party Payments,REVENUE
Wiltshire, http://opendatacommunities.org/id/unitary-authority/wiltshire,22/09/2020,1902680906,875.28,Agincare Ltd ,110069,DT5 ,Community Services,North Care Packages,Adult Domiciliary Care,Third Party Payments,REVENUE
Wiltshire, http://opendatacommunities.org/id/unitary-authority/wiltshire,22/09/2020,1902680908,986.16,Agincare Ltd ,110069,DT5 ,Community Services,West Care Packages,Adult Domiciliary Care,Third Party Payments,REVENUE
Wiltshire, http://opendatacommunities.org/id/unitary-authority/wiltshire,22/09/2020,1902680909,992.4,Agincare Ltd ,110069,DT5 ,Community Services,CTPLD Placements,Adult Domiciliary Care,Third Party Payments,REVENUE
Wiltshire, http://opendatacommunities.org/id/unitary-authority/wiltshire,22/09/2020,1902680910,1098.8,Agincare Ltd ,110069,DT5 ,Community Services,CTPLD Placements,Adult Domiciliary Care,Third Party Payments,REVENUE
Wiltshire, http://opendatacommunities.org/id/unitary-authority/wiltshire,22/09/2020,1902680911,1607.2,Agincare Ltd ,110069,DT5 ,Community Services,CTPLD Placements,Adult Domiciliary Care,Third Party Payments,REVENUE
Wiltshire, http://opendatacommunities.org/id/unitary-authority/wiltshire,22/09/2020,1902681623,584,Agincare Ltd ,110069,DT5 ,Community Services,CTPLD Placements,Supported Living,Third Party Payments,REVENUE
Wiltshire, http://opendatacommunities.org/id/unitary-authority/wiltshire,14/09/2020,1902675317,2177.16,Akcess Ltd ,101402,SN2 ,Neighbourhood & Planning,Mainstream Primary,Transport Contracts,Third Party Payments,REVENUE
Wiltshire, http://opendatacommunities.org/id/unitary-authority/wiltshire,14/09/2020,1902675318,2666.67,Akcess Ltd ,101402,SN2 ,Neighbourhood & Planning,Mainstream Secondary,Transport Contracts,Third Party Payments,REVENUE
Wiltshire, http://opendatacommunities.org/id/unitary-authority/wiltshire,14/09/2020,1902675319,2960,Akcess Ltd ,101402,SN2 ,Community Services,CTPLD Placements,Transport Contracts,Third Party Payments,REVENUE
Wiltshire, http://opendatacommunities.org/id/unitary-authority/wiltshire,14/09/2020,1902675320,2295.83,Akcess Ltd ,101402,SN2 ,Neighbourhood & Planning,Mainstream Primary,Transport Contracts,Third Party Payments,REVENUE
Wiltshire, http://opendatacommunities.org/id/unitary-authority/wiltshire,14/09/2020,1902675321,12948,Akcess Ltd ,101402,SN2 ,Neighbourhood & Planning,SEN Secondary Tspt,Transport Contracts,Third Party Payments,REVENUE
Wiltshire, http://opendatacommunities.org/id/unitary-authority/wiltshire,08/09/2020,1902672710,18212.88,Alabare Christian Care Centre ,100837,SP2 ,Community Services,CTPLD Placements,Other Social & Welfare Costs,Third Party Payments,REVENUE
Wiltshire, http://opendatacommunities.org/id/unitary-authority/wiltshire,15/09/2020,1902674347,1009.84,Alabare Christian Care Centre ,100837,SP2 ,Community Services,CTPLD Placements,Supported Living,Third Party Payments,REVENUE
Wiltshire, http://opendatacommunities.org/id/unitary-authority/wiltshire,15/09/2020,1902674348,1453.92,Alabare Christian Care Centre ,100837,SP2 ,Community Services,CTPLD Placements,Supported Living,Third Party Payments,REVENUE
Wiltshire, http://opendatacommunities.org/id/unitary-authority/wiltshire,15/09/2020,1902674352,1508.4,Alabare Christian Care Centre ,100837,SP2 ,Community Services,CTPLD Placements,Supported Living,Third Party Payments,REVENUE
Wiltshire, http://opendatacommunities.org/id/unitary-authority/wiltshire,15/09/2020,1902674353,1752,Alabare Christian Care Centre ,100837,SP2 ,Community Services,CTPLD Placements,Supported Living,Third Party Payments,REVENUE
Wiltshire, http://opendatacommunities.org/id/unitary-authority/wiltshire,15/09/2020,1902674354,1868.68,Alabare Christian Care Centre ,100837,SP2 ,Community Services,CTPLD Placements,Supported Living,Third Party Payments,REVENUE
Wiltshire, http://opendatacommunities.org/id/unitary-authority/wiltshire,15/09/2020,1902674355,1956.16,Alabare Christian Care Centre ,100837,SP2 ,Community Services,CTPLD Placements,Supported Living,Third Party Payments,REVENUE
Wiltshire, http://opendatacommunities.org/id/unitary-authority/wiltshire,15/09/2020,1902674356,2143.52,Alabare Christian Care Centre ,100837,SP2 ,Community Services,CTPLD Placements,Supported Living,Third Party Payments,REVENUE
Wiltshire, http://opendatacommunities.org/id/unitary-authority/wiltshire,15/09/2020,1902674359,2204.76,Alabare Christian Care Centre ,100837,SP2 ,Community Services,CTPLD Placements,Supported Living,Third Party Payments,REVENUE
Wiltshire, http://opendatacommunities.org/id/unitary-authority/wiltshire,15/09/2020,1902674360,2229.12,Alabare Christian Care Centre ,100837,SP2 ,Community Services,CTPLD Placements,Supported Living,Third Party Payments,REVENUE
Wiltshire, http://opendatacommunities.org/id/unitary-authority/wiltshire,15/09/2020,1902674361,2234.76,Alabare Christian Care Centre ,100837,SP2 ,Community Services,CTPLD Placements,Supported Living,Third Party Payments,REVENUE
Wiltshire, http://opendatacommunities.org/id/unitary-authority/wiltshire,15/09/2020,1902674362,2287.12,Alabare Christian Care Centre ,100837,SP2 ,Community Services,CTPLD Placements,Supported Living,Third Party Payments,REVENUE
Wiltshire, http://opendatacommunities.org/id/unitary-authority/wiltshire,15/09/2020,1902674363,2339.96,Alabare Christian Care Centre ,100837,SP2 ,Community Services,CTPLD Placements,Supported Living,Third Party Payments,REVENUE
Wiltshire, http://opendatacommunities.org/id/unitary-authority/wiltshire,15/09/2020,1902674364,2522.2,Alabare Christian Care Centre ,100837,SP2 ,Community Services,CTPLD Placements,Supported Living,Third Party Payments,REVENUE
Wiltshire, http://opendatacommunities.org/id/unitary-authority/wiltshire,15/09/2020,1902674365,255.56,Alabare Christian Care Centre ,100837,SP2 ,Community Services,CTPLD Placements,Supported Living,Third Party Payments,REVENUE
Wiltshire, http://opendatacommunities.org/id/unitary-authority/wiltshire,15/09/2020,1902674366,2683.56,Alabare Christian Care Centre ,100837,SP2 ,Community Services,CTPLD Placements,Supported Living,Third Party Payments,REVENUE
Wiltshire, http://opendatacommunities.org/id/unitary-authority/wiltshire,15/09/2020,1902674367,2889.48,Alabare Christian Care Centre ,100837,SP2 ,Community Services,CTPLD Placements,Supported Living,Third Party Payments,REVENUE
Wiltshire, http://opendatacommunities.org/id/unitary-authority/wiltshire,15/09/2020,1902674368,2966.4,Alabare Christian Care Centre ,100837,SP2 ,Community Services,CTPLD Placements,Supported Living,Third Party Payments,REVENUE
Wiltshire, http://opendatacommunities.org/id/unitary-authority/wiltshire,15/09/2020,1902674369,3128.68,Alabare Christian Care Centre ,100837,SP2 ,Community Services,CTPLD Placements,Supported Living,Third Party Payments,REVENUE
Wiltshire, http://opendatacommunities.org/id/unitary-authority/wiltshire,15/09/2020,1902674370,3158.64,Alabare Christian Care Centre ,100837,SP2 ,Community Services,CTPLD Placements,Supported Living,Third Party Payments,REVENUE
Wiltshire, http://opendatacommunities.org/id/unitary-authority/wiltshire,15/09/2020,1902674371,3403.2,Alabare Christian Care Centre ,100837,SP2 ,Community Services,CTPLD Placements,Supported Living,Third Party Payments,REVENUE
Wiltshire, http://opendatacommunities.org/id/unitary-authority/wiltshire,15/09/2020,1902674372,3566.68,Alabare Christian Care Centre ,100837,SP2 ,Community Services,CTPLD Placements,Supported Living,Third Party Payments,REVENUE
Wiltshire, http://opendatacommunities.org/id/unitary-authority/wiltshire,15/09/2020,1902674373,3568.52,Alabare Christian Care Centre ,100837,SP2 ,Community Services,CTPLD Placements,Supported Living,Third Party Payments,REVENUE
Wiltshire, http://opendatacommunities.org/id/unitary-authority/wiltshire,15/09/2020,1902674374,3586.68,Alabare Christian Care Centre ,100837,SP2 ,Community Services,CTPLD Placements,Supported Living,Third Party Payments,REVENUE
Wiltshire, http://opendatacommunities.org/id/unitary-authority/wiltshire,15/09/2020,1902674375,365,Alabare Christian Care Centre ,100837,SP2 ,Community Services,MH AOWA South Locali,Supported Living,Third Party Payments,REVENUE
Wiltshire, http://opendatacommunities.org/id/unitary-authority/wiltshire,15/09/2020,1902674376,365,Alabare Christian Care Centre ,100837,SP2 ,Community Services,CTPLD Placements,Supported Living,Third Party Payments,REVENUE
Wiltshire, http://opendatacommunities.org/id/unitary-authority/wiltshire,15/09/2020,1902674377,3822.2,Alabare Christian Care Centre ,100837,SP2 ,Community Services,CTPLD Placements,Supported Living,Third Party Payments,REVENUE
Wiltshire, http://opendatacommunities.org/id/unitary-authority/wiltshire,15/09/2020,1902674378,401.52,Alabare Christian Care Centre ,100837,SP2 ,Community Services,CTPLD Placements,Supported Living,Third Party Payments,REVENUE
Wiltshire, http://opendatacommunities.org/id/unitary-authority/wiltshire,15/09/2020,1902674379,401.52,Alabare Christian Care Centre ,100837,SP2 ,Community Services,MH AOWA South Locali,Supported Living,Third Party Payments,REVENUE
Wiltshire, http://opendatacommunities.org/id/unitary-authority/wiltshire,15/09/2020,1902674380,4077.68,Alabare Christian Care Centre ,100837,SP2 ,Community Services,CTPLD Placements,Supported Living,Third Party Payments,REVENUE
Wiltshire, http://opendatacommunities.org/id/unitary-authority/wiltshire,15/09/2020,1902674381,4189.28,Alabare Christian Care Centre ,100837,SP2 ,Community Services,CTPLD Placements,Supported Living,Third Party Payments,REVENUE
Wiltshire, http://opendatacommunities.org/id/unitary-authority/wiltshire,15/09/2020,1902674382,438,Alabare Christian Care Centre ,100837,SP2 ,Community Services,MH AOWA South Locali,Supported Living,Third Party Payments,REVENUE
Wiltshire, http://opendatacommunities.org/id/unitary-authority/wiltshire,15/09/2020,1902674383,511,Alabare Christian Care Centre ,100837,SP2 ,Community Services,CTPLD Placements,Supported Living,Third Party Payments,REVENUE
Wiltshire, http://opendatacommunities.org/id/unitary-authority/wiltshire,15/09/2020,1902674384,511,Alabare Christian Care Centre ,100837,SP2 ,Community Services,MH AOWA South Locali,Supported Living,Third Party Payments,REVENUE
Wiltshire, http://opendatacommunities.org/id/unitary-authority/wiltshire,15/09/2020,1902674385,545.16,Alabare Christian Care Centre ,100837,SP2 ,Community Services,CTPLD Placements,Supported Living,Third Party Payments,REVENUE
Wiltshire, http://opendatacommunities.org/id/unitary-authority/wiltshire,15/09/2020,1902674386,644.84,Alabare Christian Care Centre ,100837,SP2 ,Community Services,CTPLD Placements,Supported Living,Third Party Payments,REVENUE
Wiltshire, http://opendatacommunities.org/id/unitary-authority/wiltshire,15/09/2020,1902674387,657,Alabare Christian Care Centre ,100837,SP2 ,Community Services,South Care Packages,Supported Living,Third Party Payments,REVENUE
Wiltshire, http://opendatacommunities.org/id/unitary-authority/wiltshire,15/09/2020,1902674389,766.52,Alabare Christian Care Centre ,100837,SP2 ,Community Services,CTPLD Placements,Supported Living,Third Party Payments,REVENUE
Wiltshire, http://opendatacommunities.org/id/unitary-authority/wiltshire,15/09/2020,1902674390,803,Alabare Christian Care Centre ,100837,SP2 ,Community Services,MH AOWA South Locali,Supported Living,Third Party Payments,REVENUE
Wiltshire, http://opendatacommunities.org/id/unitary-authority/wiltshire,15/09/2020,1902674391,9098.72,Alabare Christian Care Centre ,100837,SP2 ,Community Services,CTPLD Placements,Supported Living,Third Party Payments,REVENUE
Wiltshire, http://opendatacommunities.org/id/unitary-authority/wiltshire,15/09/2020,1902674392,955.08,Alabare Christian Care Centre ,100837,SP2 ,Community Services,CTPLD Placements,Supported Living,Third Party Payments,REVENUE
Wiltshire, http://opendatacommunities.org/id/unitary-authority/wiltshire,16/09/2020,1902678859,560,Alabare Christian Care Centre ,100837,SP2 ,Community Services,MH AOWA South Locali,Adult Day Care Contracts,Third Party Payments,REVENUE
Wiltshire, http://opendatacommunities.org/id/unitary-authority/wiltshire,16/09/2020,1902678860,400,Alabare Christian Care Centre ,100837,SP2 ,Community Services,CTPLD Placements,Adult Day Care Contracts,Third Party Payments,REVENUE
Wiltshire, http://opendatacommunities.org/id/unitary-authority/wiltshire,16/09/2020,1902678863,360,Alabare Christian Care Centre ,100837,SP2 ,Community Services,CTPLD Placements,Adult Day Care Contracts,Third Party Payments,REVENUE
Wiltshire, http://opendatacommunities.org/id/unitary-authority/wiltshire,16/09/2020,1902678866,560,Alabare Christian Care Centre ,100837,SP2 ,Community Services,MH AOWA South Locali,Adult Day Care Contracts,Third Party Payments,REVENUE
Wiltshire, http://opendatacommunities.org/id/unitary-authority/wiltshire,16/09/2020,1902678868,360,Alabare Christian Care Centre ,100837,SP2 ,Community Services,MH AOWA N&E Locality,Adult Day Care Contracts,Third Party Payments,REVENUE
Wiltshire, http://opendatacommunities.org/id/unitary-authority/wiltshire,16/09/2020,1902678869,400,Alabare Christian Care Centre ,100837,SP2 ,Community Services,CTPLD Placements,Adult Day Care Contracts,Third Party Payments,REVENUE
Wiltshire, http://opendatacommunities.org/id/unitary-authority/wiltshire,16/09/2020,1902678870,560,Alabare Christian Care Centre ,100837,SP2 ,Community Services,MH AOWA South Locali,Adult Day Care Contracts,Third Party Payments,REVENUE
Wiltshire, http://opendatacommunities.org/id/unitary-authority/wiltshire,16/09/2020,1902678872,720,Alabare Christian Care Centre ,100837,SP2 ,Community Services,South Care Packages,Adult Day Care Contracts,Third Party Payments,REVENUE
Wiltshire, http://opendatacommunities.org/id/unitary-authority/wiltshire,16/09/2020,1902678875,560,Alabare Christian Care Centre ,100837,SP2 ,Community Services,CTPLD Placements,Adult Day Care Contracts,Third Party Payments,REVENUE
Wiltshire, http://opendatacommunities.org/id/unitary-authority/wiltshire,16/09/2020,1902678877,520,Alabare Christian Care Centre ,100837,SP2 ,Community Services,MH AOWA South Locali,Adult Day Care Contracts,Third Party Payments,REVENUE
Wiltshire, http://opendatacommunities.org/id/unitary-authority/wiltshire,16/09/2020,1902678878,320,Alabare Christian Care Centre ,100837,SP2 ,Community Services,CTPLD Placements,Adult Day Care Contracts,Third Party Payments,REVENUE
Wiltshire, http://opendatacommunities.org/id/unitary-authority/wiltshire,16/09/2020,1902678881,360,Alabare Christian Care Centre ,100837,SP2 ,Community Services,CTPLD Placements,Adult Day Care Contracts,Third Party Payments,REVENUE
Wiltshire, http://opendatacommunities.org/id/unitary-authority/wiltshire,16/09/2020,1902678884,520,Alabare Christian Care Centre ,100837,SP2 ,Community Services,MH AOWA South Locali,Adult Day Care Contracts,Third Party Payments,REVENUE
Wiltshire, http://opendatacommunities.org/id/unitary-authority/wiltshire,16/09/2020,1902678886,360,Alabare Christian Care Centre ,100837,SP2 ,Community Services,MH AOWA N&E Locality,Adult Day Care Contracts,Third Party Payments,REVENUE
Wiltshire, http://opendatacommunities.org/id/unitary-authority/wiltshire,16/09/2020,1902678887,320,Alabare Christian Care Centre ,100837,SP2 ,Community Services,CTPLD Placements,Adult Day Care Contracts,Third Party Payments,REVENUE
Wiltshire, http://opendatacommunities.org/id/unitary-authority/wiltshire,16/09/2020,1902678888,520,Alabare Christian Care Centre ,100837,SP2 ,Community Services,MH AOWA South Locali,Adult Day Care Contracts,Third Party Payments,REVENUE
Wiltshire, http://opendatacommunities.org/id/unitary-authority/wiltshire,16/09/2020,1902678890,720,Alabare Christian Care Centre ,100837,SP2 ,Community Services,South Care Packages,Adult Day Care Contracts,Third Party Payments,REVENUE
Wiltshire, http://opendatacommunities.org/id/unitary-authority/wiltshire,16/09/2020,1902678893,520,Alabare Christian Care Centre ,100837,SP2 ,Community Services,CTPLD Placements,Adult Day Care Contracts,Third Party Payments,REVENUE
Wiltshire, http://opendatacommunities.org/id/unitary-authority/wiltshire,08/09/2020,5107417559,3770.61,Alabare Christian Care Centre ,100837,SP2 ,Children & Education,16-25 Supp & Accom,Childrens Agency Placement,Third Party Payments,REVENUE
Wiltshire, http://opendatacommunities.org/id/unitary-authority/wiltshire,08/09/2020,5107417711,1874.11,Alabare Christian Care Centre ,100837,SP2 ,Children & Education,16-25 Supp & Accom,Childrens Agency Placement,Third Party Payments,REVENUE
Wiltshire, http://opendatacommunities.org/id/unitary-authority/wiltshire,08/09/2020,5107417712,3353.97,Alabare Christian Care Centre ,100837,SP2 ,Children & Education,16-25 Supp & Accom,Childrens Agency Placement,Third Party Payments,REVENUE
Wiltshire, http://opendatacommunities.org/id/unitary-authority/wiltshire,08/09/2020,5107417713,3982.27,Alabare Christian Care Centre ,100837,SP2 ,Children & Education,16-25 Supp & Accom,Childrens Agency Placement,Third Party Payments,REVENUE
Wiltshire, http://opendatacommunities.org/id/unitary-authority/wiltshire,08/09/2020,5107417714,4246.95,Alabare Christian Care Centre ,100837,SP2 ,Children & Education,16-25 Supp & Accom,Childrens Agency Placement,Third Party Payments,REVENUE
Wiltshire, http://opendatacommunities.org/id/unitary-authority/wiltshire,08/09/2020,5107417716,2904.43,Alabare Christian Care Centre ,100837,SP2 ,Children & Education,16-25 Supp & Accom,Childrens Agency Placement,Third Party Payments,REVENUE
Wiltshire, http://opendatacommunities.org/id/unitary-authority/wiltshire,08/09/2020,5107417717,1675.28,Alabare Christian Care Centre ,100837,SP2 ,Children & Education,UASC Under 18 Years,Childrens Agency Placement,Third Party Payments,REVENUE
Wiltshire, http://opendatacommunities.org/id/unitary-authority/wiltshire,08/09/2020,5107417718,2162.84,Alabare Christian Care Centre ,100837,SP2 ,Children & Education,UASC Under 18 Years,Childrens Agency Placement,Third Party Payments,REVENUE
Wiltshire, http://opendatacommunities.org/id/unitary-authority/wiltshire,08/09/2020,5107417719,2994.33,Alabare Christian Care Centre ,100837,SP2 ,Children & Education,16-25 Supp & Accom,Childrens Agency Placement,Third Party Payments,REVENUE
Wiltshire, http://opendatacommunities.org/id/unitary-authority/wiltshire,08/09/2020,5107417720,631.76,Alabare Christian Care Centre ,100837,SP2 ,Children & Education,16-25 Supp & Accom,Childrens Agency Placement,Third Party Payments,REVENUE
Wiltshire, http://opendatacommunities.org/id/unitary-authority/wiltshire,08/09/2020,5107417721,2758.54,Alabare Christian Care Centre ,100837,SP2 ,Children & Education,16-25 Supp & Accom,Childrens Agency Placement,Third Party Payments,REVENUE
Wiltshire, http://opendatacommunities.org/id/unitary-authority/wiltshire,08/09/2020,5107417722,1874.11,Alabare Christian Care Centre ,100837,SP2 ,Children & Education,UASC Under 18 Years,Childrens Agency Placement,Third Party Payments,REVENUE
Wiltshire, http://opendatacommunities.org/id/unitary-authority/wiltshire,08/09/2020,5107417723,3578.38,Alabare Christian Care Centre ,100837,SP2 ,Children & Education,16-25 Supp & Accom,Childrens Agency Placement,Third Party Payments,REVENUE
Wiltshire, http://opendatacommunities.org/id/unitary-authority/wiltshire,08/09/2020,5107417724,1166.38,Alabare Christian Care Centre ,100837,SP2 ,Children & Education,16-25 Supp & Accom,Childrens Agency Placement,Third Party Payments,REVENUE
Wiltshire, http://opendatacommunities.org/id/unitary-authority/wiltshire,08/09/2020,5107417725,4246.95,Alabare Christian Care Centre ,100837,SP2 ,Children & Education,16-25 Supp & Accom,Childrens Agency Placement,Third Party Payments,REVENUE
Wiltshire, http://opendatacommunities.org/id/unitary-authority/wiltshire,08/09/2020,5107417726,2895.98,Alabare Christian Care Centre ,100837,SP2 ,Children & Education,16-25 Supp & Accom,Childrens Agency Placement,Third Party Payments,REVENUE
Wiltshire, http://opendatacommunities.org/id/unitary-authority/wiltshire,08/09/2020,5107417727,4246.95,Alabare Christian Care Centre ,100837,SP2 ,Children & Education,UASC Under 18 Years,Childrens Agency Placement,Third Party Payments,REVENUE
Wiltshire, http://opendatacommunities.org/id/unitary-authority/wiltshire,08/09/2020,5107417728,3849.89,Alabare Christian Care Centre ,100837,SP2 ,Children & Education,16-25 Supp & Accom,Childrens Agency Placement,Third Party Payments,REVENUE
Wiltshire, http://opendatacommunities.org/id/unitary-authority/wiltshire,08/09/2020,5107417729,1608.28,Alabare Christian Care Centre ,100837,SP2 ,Children & Education,16-25 Supp & Accom,Childrens Agency Placement,Third Party Payments,REVENUE
Wiltshire, http://opendatacommunities.org/id/unitary-authority/wiltshire,08/09/2020,5107417743,785.4,Alabare Christian Care Centre ,100837,SP2 ,Children & Education,16-25 Supp & Accom,Childrens Agency Placement,Third Party Payments,REVENUE
Wiltshire, http://opendatacommunities.org/id/unitary-authority/wiltshire,14/09/2020,1902675399,278.56,Alabare Christian Care Centres ,113386,SP2 ,Community Services,MH AOWA South Locali,Adult Domiciliary Care,Third Party Payments,REVENUE
Wiltshire, http://opendatacommunities.org/id/unitary-authority/wiltshire,14/09/2020,1902675400,487.48,Alabare Christian Care Centres ,113386,SP2 ,Community Services,CTPLD Placements,Adult Domiciliary Care,Third Party Payments,REVENUE
Wiltshire, http://opendatacommunities.org/id/unitary-authority/wiltshire,14/09/2020,1902675402,841.12,Alabare Christian Care Centres ,113386,SP2 ,Community Services,South Care Packages,Adult Domiciliary Care,Third Party Payments,REVENUE
Wiltshire, http://opendatacommunities.org/id/unitary-authority/wiltshire,16/09/2020,1902678902,3540.8,Alabare Christian Care Centres ,113386,SP2 ,Community Services,MH AOWA South Locali,Adult Domiciliary Care,Third Party Payments,REVENUE
Wiltshire, http://opendatacommunities.org/id/unitary-authority/wiltshire,14/09/2020,1902675255,1472.43,Albino Builders Ltd ,141742,BA4 ,Wiltshire Council,Wiltshire Council,Other Contracts,Third Party Payments,CAPITAL
Wiltshire, http://opendatacommunities.org/id/unitary-authority/wiltshire,15/09/2020,1902673619,3680,Aldbourne Nursing Home ,110090,SN8 ,Community Services,North Care Packages,Adult Care Nursing Placements - Spot,Third Party Payments,REVENUE
Wiltshire, http://opendatacommunities.org/id/unitary-authority/wiltshire,15/09/2020,1902674308,4760,Aldbourne Nursing Home ,110090,SN8 ,Community Services,Home Loans,Adult Residential Placements - Spot Purchase,Third Party Payments,REVENUE
Wiltshire, http://opendatacommunities.org/id/unitary-authority/wiltshire,16/09/2020,1902679037,4760,Aldbourne Nursing Home ,110090,SN8 ,Community Services,Home Loans,Adult Residential Placements - Spot Purchase,Third Party Payments,REVENUE
Wiltshire, http://opendatacommunities.org/id/unitary-authority/wiltshire,15/09/2020,1902673644,6237.48,Alexandra Homes (Bristol) Ltd ,131787,BS15,Community Services,MH AOWA West Localit,Adult Residential Placements - Spot Purchase,Third Party Payments,REVENUE
Wiltshire, http://opendatacommunities.org/id/unitary-authority/wiltshire,02/09/2020,1902670355,464.64,Alina Homecare - Disabilty Support ,139903,BH12,Community Services,West Care Packages,Adult Domiciliary Care Contribution,Income,REVENUE
Wiltshire, http://opendatacommunities.org/id/unitary-authority/wiltshire,02/09/2020,1902670356,464.64,Alina Homecare - Disabilty Support ,139903,BH12,Community Services,West Care Packages,Adult Domiciliary Care Contribution,Income,REVENUE
Wiltshire, http://opendatacommunities.org/id/unitary-authority/wiltshire,02/09/2020,1902670357,464.64,Alina Homecare - Disabilty Support ,139903,BH12,Community Services,West Care Packages,Adult Domiciliary Care Contribution,Income,REVENUE
Wiltshire, http://opendatacommunities.org/id/unitary-authority/wiltshire,02/09/2020,1902670358,464.64,Alina Homecare - Disabilty Support ,139903,BH12,Community Services,West Care Packages,Adult Domiciliary Care Contribution,Income,REVENUE
Wiltshire, http://opendatacommunities.org/id/unitary-authority/wiltshire,02/09/2020,1902670360,282.94,Alina Homecare - Disabilty Support ,139903,BH12,Resources,Covid19 - Hospital D,Adult Domiciliary Care,Third Party Payments,REVENUE
Wiltshire, http://opendatacommunities.org/id/unitary-authority/wiltshire,02/09/2020,1902670361,352.07,Alina Homecare - Disabilty Support ,139903,BH12,Community Services,MH OP West Locality,Adult Domiciliary Care,Third Party Payments,REVENUE
Wiltshire, http://opendatacommunities.org/id/unitary-authority/wiltshire,02/09/2020,1902670364,525.46,Alina Homecare - Disabilty Support ,139903,BH12,Resources,Covid19 - Hospital D,Adult Domiciliary Care,Third Party Payments,REVENUE
Wiltshire, http://opendatacommunities.org/id/unitary-authority/wiltshire,02/09/2020,1902670365,565.88,Alina Homecare - Disabilty Support ,139903,BH12,Resources,Covid19 - Hospital D,Adult Domiciliary Care,Third Party Payments,REVENUE
Wiltshire, http://opendatacommunities.org/id/unitary-authority/wiltshire,02/09/2020,1902670366,565.88,Alina Homecare - Disabilty Support ,139903,BH12,Resources,Covid19 - Hospital D,Adult Domiciliary Care,Third Party Payments,REVENUE
Wiltshire, http://opendatacommunities.org/id/unitary-authority/wiltshire,02/09/2020,1902670369,995.86,Alina Homecare - Disabilty Support ,139903,BH12,Resources,Covid19 - Hospital D,Adult Domiciliary Care,Third Party Payments,REVENUE
Wiltshire, http://opendatacommunities.org/id/unitary-authority/wiltshire,02/09/2020,1902670370,1386.28,Alina Homecare - Disabilty Support ,139903,BH12,Community Services,West Care Packages,Adult Domiciliary Care,Third Party Payments,REVENUE
Wiltshire, http://opendatacommunities.org/id/unitary-authority/wiltshire,02/09/2020,1902670371,1414.7,Alina Homecare - Disabilty Support ,139903,BH12,Community Services,South Care Packages,Adult Domiciliary Care,Third Party Payments,REVENUE
Wiltshire, http://opendatacommunities.org/id/unitary-authority/wiltshire,02/09/2020,1902670372,1414.7,Alina Homecare - Disabilty Support ,139903,BH12,Community Services,South Care Packages,Adult Domiciliary Care,Third Party Payments,REVENUE
Wiltshire, http://opendatacommunities.org/id/unitary-authority/wiltshire,02/09/2020,1902670373,353.68,Alina Homecare - Disabilty Support ,139903,BH12,Community Services,South Care Packages,Adult Domiciliary Care,Third Party Payments,REVENUE
Wiltshire, http://opendatacommunities.org/id/unitary-authority/wiltshire,02/09/2020,1902670374,359.72,Alina Homecare - Disabilty Support ,139903,BH12,Community Services,West Care Packages,Adult Domiciliary Care,Third Party Payments,REVENUE
Wiltshire, http://opendatacommunities.org/id/unitary-authority/wiltshire,07/09/2020,1902672277,1711.36,Alina Homecare - Disabilty Support ,139903,BH12,Community Services,North Care Packages,Adult Domiciliary Care,Third Party Payments,REVENUE
Wiltshire, http://opendatacommunities.org/id/unitary-authority/wiltshire,07/09/2020,1902672278,1711.36,Alina Homecare - Disabilty Support ,139903,BH12,Community Services,MH AOWA West Localit,Adult Domiciliary Care,Third Party Payments,REVENUE
Wiltshire, http://opendatacommunities.org/id/unitary-authority/wiltshire,07/09/2020,1902672279,1796.48,Alina Homecare - Disabilty Support ,139903,BH12,Community Services,West Care Packages,Adult Domiciliary Care,Third Party Payments,REVENUE
Wiltshire, http://opendatacommunities.org/id/unitary-authority/wiltshire,07/09/2020,1902672280,2093.28,Alina Homecare - Disabilty Support ,139903,BH12,Community Services,West Care Packages,Adult Domiciliary Care,Third Party Payments,REVENUE
Wiltshire, http://opendatacommunities.org/id/unitary-authority/wiltshire,07/09/2020,1902672281,2879.26,Alina Homecare - Disabilty Support ,139903,BH12,Community Services,MH OP West Locality,Adult Domiciliary Care,Third Party Payments,REVENUE
Wiltshire, http://opendatacommunities.org/id/unitary-authority/wiltshire,07/09/2020,1902672282,323.36,Alina Homecare - Disabilty Support ,139903,BH12,Community Services,CTPLD Placements,Adult Domiciliary Care,Third Party Payments,REVENUE
Wiltshire, http://opendatacommunities.org/id/unitary-authority/wiltshire,07/09/2020,1902672283,3422.72,Alina Homecare - Disabilty Support ,139903,BH12,Resources,Covid19 - Hospital D,Adult Domiciliary Care,Third Party Payments,REVENUE
Wiltshire, http://opendatacommunities.org/id/unitary-authority/wiltshire,07/09/2020,1902672284,343.4,Alina Homecare - Disabilty Support ,139903,BH12,Community Services,West Care Packages,Adult Domiciliary Care,Third Party Payments,REVENUE
Wiltshire, http://opendatacommunities.org/id/unitary-authority/wiltshire,07/09/2020,1902672285,444.62,Alina Homecare - Disabilty Support ,139903,BH12,Community Services,West Care Packages,Adult Domiciliary Care,Third Party Payments,REVENUE
Wiltshire, http://opendatacommunities.org/id/unitary-authority/wiltshire,07/09/2020,1902672286,485.04,Alina Homecare - Disabilty Support ,139903,BH12,Community Services,West Care Packages,Adult Domiciliary Care,Third Party Payments,REVENUE
Wiltshire, http://opendatacommunities.org/id/unitary-authority/wiltshire,07/09/2020,1902672287,565.88,Alina Homecare - Disabilty Support ,139903,BH12,Community Services,West Care Packages,Adult Domiciliary Care,Third Party Payments,REVENUE
Wiltshire, http://opendatacommunities.org/id/unitary-authority/wiltshire,07/09/2020,1902672288,565.88,Alina Homecare - Disabilty Support ,139903,BH12,Community Services,West Care Packages,Adult Domiciliary Care,Third Party Payments,REVENUE
Wiltshire, http://opendatacommunities.org/id/unitary-authority/wiltshire,07/09/2020,1902672289,565.88,Alina Homecare - Disabilty Support ,139903,BH12,Community Services,MH OP West Locality,Adult Domiciliary Care,Third Party Payments,REVENUE
Wiltshire, http://opendatacommunities.org/id/unitary-authority/wiltshire,07/09/2020,1902672291,842.64,Alina Homecare - Disabilty Support ,139903,BH12,Community Services,West Care Packages,Adult Domiciliary Care,Third Party Payments,REVENUE
Wiltshire, http://opendatacommunities.org/id/unitary-authority/wiltshire,07/09/2020,1902672292,850.64,Alina Homecare - Disabilty Support ,139903,BH12,Community Services,MH OP West Locality,Adult Domiciliary Care,Third Party Payments,REVENUE
Wiltshire, http://opendatacommunities.org/id/unitary-authority/wiltshire,07/09/2020,1902672293,1006.44,Alina Homecare - Disabilty Support ,139903,BH12,Community Services,CTPLD Placements,Adult Domiciliary Care,Third Party Payments,REVENUE
Wiltshire, http://opendatacommunities.org/id/unitary-authority/wiltshire,07/09/2020,1902672294,1050.92,Alina Homecare - Disabilty Support ,139903,BH12,Community Services,West Care Packages,Adult Domiciliary Care,Third Party Payments,REVENUE
Wiltshire, http://opendatacommunities.org/id/unitary-authority/wiltshire,07/09/2020,1902672295,1386.28,Alina Homecare - Disabilty Support ,139903,BH12,Community Services,West Care Packages,Adult Domiciliary Care,Third Party Payments,REVENUE
Wiltshire, http://opendatacommunities.org/id/unitary-authority/wiltshire,07/09/2020,1902672296,1414.7,Alina Homecare - Disabilty Support ,139903,BH12,Community Services,South Care Packages,Adult Domiciliary Care,Third Party Payments,REVENUE
Wiltshire, http://opendatacommunities.org/id/unitary-authority/wiltshire,07/09/2020,1902672297,1527.4,Alina Homecare - Disabilty Support ,139903,BH12,Community Services,North Care Packages,Adult Domiciliary Care,Third Party Payments,REVENUE
Wiltshire, http://opendatacommunities.org/id/unitary-authority/wiltshire,07/09/2020,1902672298,1576.38,Alina Homecare - Disabilty Support ,139903,BH12,Community Services,CTPLD Placements,Adult Domiciliary Care,Third Party Payments,REVENUE
Wiltshire, http://opendatacommunities.org/id/unitary-authority/wiltshire,07/09/2020,1902672299,1711.36,Alina Homecare - Disabilty Support ,139903,BH12,Community Services,South Care Packages,Adult Domiciliary Care,Third Party Payments,REVENUE
Wiltshire, http://opendatacommunities.org/id/unitary-authority/wiltshire,07/09/2020,1902672300,1940.16,Alina Homecare - Disabilty Support ,139903,BH12,Community Services,CTPLD Placements,Adult Domiciliary Care,Third Party Payments,REVENUE
Wiltshire, http://opendatacommunities.org/id/unitary-authority/wiltshire,07/09/2020,1902672302,323.36,Alina Homecare - Disabilty Support ,139903,BH12,Community Services,West Care Packages,Adult Domiciliary Care,Third Party Payments,REVENUE
Wiltshire, http://opendatacommunities.org/id/unitary-authority/wiltshire,07/09/2020,1902672303,359.72,Alina Homecare - Disabilty Support ,139903,BH12,Community Services,West Care Packages,Adult Domiciliary Care,Third Party Payments,REVENUE
Wiltshire, http://opendatacommunities.org/id/unitary-authority/wiltshire,07/09/2020,1902672304,404.2,Alina Homecare - Disabilty Support ,139903,BH12,Community Services,South Care Packages,Adult Domiciliary Care,Third Party Payments,REVENUE
Wiltshire, http://opendatacommunities.org/id/unitary-authority/wiltshire,07/09/2020,1902672305,404.2,Alina Homecare - Disabilty Support ,139903,BH12,Community Services,West Care Packages,Adult Domiciliary Care,Third Party Payments,REVENUE
Wiltshire, http://opendatacommunities.org/id/unitary-authority/wiltshire,07/09/2020,1902672306,485.04,Alina Homecare - Disabilty Support ,139903,BH12,Community Services,CTPLD Placements,Adult Domiciliary Care,Third Party Payments,REVENUE
Wiltshire, http://opendatacommunities.org/id/unitary-authority/wiltshire,07/09/2020,1902672307,808.4,Alina Homecare - Disabilty Support ,139903,BH12,Community Services,CTPLD Placements,Adult Domiciliary Care,Third Party Payments,REVENUE
Wiltshire, http://opendatacommunities.org/id/unitary-authority/wiltshire,07/09/2020,1902672308,890.96,Alina Homecare - Disabilty Support ,139903,BH12,Community Services,South Care Packages,Adult Domiciliary Care,Third Party Payments,REVENUE
Wiltshire, http://opendatacommunities.org/id/unitary-authority/wiltshire,07/09/2020,1902672309,1052.64,Alina Homecare - Disabilty Support ,139903,BH12,Community Services,South Care Packages,Adult Domiciliary Care,Third Party Payments,REVENUE
Wiltshire, http://opendatacommunities.org/id/unitary-authority/wiltshire,07/09/2020,1902672310,1796.48,Alina Homecare - Disabilty Support ,139903,BH12,Community Services,South Care Packages,Adult Domiciliary Care,Third Party Payments,REVENUE
Wiltshire, http://opendatacommunities.org/id/unitary-authority/wiltshire,07/09/2020,1902672311,890.96,Alina Homecare - Disabilty Support ,139903,BH12,Community Services,South Care Packages,Adult Domiciliary Care,Third Party Payments,REVENUE
Wiltshire, http://opendatacommunities.org/id/unitary-authority/wiltshire,15/09/2020,1902674759,617.8,Alina Homecare - Disabilty Support ,139903,BH12,Community Services,CTPLD Placements,Supported Living Contribution,Income,REVENUE
Wiltshire, http://opendatacommunities.org/id/unitary-authority/wiltshire,15/09/2020,1902674760,617.8,Alina Homecare - Disabilty Support ,139903,BH12,Community Services,CTPLD Placements,Supported Living Contribution,Income,REVENUE
Wiltshire, http://opendatacommunities.org/id/unitary-authority/wiltshire,15/09/2020,1902674761,617.8,Alina Homecare - Disabilty Support ,139903,BH12,Community Services,CTPLD Placements,Supported Living Contribution,Income,REVENUE
Wiltshire, http://opendatacommunities.org/id/unitary-authority/wiltshire,15/09/2020,1902674762,617.8,Alina Homecare - Disabilty Support ,139903,BH12,Community Services,CTPLD Placements,Supported Living Contribution,Income,REVENUE
Wiltshire, http://opendatacommunities.org/id/unitary-authority/wiltshire,15/09/2020,1902674763,617.8,Alina Homecare - Disabilty Support ,139903,BH12,Community Services,CTPLD Placements,Supported Living Contribution,Income,REVENUE
Wiltshire, http://opendatacommunities.org/id/unitary-authority/wiltshire,15/09/2020,1902674764,617.8,Alina Homecare - Disabilty Support ,139903,BH12,Community Services,CTPLD Placements,Supported Living Contribution,Income,REVENUE
Wiltshire, http://opendatacommunities.org/id/unitary-authority/wiltshire,15/09/2020,1902674765,617.8,Alina Homecare - Disabilty Support ,139903,BH12,Community Services,CTPLD Placements,Supported Living Contribution,Income,REVENUE
Wiltshire, http://opendatacommunities.org/id/unitary-authority/wiltshire,15/09/2020,1902674766,16450.56,Alina Homecare - Disabilty Support ,139903,BH12,Community Services,CTPLD Placements,Supported Living,Third Party Payments,REVENUE
Wiltshire, http://opendatacommunities.org/id/unitary-authority/wiltshire,15/09/2020,1902674767,2074.82,Alina Homecare - Disabilty Support ,139903,BH12,Community Services,CTPLD Placements,Supported Living,Third Party Payments,REVENUE
Wiltshire, http://opendatacommunities.org/id/unitary-authority/wiltshire,15/09/2020,1902674768,2117,Alina Homecare - Disabilty Support ,139903,BH12,Community Services,CTPLD Placements,Supported Living,Third Party Payments,REVENUE
Wiltshire, http://opendatacommunities.org/id/unitary-authority/wiltshire,15/09/2020,1902674769,2384.68,Alina Homecare - Disabilty Support ,139903,BH12,Community Services,CTPLD Placements,Supported Living,Third Party Payments,REVENUE
Wiltshire, http://opendatacommunities.org/id/unitary-authority/wiltshire,15/09/2020,1902674770,2801.36,Alina Homecare - Disabilty Support ,139903,BH12,Community Services,CTPLD Placements,Supported Living,Third Party Payments,REVENUE
Wiltshire, http://opendatacommunities.org/id/unitary-authority/wiltshire,15/09/2020,1902674771,3319.36,Alina Homecare - Disabilty Support ,139903,BH12,Community Services,CTPLD Placements,Supported Living,Third Party Payments,REVENUE
Wiltshire, http://opendatacommunities.org/id/unitary-authority/wiltshire,15/09/2020,1902674772,3922.12,Alina Homecare - Disabilty Support ,139903,BH12,Community Services,CTPLD Placements,Supported Living,Third Party Payments,REVENUE
Wiltshire, http://opendatacommunities.org/id/unitary-authority/wiltshire,15/09/2020,1902674773,438,Alina Homecare - Disabilty Support ,139903,BH12,Community Services,CTPLD Placements,Supported Living,Third Party Payments,REVENUE
Wiltshire, http://opendatacommunities.org/id/unitary-authority/wiltshire,15/09/2020,1902674774,4410.72,Alina Homecare - Disabilty Support ,139903,BH12,Community Services,CTPLD Placements,Supported Living,Third Party Payments,REVENUE
Wiltshire, http://opendatacommunities.org/id/unitary-authority/wiltshire,15/09/2020,1902674775,4433.16,Alina Homecare - Disabilty Support ,139903,BH12,Community Services,CTPLD Placements,Supported Living,Third Party Payments,REVENUE
Wiltshire, http://opendatacommunities.org/id/unitary-authority/wiltshire,15/09/2020,1902674776,4468.84,Alina Homecare - Disabilty Support ,139903,BH12,Community Services,CTPLD Placements,Supported Living,Third Party Payments,REVENUE
Wiltshire, http://opendatacommunities.org/id/unitary-authority/wiltshire,15/09/2020,1902674777,4468.84,Alina Homecare - Disabilty Support ,139903,BH12,Community Services,CTPLD Placements,Supported Living,Third Party Payments,REVENUE
Wiltshire, http://opendatacommunities.org/id/unitary-authority/wiltshire,15/09/2020,1902674778,4939.72,Alina Homecare - Disabilty Support ,139903,BH12,Community Services,CTPLD Placements,Supported Living,Third Party Payments,REVENUE
Wiltshire, http://opendatacommunities.org/id/unitary-authority/wiltshire,15/09/2020,1902674779,6374.24,Alina Homecare - Disabilty Support ,139903,BH12,Community Services,CTPLD Placements,Supported Living,Third Party Payments,REVENUE
Wiltshire, http://opendatacommunities.org/id/unitary-authority/wiltshire,15/09/2020,1902674780,9575.56,Alina Homecare - Disabilty Support ,139903,BH12,Community Services,CTPLD Placements,Supported Living,Third Party Payments,REVENUE
Wiltshire, http://opendatacommunities.org/id/unitary-authority/wiltshire,22/09/2020,1902681277,1711.36,Alina Homecare - Disabilty Support ,139903,BH12,Community Services,North Care Packages,Adult Domiciliary Care,Third Party Payments,REVENUE
Wiltshire, http://opendatacommunities.org/id/unitary-authority/wiltshire,22/09/2020,1902681278,1711.36,Alina Homecare - Disabilty Support ,139903,BH12,Community Services,MH AOWA West Localit,Adult Domiciliary Care,Third Party Payments,REVENUE
Wiltshire, http://opendatacommunities.org/id/unitary-authority/wiltshire,22/09/2020,1902681279,1796.48,Alina Homecare - Disabilty Support ,139903,BH12,Community Services,West Care Packages,Adult Domiciliary Care,Third Party Payments,REVENUE
Wiltshire, http://opendatacommunities.org/id/unitary-authority/wiltshire,22/09/2020,1902681280,2879.26,Alina Homecare - Disabilty Support ,139903,BH12,Community Services,MH OP West Locality,Adult Domiciliary Care,Third Party Payments,REVENUE
Wiltshire, http://opendatacommunities.org/id/unitary-authority/wiltshire,22/09/2020,1902681281,323.36,Alina Homecare - Disabilty Support ,139903,BH12,Community Services,CTPLD Placements,Adult Domiciliary Care,Third Party Payments,REVENUE
Wiltshire, http://opendatacommunities.org/id/unitary-authority/wiltshire,22/09/2020,1902681282,343.4,Alina Homecare - Disabilty Support ,139903,BH12,Community Services,West Care Packages,Adult Domiciliary Care,Third Party Payments,REVENUE
Wiltshire, http://opendatacommunities.org/id/unitary-authority/wiltshire,22/09/2020,1902681283,444.62,Alina Homecare - Disabilty Support ,139903,BH12,Community Services,West Care Packages,Adult Domiciliary Care,Third Party Payments,REVENUE
Wiltshire, http://opendatacommunities.org/id/unitary-authority/wiltshire,22/09/2020,1902681284,485.04,Alina Homecare - Disabilty Support ,139903,BH12,Community Services,West Care Packages,Adult Domiciliary Care,Third Party Payments,REVENUE
Wiltshire, http://opendatacommunities.org/id/unitary-authority/wiltshire,22/09/2020,1902681285,565.88,Alina Homecare - Disabilty Support ,139903,BH12,Community Services,West Care Packages,Adult Domiciliary Care,Third Party Payments,REVENUE
Wiltshire, http://opendatacommunities.org/id/unitary-authority/wiltshire,22/09/2020,1902681286,565.88,Alina Homecare - Disabilty Support ,139903,BH12,Community Services,West Care Packages,Adult Domiciliary Care,Third Party Payments,REVENUE
Wiltshire, http://opendatacommunities.org/id/unitary-authority/wiltshire,22/09/2020,1902681287,565.88,Alina Homecare - Disabilty Support ,139903,BH12,Community Services,MH OP West Locality,Adult Domiciliary Care,Third Party Payments,REVENUE
Wiltshire, http://opendatacommunities.org/id/unitary-authority/wiltshire,22/09/2020,1902681289,842.64,Alina Homecare - Disabilty Support ,139903,BH12,Community Services,West Care Packages,Adult Domiciliary Care,Third Party Payments,REVENUE
Wiltshire, http://opendatacommunities.org/id/unitary-authority/wiltshire,22/09/2020,1902681290,850.64,Alina Homecare - Disabilty Support ,139903,BH12,Community Services,MH OP West Locality,Adult Domiciliary Care,Third Party Payments,REVENUE
Wiltshire, http://opendatacommunities.org/id/unitary-authority/wiltshire,22/09/2020,1902681291,1006.44,Alina Homecare - Disabilty Support ,139903,BH12,Community Services,CTPLD Placements,Adult Domiciliary Care,Third Party Payments,REVENUE
Wiltshire, http://opendatacommunities.org/id/unitary-authority/wiltshire,22/09/2020,1902681292,1050.92,Alina Homecare - Disabilty Support ,139903,BH12,Community Services,West Care Packages,Adult Domiciliary Care,Third Party Payments,REVENUE
Wiltshire, http://opendatacommunities.org/id/unitary-authority/wiltshire,22/09/2020,1902681293,1386.28,Alina Homecare - Disabilty Support ,139903,BH12,Community Services,West Care Packages,Adult Domiciliary Care,Third Party Payments,REVENUE
Wiltshire, http://opendatacommunities.org/id/unitary-authority/wiltshire,22/09/2020,1902681294,1527.4,Alina Homecare - Disabilty Support ,139903,BH12,Community Services,North Care Packages,Adult Domiciliary Care,Third Party Payments,REVENUE
Wiltshire, http://opendatacommunities.org/id/unitary-authority/wiltshire,22/09/2020,1902681295,1576.38,Alina Homecare - Disabilty Support ,139903,BH12,Community Services,CTPLD Placements,Adult Domiciliary Care,Third Party Payments,REVENUE
Wiltshire, http://opendatacommunities.org/id/unitary-authority/wiltshire,22/09/2020,1902681296,1711.36,Alina Homecare - Disabilty Support ,139903,BH12,Community Services,South Care Packages,Adult Domiciliary Care,Third Party Payments,REVENUE
Wiltshire, http://opendatacommunities.org/id/unitary-authority/wiltshire,22/09/2020,1902681297,1768.38,Alina Homecare - Disabilty Support ,139903,BH12,Community Services,South Care Packages,Adult Domiciliary Care,Third Party Payments,REVENUE
Wiltshire, http://opendatacommunities.org/id/unitary-authority/wiltshire,22/09/2020,1902681298,1940.16,Alina Homecare - Disabilty Support ,139903,BH12,Community Services,CTPLD Placements,Adult Domiciliary Care,Third Party Payments,REVENUE
Wiltshire, http://opendatacommunities.org/id/unitary-authority/wiltshire,22/09/2020,1902681299,1980.58,Alina Homecare - Disabilty Support ,139903,BH12,Community Services,South Care Packages,Adult Domiciliary Care,Third Party Payments,REVENUE
Wiltshire, http://opendatacommunities.org/id/unitary-authority/wiltshire,22/09/2020,1902681301,323.36,Alina Homecare - Disabilty Support ,139903,BH12,Community Services,West Care Packages,Adult Domiciliary Care,Third Party Payments,REVENUE
Wiltshire, http://opendatacommunities.org/id/unitary-authority/wiltshire,22/09/2020,1902681302,359.72,Alina Homecare - Disabilty Support ,139903,BH12,Community Services,West Care Packages,Adult Domiciliary Care,Third Party Payments,REVENUE
Wiltshire, http://opendatacommunities.org/id/unitary-authority/wiltshire,22/09/2020,1902681303,404.2,Alina Homecare - Disabilty Support ,139903,BH12,Community Services,South Care Packages,Adult Domiciliary Care,Third Party Payments,REVENUE
Wiltshire, http://opendatacommunities.org/id/unitary-authority/wiltshire,22/09/2020,1902681304,404.2,Alina Homecare - Disabilty Support ,139903,BH12,Community Services,West Care Packages,Adult Domiciliary Care,Third Party Payments,REVENUE
Wiltshire, http://opendatacommunities.org/id/unitary-authority/wiltshire,22/09/2020,1902681305,485.04,Alina Homecare - Disabilty Support ,139903,BH12,Community Services,CTPLD Placements,Adult Domiciliary Care,Third Party Payments,REVENUE
Wiltshire, http://opendatacommunities.org/id/unitary-authority/wiltshire,22/09/2020,1902681306,808.4,Alina Homecare - Disabilty Support ,139903,BH12,Community Services,CTPLD Placements,Adult Domiciliary Care,Third Party Payments,REVENUE
Wiltshire, http://opendatacommunities.org/id/unitary-authority/wiltshire,22/09/2020,1902681307,890.96,Alina Homecare - Disabilty Support ,139903,BH12,Community Services,South Care Packages,Adult Domiciliary Care,Third Party Payments,REVENUE
Wiltshire, http://opendatacommunities.org/id/unitary-authority/wiltshire,22/09/2020,1902681308,1052.64,Alina Homecare - Disabilty Support ,139903,BH12,Community Services,South Care Packages,Adult Domiciliary Care,Third Party Payments,REVENUE
Wiltshire, http://opendatacommunities.org/id/unitary-authority/wiltshire,22/09/2020,1902681309,1796.48,Alina Homecare - Disabilty Support ,139903,BH12,Community Services,South Care Packages,Adult Domiciliary Care,Third Party Payments,REVENUE
Wiltshire, http://opendatacommunities.org/id/unitary-authority/wiltshire,22/09/2020,1902681310,890.96,Alina Homecare - Disabilty Support ,139903,BH12,Community Services,South Care Packages,Adult Domiciliary Care,Third Party Payments,REVENUE
Wiltshire, http://opendatacommunities.org/id/unitary-authority/wiltshire,22/09/2020,1902681596,1258.88,ALizor Ltd ,150250,SP2 ,Resources,Covid19 - Hospital D,Adult Domiciliary Care,Third Party Payments,REVENUE
Wiltshire, http://opendatacommunities.org/id/unitary-authority/wiltshire,22/09/2020,1902681597,1511.68,ALizor Ltd ,150250,SP2 ,Community Services,South Care Packages,Adult Domiciliary Care,Third Party Payments,REVENUE
Wiltshire, http://opendatacommunities.org/id/unitary-authority/wiltshire,22/09/2020,1902681598,337.12,ALizor Ltd ,150250,SP2 ,Community Services,West Care Packages,Adult Domiciliary Care,Third Party Payments,REVENUE
Wiltshire, http://opendatacommunities.org/id/unitary-authority/wiltshire,22/09/2020,1902681599,388.64,ALizor Ltd ,150250,SP2 ,Resources,Covid19 - Hospital D,Adult Domiciliary Care,Third Party Payments,REVENUE
Wiltshire, http://opendatacommunities.org/id/unitary-authority/wiltshire,22/09/2020,1902681600,388.64,ALizor Ltd ,150250,SP2 ,Community Services,North Care Packages,Adult Domiciliary Care,Third Party Payments,REVENUE
Wiltshire, http://opendatacommunities.org/id/unitary-authority/wiltshire,14/09/2020,1902675738,1312.68,All Care (GB) Ltd ,147720,TW3 ,Community Services,North Care Packages,Adult Domiciliary Care,Third Party Payments,REVENUE
Wiltshire, http://opendatacommunities.org/id/unitary-authority/wiltshire,15/09/2020,1902673940,3346.28,Alliance Home Care ,110986,SN15,Community Services,MH AOWA N&E Locality,Adult Residential Placements - Spot Purchase,Third Party Payments,REVENUE
Wiltshire, http://opendatacommunities.org/id/unitary-authority/wiltshire,15/09/2020,1902673941,3601.96,Alliance Home Care ,110986,SN15,Community Services,MH AOWA N&E Locality,Adult Residential Placements - Spot Purchase,Third Party Payments,REVENUE
Wiltshire, http://opendatacommunities.org/id/unitary-authority/wiltshire,15/09/2020,1902673942,3764.28,Alliance Home Care ,110986,SN15,Community Services,MH AOWA N&E Locality,Adult Residential Placements - Spot Purchase,Third Party Payments,REVENUE
Wiltshire, http://opendatacommunities.org/id/unitary-authority/wiltshire,15/09/2020,1902673943,3805.16,Alliance Home Care ,110986,SN15,Community Services,MH AOWA N&E Locality,Adult Residential Placements - Spot Purchase,Third Party Payments,REVENUE
Wiltshire, http://opendatacommunities.org/id/unitary-authority/wiltshire,15/09/2020,1902673944,3818,Alliance Home Care ,110986,SN15,Community Services,MH AOWA N&E Locality,Adult Residential Placements - Spot Purchase,Third Party Payments,REVENUE
Wiltshire, http://opendatacommunities.org/id/unitary-authority/wiltshire,15/09/2020,1902673945,3827.52,Alliance Home Care ,110986,SN15,Community Services,MH AOWA N&E Locality,Adult Residential Placements - Spot Purchase,Third Party Payments,REVENUE
Wiltshire, http://opendatacommunities.org/id/unitary-authority/wiltshire,16/09/2020,1902678355,5828.7,Allsorts Pre-school Nursery ,113437,SN4 ,Children & Education,Free Enttlmnt 3 & 4y,Childcare Free Entitlement Early Years,Supplies and Services,REVENUE
Wiltshire, http://opendatacommunities.org/id/unitary-authority/wiltshire,16/09/2020,1902678356,1757.7,Allsorts Pre-school Nursery ,113437,SN4 ,Children & Education,Free Entitlement 2 Y,Childcare Free Entitlement Early Years,Supplies and Services,REVENUE
Wiltshire, http://opendatacommunities.org/id/unitary-authority/wiltshire,22/09/2020,5107418605,510,ALLSPARES  AUTO  LTD ,110116,CF33,Neighbourhood & Planning,Fleet,Vehicle Parts,Transport Related,REVENUE
Wiltshire, http://opendatacommunities.org/id/unitary-authority/wiltshire,22/09/2020,1902681445,1024,Alltogether Care LLP ,143884,DT4 ,Community Services,West Care Packages,Adult Domiciliary Care,Third Party Payments,REVENUE
Wiltshire, http://opendatacommunities.org/id/unitary-authority/wiltshire,22/09/2020,1902681447,1523.2,Alltogether Care LLP ,143884,DT4 ,Resources,Covid19 - Hospital D,Adult Domiciliary Care,Third Party Payments,REVENUE
Wiltshire, http://opendatacommunities.org/id/unitary-authority/wiltshire,22/09/2020,1902681448,2298.4,Alltogether Care LLP ,143884,DT4 ,Resources,Covid19 - Hospital D,Adult Domiciliary Care,Third Party Payments,REVENUE
Wiltshire, http://opendatacommunities.org/id/unitary-authority/wiltshire,22/09/2020,1902681450,707.2,Alltogether Care LLP ,143884,DT4 ,Resources,Covid19 - Hospital D,Adult Domiciliary Care,Third Party Payments,REVENUE
Wiltshire, http://opendatacommunities.org/id/unitary-authority/wiltshire,22/09/2020,1902681451,761.6,Alltogether Care LLP ,143884,DT4 ,Community Services,West Care Packages,Adult Domiciliary Care,Third Party Payments,REVENUE
Wiltshire, http://opendatacommunities.org/id/unitary-authority/wiltshire,22/09/2020,1902681453,1183.2,Alltogether Care LLP ,143884,DT4 ,Community Services,South Care Packages,Adult Domiciliary Care,Third Party Payments,REVENUE
Wiltshire, http://opendatacommunities.org/id/unitary-authority/wiltshire,22/09/2020,1902681454,2010.4,Alltogether Care LLP ,143884,DT4 ,Resources,Covid19 - Hospital D,Adult Domiciliary Care,Third Party Payments,REVENUE
Wiltshire, http://opendatacommunities.org/id/unitary-authority/wiltshire,22/09/2020,1902681455,272,Alltogether Care LLP ,143884,DT4 ,Resources,Covid19 - Hospital D,Adult Domiciliary Care,Third Party Payments,REVENUE
Wiltshire, http://opendatacommunities.org/id/unitary-authority/wiltshire,22/09/2020,1902681456,4284.8,Alltogether Care LLP ,143884,DT4 ,Resources,Covid19 - Hospital D,Adult Domiciliary Care,Third Party Payments,REVENUE
Wiltshire, http://opendatacommunities.org/id/unitary-authority/wiltshire,22/09/2020,1902681457,429.8,Alltogether Care LLP ,143884,DT4 ,Resources,Covid19 - Hospital D,Adult Domiciliary Care,Third Party Payments,REVENUE
Wiltshire, http://opendatacommunities.org/id/unitary-authority/wiltshire,22/09/2020,1902681458,430.8,Alltogether Care LLP ,143884,DT4 ,Resources,Covid19 - Hospital D,Adult Domiciliary Care,Third Party Payments,REVENUE
Wiltshire, http://opendatacommunities.org/id/unitary-authority/wiltshire,22/09/2020,1902681459,4614.4,Alltogether Care LLP ,143884,DT4 ,Resources,Covid19 - Hospital D,Adult Domiciliary Care,Third Party Payments,REVENUE
Wiltshire, http://opendatacommunities.org/id/unitary-authority/wiltshire,22/09/2020,1902681460,486.2,Alltogether Care LLP ,143884,DT4 ,Community Services,South Care Packages,Adult Domiciliary Care,Third Party Payments,REVENUE
Wiltshire, http://opendatacommunities.org/id/unitary-authority/wiltshire,22/09/2020,1902681461,502.6,Alltogether Care LLP ,143884,DT4 ,Resources,Covid19 - Hospital D,Adult Domiciliary Care,Third Party Payments,REVENUE
Wiltshire, http://opendatacommunities.org/id/unitary-authority/wiltshire,22/09/2020,1902681462,503.2,Alltogether Care LLP ,143884,DT4 ,Community Services,South Care Packages,Adult Domiciliary Care,Third Party Payments,REVENUE
Wiltshire, http://opendatacommunities.org/id/unitary-authority/wiltshire,22/09/2020,1902681463,761.6,Alltogether Care LLP ,143884,DT4 ,Resources,Covid19 - Hospital D,Adult Domiciliary Care,Third Party Payments,REVENUE
Wiltshire, http://opendatacommunities.org/id/unitary-authority/wiltshire,22/09/2020,1902681464,1490.4,Alltogether Care LLP ,143884,DT4 ,Community Services,South Care Packages,Adult Domiciliary Care,Third Party Payments,REVENUE
Wiltshire, http://opendatacommunities.org/id/unitary-authority/wiltshire,22/09/2020,1902681466,380.8,Alltogether Care LLP ,143884,DT4 ,Resources,Covid19 - Hospital D,Adult Domiciliary Care,Third Party Payments,REVENUE
Wiltshire, http://opendatacommunities.org/id/unitary-authority/wiltshire,04/09/2020,5107416613,315,Alpha Plus Training  and  Translati Ltd,110120,TA4 ,Children & Education,UASC Under 18 Years,Professional Fees,Supplies and Services,REVENUE
Wiltshire, http://opendatacommunities.org/id/unitary-authority/wiltshire,04/09/2020,5107416615,420,Alpha Plus Training  and  Translati Ltd,110120,TA4 ,Children & Education,UASC Under 18 Years,Professional Fees,Supplies and Services,REVENUE
Wiltshire, http://opendatacommunities.org/id/unitary-authority/wiltshire,11/09/2020,5107416735,1075.6,Alpha Plus Training  and  Translati Ltd,110120,TA4 ,Children & Education,UASC Under 18 Years,Professional Fees,Supplies and Services,REVENUE
Wiltshire, http://opendatacommunities.org/id/unitary-authority/wiltshire,11/09/2020,5107416868,457,Alpha Plus Training  and  Translati Ltd,110120,TA4 ,Children & Education,HQ Social Care,Professional Fees,Supplies and Services,REVENUE
Wiltshire, http://opendatacommunities.org/id/unitary-authority/wiltshire,11/09/2020,5107416869,395.2,Alpha Plus Training  and  Translati Ltd,110120,TA4 ,Children & Education,HQ Social Care,Professional Fees,Supplies and Services,REVENUE
Wiltshire, http://opendatacommunities.org/id/unitary-authority/wiltshire,11/09/2020,5107416871,671.4,Alpha Plus Training  and  Translati Ltd,110120,TA4 ,Children & Education,HQ Social Care,Professional Fees,Supplies and Services,REVENUE
Wiltshire, http://opendatacommunities.org/id/unitary-authority/wiltshire,18/09/2020,5107417012,648.15,Alpha Plus Training  and  Translati Ltd,110120,TA4 ,Children & Education,UASC Under 18 Years,Professional Fees,Supplies and Services,REVENUE
Wiltshire, http://opendatacommunities.org/id/unitary-authority/wiltshire,18/09/2020,5107417013,320.8,Alpha Plus Training  and  Translati Ltd,110120,TA4 ,Children & Education,UASC Under 18 Years,Professional Fees,Supplies and Services,REVENUE
Wiltshire, http://opendatacommunities.org/id/unitary-authority/wiltshire,18/09/2020,5107417235,839,Alpha Plus Training  and  Translati Ltd,110120,TA4 ,Children & Education,HQ Social Care,Professional Fees,Supplies and Services,REVENUE
Wiltshire, http://opendatacommunities.org/id/unitary-authority/wiltshire,11/09/2020,5107417238,396.3,Alpha Plus Training  and  Translati Ltd,110120,TA4 ,Children & Education,HQ Social Care,Professional Fees,Supplies and Services,REVENUE
Wiltshire, http://opendatacommunities.org/id/unitary-authority/wiltshire,18/09/2020,5107417270,535.7,Alpha Plus Training  and  Translati Ltd,110120,TA4 ,Children & Education,HQ Social Care,Professional Fees,Supplies and Services,REVENUE
Wiltshire, http://opendatacommunities.org/id/unitary-authority/wiltshire,18/09/2020,5107417293,794,Alpha Plus Training  and  Translati Ltd,110120,TA4 ,Children & Education,HQ Social Care,Professional Fees,Supplies and Services,REVENUE
Wiltshire, http://opendatacommunities.org/id/unitary-authority/wiltshire,18/09/2020,5107417294,499.4,Alpha Plus Training  and  Translati Ltd,110120,TA4 ,Children & Education,HQ Social Care,Professional Fees,Supplies and Services,REVENUE
Wiltshire, http://opendatacommunities.org/id/unitary-authority/wiltshire,11/09/2020,5107417300,574.74,Alpha Plus Training  and  Translati Ltd,110120,TA4 ,Children & Education,HQ Social Care,Professional Fees,Supplies and Services,REVENUE
Wiltshire, http://opendatacommunities.org/id/unitary-authority/wiltshire,11/09/2020,5107417302,570.36,Alpha Plus Training  and  Translati Ltd,110120,TA4 ,Children & Education,HQ Social Care,Professional Fees,Supplies and Services,REVENUE
Wiltshire, http://opendatacommunities.org/id/unitary-authority/wiltshire,11/09/2020,5107417303,1167.54,Alpha Plus Training  and  Translati Ltd,110120,TA4 ,Children & Education,HQ Social Care,Professional Fees,Supplies and Services,REVENUE
Wiltshire, http://opendatacommunities.org/id/unitary-authority/wiltshire,25/09/2020,5107417969,255.8,Alpha Plus Training  and  Translati Ltd,110120,TA4 ,Children & Education,UASC Under 18 Years,Professional Fees,Supplies and Services,REVENUE
Wiltshire, http://opendatacommunities.org/id/unitary-authority/wiltshire,25/09/2020,5107418045,405,Alpha Plus Training  and  Translati Ltd,110120,TA4 ,Children & Education,HQ Social Care,Professional Fees,Supplies and Services,REVENUE
Wiltshire, http://opendatacommunities.org/id/unitary-authority/wiltshire,25/09/2020,5107418046,675.4,Alpha Plus Training  and  Translati Ltd,110120,TA4 ,Children & Education,HQ Social Care,Professional Fees,Supplies and Services,REVENUE
Wiltshire, http://opendatacommunities.org/id/unitary-authority/wiltshire,25/09/2020,5107418053,282,Alpha Plus Training  and  Translati Ltd,110120,TA4 ,Children & Education,HQ Social Care,Professional Fees,Supplies and Services,REVENUE
Wiltshire, http://opendatacommunities.org/id/unitary-authority/wiltshire,25/09/2020,5107418388,590,Alpha Plus Training  and  Translati Ltd,110120,TA4 ,Children & Education,HQ Social Care,Professional Fees,Supplies and Services,REVENUE
Wiltshire, http://opendatacommunities.org/id/unitary-authority/wiltshire,25/09/2020,5107418755,646,Alpha Plus Training  and  Translati Ltd,110120,TA4 ,Children & Education,HQ Social Care,Professional Fees,Supplies and Services,REVENUE
Wiltshire, http://opendatacommunities.org/id/unitary-authority/wiltshire,30/09/2020,1902690732,420,Alpha Taxis ,100124,BA14,Community Services,CTPLD Placements,Transport Contracts,Third Party Payments,REVENUE
Wiltshire, http://opendatacommunities.org/id/unitary-authority/wiltshire,17/09/2020,1902679616,420,Alzheimers Support ,110127,BA14,Community Services,West Care Packages,Adult Day Care Contracts,Third Party Payments,REVENUE
Wiltshire, http://opendatacommunities.org/id/unitary-authority/wiltshire,29/09/2020,1902689379,1982.63,Alzheimers Support ,110127,BA14,Resources,Covid19 - Hospital D,Other Social & Welfare Costs,Third Party Payments,REVENUE
Wiltshire, http://opendatacommunities.org/id/unitary-authority/wiltshire,15/09/2020,5107417323,20997.5,Alzheimers Support ,110127,BA14,Community Services,ASC Community C&G,Grants Expenditure,Supplies and Services,REVENUE
Wiltshire, http://opendatacommunities.org/id/unitary-authority/wiltshire,15/09/2020,5107417324,9436.77,Alzheimers Support ,110127,BA14,Community Services,ASC Community C&G,Grants Expenditure,Supplies and Services,REVENUE
Wiltshire, http://opendatacommunities.org/id/unitary-authority/wiltshire,15/09/2020,5107418201,12917.1,Amberleigh Care Ltd ,147648,TF2 ,Children & Education,Independent Fosterin,Childrens Agency Placement,Third Party Payments,REVENUE
Wiltshire, http://opendatacommunities.org/id/unitary-authority/wiltshire,15/09/2020,5107418202,3240,Amberleigh Care Ltd ,147648,TF2 ,Children & Education,IndepSpecialSchFees,Childrens Agency Placement,Third Party Payments,REVENUE
Wiltshire, http://opendatacommunities.org/id/unitary-authority/wiltshire,24/09/2020,5107418714,3507.3,Amicus Foster Care Limited ,126050,BS2 ,Children & Education,Independent Fosterin,Childrens Agency Placement,Third Party Payments,REVENUE
Wiltshire, http://opendatacommunities.org/id/unitary-authority/wiltshire,24/09/2020,5107418715,3429,Amicus Foster Care Limited ,126050,BS2 ,Children & Education,Independent Fosterin,Childrens Agency Placement,Third Party Payments,REVENUE
Wiltshire, http://opendatacommunities.org/id/unitary-authority/wiltshire,24/09/2020,5107418718,3429,Amicus Foster Care Limited ,126050,BS2 ,Children & Education,Independent Fosterin,Childrens Agency Placement,Third Party Payments,REVENUE
Wiltshire, http://opendatacommunities.org/id/unitary-authority/wiltshire,24/09/2020,5107418721,3717.3,Amicus Foster Care Limited ,126050,BS2 ,Children & Education,Independent Fosterin,Childrens Agency Placement,Third Party Payments,REVENUE
Wiltshire, http://opendatacommunities.org/id/unitary-authority/wiltshire,24/09/2020,5107418722,3429,Amicus Foster Care Limited ,126050,BS2 ,Children & Education,Independent Fosterin,Childrens Agency Placement,Third Party Payments,REVENUE
Wiltshire, http://opendatacommunities.org/id/unitary-authority/wiltshire,24/09/2020,5107418725,3498,Amicus Foster Care Limited ,126050,BS2 ,Children & Education,Independent Fosterin,Childrens Agency Placement,Third Party Payments,REVENUE
Wiltshire, http://opendatacommunities.org/id/unitary-authority/wiltshire,24/09/2020,5107418726,3498,Amicus Foster Care Limited ,126050,BS2 ,Children & Education,Independent Fosterin,Childrens Agency Placement,Third Party Payments,REVENUE
Wiltshire, http://opendatacommunities.org/id/unitary-authority/wiltshire,22/09/2020,1902681469,1668.48,Amicus Homecare Limited ,144149,BA2 ,Community Services,Adult Care Gross Loa,Adult Domiciliary Care,Third Party Payments,REVENUE
Wiltshire, http://opendatacommunities.org/id/unitary-authority/wiltshire,22/09/2020,1902681470,2610.4,Amicus Homecare Limited ,144149,BA2 ,Community Services,West Care Packages,Adult Domiciliary Care,Third Party Payments,REVENUE
Wiltshire, http://opendatacommunities.org/id/unitary-authority/wiltshire,22/09/2020,1902681471,556.36,Amicus Homecare Limited ,144149,BA2 ,Community Services,West Care Packages,Adult Domiciliary Care,Third Party Payments,REVENUE
Wiltshire, http://opendatacommunities.org/id/unitary-authority/wiltshire,10/09/2020,1902670913,1171.6,AMP Clean Energy ,144036,EX20,Neighbourhood & Planning,Biomass Prog Schools,Other Fuels,Premises Related,REVENUE
Wiltshire, http://opendatacommunities.org/id/unitary-authority/wiltshire,10/09/2020,1902673389,250,AMP Clean Energy ,144036,EX20,Neighbourhood & Planning,Biomass Prog Schools,Other Fuels,Premises Related,REVENUE
Wiltshire, http://opendatacommunities.org/id/unitary-authority/wiltshire,23/09/2020,1902680165,937.28,AMP Clean Energy ,144036,EX20,Neighbourhood & Planning,Biomass Prog Schools,Other Fuels,Premises Related,REVENUE
Wiltshire, http://opendatacommunities.org/id/unitary-authority/wiltshire,25/09/2020,1902680166,1874.56,AMP Clean Energy ,144036,EX20,Neighbourhood & Planning,Biomass Prog Schools,Other Fuels,Premises Related,REVENUE
Wiltshire, http://opendatacommunities.org/id/unitary-authority/wiltshire,24/09/2020,1902686343,1640.24,AMP Clean Energy ,144036,EX20,Neighbourhood & Planning,Biomass Prog Schools,Other Fuels,Premises Related,REVENUE
Wiltshire, http://opendatacommunities.org/id/unitary-authority/wiltshire,24/09/2020,1902686344,4049.05,AMP Clean Energy ,144036,EX20,Neighbourhood & Planning,Biomass Prog Schools,Other Fuels,Premises Related,REVENUE
Wiltshire, http://opendatacommunities.org/id/unitary-authority/wiltshire,24/09/2020,1902686346,1640.24,AMP Clean Energy ,144036,EX20,Neighbourhood & Planning,Biomass Prog Schools,Other Fuels,Premises Related,REVENUE
Wiltshire, http://opendatacommunities.org/id/unitary-authority/wiltshire,15/09/2020,1902660372,1301.84,AMS Care Wiltshire ,130764,SN4 ,Community Services,North Care Packages,Adult Residential Place - Spot Purchase,Income,REVENUE
Wiltshire, http://opendatacommunities.org/id/unitary-authority/wiltshire,15/09/2020,1902660373,569.4,AMS Care Wiltshire ,130764,SN4 ,Community Services,West Care Packages,Adult Nursing Place- Spot Purchase Contr,Income,REVENUE
Wiltshire, http://opendatacommunities.org/id/unitary-authority/wiltshire,15/09/2020,1902660374,569.4,AMS Care Wiltshire ,130764,SN4 ,Community Services,West Care Packages,Adult Nursing Place- Spot Purchase Contr,Income,REVENUE
Wiltshire, http://opendatacommunities.org/id/unitary-authority/wiltshire,15/09/2020,1902660375,569.4,AMS Care Wiltshire ,130764,SN4 ,Community Services,West Care Packages,Adult Nursing Place- Spot Purchase Contr,Income,REVENUE
Wiltshire, http://opendatacommunities.org/id/unitary-authority/wiltshire,15/09/2020,1902660376,883.39,AMS Care Wiltshire ,130764,SN4 ,Community Services,North Care Packages,Adult Residential Place - Spot Purchase,Income,REVENUE
Wiltshire, http://opendatacommunities.org/id/unitary-authority/wiltshire,15/09/2020,1902660377,1367.27,AMS Care Wiltshire ,130764,SN4 ,Resources,Covid19 - Hospital D,Adult Care Nursing Placements - Spot,Third Party Payments,REVENUE
Wiltshire, http://opendatacommunities.org/id/unitary-authority/wiltshire,15/09/2020,1902660378,2047.57,AMS Care Wiltshire ,130764,SN4 ,Resources,Covid19 - Hospital D,Adult Care Nursing Placements - Spot,Third Party Payments,REVENUE
Wiltshire, http://opendatacommunities.org/id/unitary-authority/wiltshire,15/09/2020,1902660379,3257.14,AMS Care Wiltshire ,130764,SN4 ,Resources,Covid19 - Hospital D,Adult Care Nursing Placements - Spot,Third Party Payments,REVENUE
Wiltshire, http://opendatacommunities.org/id/unitary-authority/wiltshire,15/09/2020,1902660380,3480.32,AMS Care Wiltshire ,130764,SN4 ,Resources,Covid19 - Hospital D,Adult Care Nursing Placements - Spot,Third Party Payments,REVENUE
Wiltshire, http://opendatacommunities.org/id/unitary-authority/wiltshire,15/09/2020,1902660381,406.79,AMS Care Wiltshire ,130764,SN4 ,Resources,Covid19 - Hospital D,Adult Care Nursing Placements - Spot,Third Party Payments,REVENUE
Wiltshire, http://opendatacommunities.org/id/unitary-authority/wiltshire,15/09/2020,1902660382,511.89,AMS Care Wiltshire ,130764,SN4 ,Resources,Covid19 - Hospital D,Adult Care Nursing Placements - Spot,Third Party Payments,REVENUE
Wiltshire, http://opendatacommunities.org/id/unitary-authority/wiltshire,15/09/2020,1902660383,610.19,AMS Care Wiltshire ,130764,SN4 ,Resources,Covid19 - Hospital D,Adult Care Nursing Placements - Spot,Third Party Payments,REVENUE
Wiltshire, http://opendatacommunities.org/id/unitary-authority/wiltshire,15/09/2020,1902660384,852.86,AMS Care Wiltshire ,130764,SN4 ,Resources,Covid19 - Hospital D,Adult Care Nursing Placements - Spot,Third Party Payments,REVENUE
Wiltshire, http://opendatacommunities.org/id/unitary-authority/wiltshire,15/09/2020,1902660385,995,AMS Care Wiltshire ,130764,SN4 ,Resources,Covid19 - Hospital D,Adult Care Nursing Placements - Spot,Third Party Payments,REVENUE
Wiltshire, http://opendatacommunities.org/id/unitary-authority/wiltshire,15/09/2020,1902660386,1932.27,AMS Care Wiltshire ,130764,SN4 ,Community Services,Placement Block Cont,Adult Care Nursing Placements- Block Contract,Third Party Payments,REVENUE
Wiltshire, http://opendatacommunities.org/id/unitary-authority/wiltshire,15/09/2020,1902660387,2847.56,AMS Care Wiltshire ,130764,SN4 ,Community Services,Placement Block Cont,Adult Care Nursing Placements- Block Contract,Third Party Payments,REVENUE
Wiltshire, http://opendatacommunities.org/id/unitary-authority/wiltshire,15/09/2020,1902660390,569.4,AMS Care Wiltshire ,130764,SN4 ,Community Services,West Care Packages,Adult Nursing Place- Spot Purchase Contr,Income,REVENUE
Wiltshire, http://opendatacommunities.org/id/unitary-authority/wiltshire,15/09/2020,1902660392,2307.14,AMS Care Wiltshire ,130764,SN4 ,Resources,Covid19 - Hospital D,Adult Care Nursing Placements - Spot,Third Party Payments,REVENUE
Wiltshire, http://opendatacommunities.org/id/unitary-authority/wiltshire,15/09/2020,1902677545,618.52,AMS Care Wiltshire ,130764,SN4 ,Community Services,South Care Packages,Adult Nursing Place- Spot Purchase Contr,Income,REVENUE
Wiltshire, http://opendatacommunities.org/id/unitary-authority/wiltshire,15/09/2020,1902677546,1016.99,AMS Care Wiltshire ,130764,SN4 ,Community Services,Placement Block Cont,Adult Care Nursing Placements- Block Contract,Third Party Payments,REVENUE
Wiltshire, http://opendatacommunities.org/id/unitary-authority/wiltshire,15/09/2020,1902677547,1016.99,AMS Care Wiltshire ,130764,SN4 ,Community Services,Placement Block Cont,Adult Care Nursing Placements- Block Contract,Third Party Payments,REVENUE
Wiltshire, http://opendatacommunities.org/id/unitary-authority/wiltshire,15/09/2020,1902677548,2847.56,AMS Care Wiltshire ,130764,SN4 ,Community Services,Placement Block Cont,Adult Care Nursing Placements- Block Contract,Third Party Payments,REVENUE
Wiltshire, http://opendatacommunities.org/id/unitary-authority/wiltshire,15/09/2020,1902677549,2847.56,AMS Care Wiltshire ,130764,SN4 ,Community Services,Placement Block Cont,Adult Care Nursing Placements- Block Contract,Third Party Payments,REVENUE
Wiltshire, http://opendatacommunities.org/id/unitary-authority/wiltshire,15/09/2020,1902677551,2846,AMS Care Wiltshire ,130764,SN4 ,Community Services,North Care Packages,Adult Residential Placements - Spot Purchase,Third Party Payments,REVENUE
Wiltshire, http://opendatacommunities.org/id/unitary-authority/wiltshire,15/09/2020,1902677552,264.29,AMS Care Wiltshire ,130764,SN4 ,Community Services,Placement Block Cont,Adult Nursing Place- Block Contract Contribution,Income,REVENUE
Wiltshire, http://opendatacommunities.org/id/unitary-authority/wiltshire,15/09/2020,1902677554,579.8,AMS Care Wiltshire ,130764,SN4 ,Community Services,North Care Packages,Adult Residential Place - Spot Purchase,Income,REVENUE
Wiltshire, http://opendatacommunities.org/id/unitary-authority/wiltshire,15/09/2020,1902677555,618.52,AMS Care Wiltshire ,130764,SN4 ,Community Services,South Care Packages,Adult Nursing Place- Spot Purchase Contr,Income,REVENUE
Wiltshire, http://opendatacommunities.org/id/unitary-authority/wiltshire,15/09/2020,1902677556,618.52,AMS Care Wiltshire ,130764,SN4 ,Community Services,South Care Packages,Adult Nursing Place- Spot Purchase Contr,Income,REVENUE
Wiltshire, http://opendatacommunities.org/id/unitary-authority/wiltshire,15/09/2020,1902677557,618.52,AMS Care Wiltshire ,130764,SN4 ,Community Services,South Care Packages,Adult Nursing Place- Spot Purchase Contr,Income,REVENUE
Wiltshire, http://opendatacommunities.org/id/unitary-authority/wiltshire,15/09/2020,1902677558,1115.56,AMS Care Wiltshire ,130764,SN4 ,Resources,Covid19 - Hospital D,Adult Care Nursing Placements - Spot,Third Party Payments,REVENUE
Wiltshire, http://opendatacommunities.org/id/unitary-authority/wiltshire,15/09/2020,1902677560,2442.86,AMS Care Wiltshire ,130764,SN4 ,Resources,Covid19 - Hospital D,Adult Care Nursing Placements - Spot,Third Party Payments,REVENUE
Wiltshire, http://opendatacommunities.org/id/unitary-authority/wiltshire,15/09/2020,1902677561,2442.86,AMS Care Wiltshire ,130764,SN4 ,Resources,Covid19 - Hospital D,Adult Care Nursing Placements - Spot,Third Party Payments,REVENUE
Wiltshire, http://opendatacommunities.org/id/unitary-authority/wiltshire,15/09/2020,1902677562,2559.46,AMS Care Wiltshire ,130764,SN4 ,Resources,Covid19 - Hospital D,Adult Care Nursing Placements - Spot,Third Party Payments,REVENUE
Wiltshire, http://opendatacommunities.org/id/unitary-authority/wiltshire,15/09/2020,1902677563,2847.56,AMS Care Wiltshire ,130764,SN4 ,Resources,Covid19 - Hospital D,Adult Care Nursing Placements - Spot,Third Party Payments,REVENUE
Wiltshire, http://opendatacommunities.org/id/unitary-authority/wiltshire,15/09/2020,1902677564,3121.43,AMS Care Wiltshire ,130764,SN4 ,Resources,Covid19 - Hospital D,Adult Care Nursing Placements - Spot,Third Party Payments,REVENUE
Wiltshire, http://opendatacommunities.org/id/unitary-authority/wiltshire,15/09/2020,1902677565,3121.43,AMS Care Wiltshire ,130764,SN4 ,Resources,Covid19 - Hospital D,Adult Care Nursing Placements - Spot,Third Party Payments,REVENUE
Wiltshire, http://opendatacommunities.org/id/unitary-authority/wiltshire,15/09/2020,1902677566,3800,AMS Care Wiltshire ,130764,SN4 ,Resources,Covid19 - Hospital D,Adult Care Nursing Placements - Spot,Third Party Payments,REVENUE
Wiltshire, http://opendatacommunities.org/id/unitary-authority/wiltshire,15/09/2020,1902677567,3800,AMS Care Wiltshire ,130764,SN4 ,Resources,Covid19 - Hospital D,Adult Care Nursing Placements - Spot,Third Party Payments,REVENUE
Wiltshire, http://opendatacommunities.org/id/unitary-authority/wiltshire,15/09/2020,1902677568,4302.87,AMS Care Wiltshire ,130764,SN4 ,Resources,Covid19 - Hospital D,Adult Care Nursing Placements - Spot,Third Party Payments,REVENUE
Wiltshire, http://opendatacommunities.org/id/unitary-authority/wiltshire,15/09/2020,1902677569,4462.24,AMS Care Wiltshire ,130764,SN4 ,Resources,Covid19 - Hospital D,Adult Care Nursing Placements - Spot,Third Party Payments,REVENUE
Wiltshire, http://opendatacommunities.org/id/unitary-authority/wiltshire,15/09/2020,1902677570,511.89,AMS Care Wiltshire ,130764,SN4 ,Resources,Covid19 - Hospital D,Adult Care Nursing Placements - Spot,Third Party Payments,REVENUE
Wiltshire, http://opendatacommunities.org/id/unitary-authority/wiltshire,15/09/2020,1902677571,610.19,AMS Care Wiltshire ,130764,SN4 ,Resources,Covid19 - Hospital D,Adult Care Nursing Placements - Spot,Third Party Payments,REVENUE
Wiltshire, http://opendatacommunities.org/id/unitary-authority/wiltshire,15/09/2020,1902677572,639.86,AMS Care Wiltshire ,130764,SN4 ,Resources,Covid19 - Hospital D,Adult Care Nursing Placements - Spot,Third Party Payments,REVENUE
Wiltshire, http://opendatacommunities.org/id/unitary-authority/wiltshire,15/09/2020,1902677573,678.57,AMS Care Wiltshire ,130764,SN4 ,Resources,Covid19 - Hospital D,Adult Care Nursing Placements - Spot,Third Party Payments,REVENUE
Wiltshire, http://opendatacommunities.org/id/unitary-authority/wiltshire,15/09/2020,1902677574,711.89,AMS Care Wiltshire ,130764,SN4 ,Resources,Covid19 - Hospital D,Adult Care Nursing Placements - Spot,Third Party Payments,REVENUE
Wiltshire, http://opendatacommunities.org/id/unitary-authority/wiltshire,15/09/2020,1902677575,409.91,AMS Care Wiltshire ,130764,SN4 ,Community Services,North Care Packages,Adult Residential Place - Spot Purchase,Income,REVENUE
Wiltshire, http://opendatacommunities.org/id/unitary-authority/wiltshire,15/09/2020,1902677576,1118.68,AMS Care Wiltshire ,130764,SN4 ,Community Services,Placement Block Cont,Adult Care Nursing Placements- Block Contract,Third Party Payments,REVENUE
Wiltshire, http://opendatacommunities.org/id/unitary-authority/wiltshire,15/09/2020,1902677577,2847.56,AMS Care Wiltshire ,130764,SN4 ,Community Services,Placement Block Cont,Adult Care Nursing Placements- Block Contract,Third Party Payments,REVENUE
Wiltshire, http://opendatacommunities.org/id/unitary-authority/wiltshire,15/09/2020,1902677578,2847.56,AMS Care Wiltshire ,130764,SN4 ,Community Services,Placement Block Cont,Adult Care Nursing Placements- Block Contract,Third Party Payments,REVENUE
Wiltshire, http://opendatacommunities.org/id/unitary-authority/wiltshire,15/09/2020,1902677579,2847.56,AMS Care Wiltshire ,130764,SN4 ,Community Services,Placement Block Cont,Adult Care Nursing Placements- Block Contract,Third Party Payments,REVENUE
Wiltshire, http://opendatacommunities.org/id/unitary-authority/wiltshire,15/09/2020,1902677580,2847.56,AMS Care Wiltshire ,130764,SN4 ,Community Services,Placement Block Cont,Adult Care Nursing Placements- Block Contract,Third Party Payments,REVENUE
Wiltshire, http://opendatacommunities.org/id/unitary-authority/wiltshire,15/09/2020,1902677581,2847.56,AMS Care Wiltshire ,130764,SN4 ,Community Services,Placement Block Cont,Adult Care Nursing Placements- Block Contract,Third Party Payments,REVENUE
Wiltshire, http://opendatacommunities.org/id/unitary-authority/wiltshire,15/09/2020,1902677582,2847.56,AMS Care Wiltshire ,130764,SN4 ,Community Services,Placement Block Cont,Adult Care Nursing Placements- Block Contract,Third Party Payments,REVENUE
Wiltshire, http://opendatacommunities.org/id/unitary-authority/wiltshire,15/09/2020,1902677583,2847.56,AMS Care Wiltshire ,130764,SN4 ,Community Services,Placement Block Cont,Adult Care Nursing Placements- Block Contract,Third Party Payments,REVENUE
Wiltshire, http://opendatacommunities.org/id/unitary-authority/wiltshire,15/09/2020,1902677584,2847.56,AMS Care Wiltshire ,130764,SN4 ,Community Services,Placement Block Cont,Adult Care Nursing Placements- Block Contract,Third Party Payments,REVENUE
Wiltshire, http://opendatacommunities.org/id/unitary-authority/wiltshire,15/09/2020,1902677585,2847.56,AMS Care Wiltshire ,130764,SN4 ,Community Services,Placement Block Cont,Adult Care Nursing Placements- Block Contract,Third Party Payments,REVENUE
Wiltshire, http://opendatacommunities.org/id/unitary-authority/wiltshire,15/09/2020,1902677586,2847.56,AMS Care Wiltshire ,130764,SN4 ,Community Services,Placement Block Cont,Adult Care Nursing Placements- Block Contract,Third Party Payments,REVENUE
Wiltshire, http://opendatacommunities.org/id/unitary-authority/wiltshire,15/09/2020,1902677587,2847.56,AMS Care Wiltshire ,130764,SN4 ,Community Services,Placement Block Cont,Adult Care Nursing Placements- Block Contract,Third Party Payments,REVENUE
Wiltshire, http://opendatacommunities.org/id/unitary-authority/wiltshire,15/09/2020,1902677588,2847.56,AMS Care Wiltshire ,130764,SN4 ,Community Services,Placement Block Cont,Adult Care Nursing Placements- Block Contract,Third Party Payments,REVENUE
Wiltshire, http://opendatacommunities.org/id/unitary-authority/wiltshire,15/09/2020,1902677589,2847.56,AMS Care Wiltshire ,130764,SN4 ,Community Services,Placement Block Cont,Adult Care Nursing Placements- Block Contract,Third Party Payments,REVENUE
Wiltshire, http://opendatacommunities.org/id/unitary-authority/wiltshire,15/09/2020,1902677590,2847.56,AMS Care Wiltshire ,130764,SN4 ,Community Services,Placement Block Cont,Adult Care Nursing Placements- Block Contract,Third Party Payments,REVENUE
Wiltshire, http://opendatacommunities.org/id/unitary-authority/wiltshire,15/09/2020,1902677591,2847.56,AMS Care Wiltshire ,130764,SN4 ,Community Services,Placement Block Cont,Adult Care Nursing Placements- Block Contract,Third Party Payments,REVENUE
Wiltshire, http://opendatacommunities.org/id/unitary-authority/wiltshire,15/09/2020,1902677592,2847.56,AMS Care Wiltshire ,130764,SN4 ,Community Services,Placement Block Cont,Adult Care Nursing Placements- Block Contract,Third Party Payments,REVENUE
Wiltshire, http://opendatacommunities.org/id/unitary-authority/wiltshire,15/09/2020,1902677593,2847.56,AMS Care Wiltshire ,130764,SN4 ,Community Services,Placement Block Cont,Adult Care Nursing Placements- Block Contract,Third Party Payments,REVENUE
Wiltshire, http://opendatacommunities.org/id/unitary-authority/wiltshire,15/09/2020,1902677594,2847.56,AMS Care Wiltshire ,130764,SN4 ,Community Services,Placement Block Cont,Adult Care Nursing Placements- Block Contract,Third Party Payments,REVENUE
Wiltshire, http://opendatacommunities.org/id/unitary-authority/wiltshire,15/09/2020,1902677595,2847.56,AMS Care Wiltshire ,130764,SN4 ,Community Services,Placement Block Cont,Adult Care Nursing Placements- Block Contract,Third Party Payments,REVENUE
Wiltshire, http://opendatacommunities.org/id/unitary-authority/wiltshire,15/09/2020,1902677596,2847.56,AMS Care Wiltshire ,130764,SN4 ,Community Services,Placement Block Cont,Adult Care Nursing Placements- Block Contract,Third Party Payments,REVENUE
Wiltshire, http://opendatacommunities.org/id/unitary-authority/wiltshire,15/09/2020,1902677597,2847.56,AMS Care Wiltshire ,130764,SN4 ,Community Services,Placement Block Cont,Adult Care Nursing Placements- Block Contract,Third Party Payments,REVENUE
Wiltshire, http://opendatacommunities.org/id/unitary-authority/wiltshire,15/09/2020,1902677598,2847.56,AMS Care Wiltshire ,130764,SN4 ,Community Services,Placement Block Cont,Adult Care Nursing Placements- Block Contract,Third Party Payments,REVENUE
Wiltshire, http://opendatacommunities.org/id/unitary-authority/wiltshire,15/09/2020,1902677599,2847.56,AMS Care Wiltshire ,130764,SN4 ,Community Services,Placement Block Cont,Adult Care Nursing Placements- Block Contract,Third Party Payments,REVENUE
Wiltshire, http://opendatacommunities.org/id/unitary-authority/wiltshire,15/09/2020,1902677600,2847.56,AMS Care Wiltshire ,130764,SN4 ,Community Services,Placement Block Cont,Adult Care Nursing Placements- Block Contract,Third Party Payments,REVENUE
Wiltshire, http://opendatacommunities.org/id/unitary-authority/wiltshire,15/09/2020,1902677601,2847.56,AMS Care Wiltshire ,130764,SN4 ,Community Services,Placement Block Cont,Adult Care Nursing Placements- Block Contract,Third Party Payments,REVENUE
Wiltshire, http://opendatacommunities.org/id/unitary-authority/wiltshire,15/09/2020,1902677602,2847.56,AMS Care Wiltshire ,130764,SN4 ,Community Services,Placement Block Cont,Adult Care Nursing Placements- Block Contract,Third Party Payments,REVENUE
Wiltshire, http://opendatacommunities.org/id/unitary-authority/wiltshire,15/09/2020,1902677603,2847.56,AMS Care Wiltshire ,130764,SN4 ,Community Services,Placement Block Cont,Adult Care Nursing Placements- Block Contract,Third Party Payments,REVENUE
Wiltshire, http://opendatacommunities.org/id/unitary-authority/wiltshire,15/09/2020,1902677604,2847.56,AMS Care Wiltshire ,130764,SN4 ,Community Services,Placement Block Cont,Adult Care Nursing Placements- Block Contract,Third Party Payments,REVENUE
Wiltshire, http://opendatacommunities.org/id/unitary-authority/wiltshire,15/09/2020,1902677605,2847.56,AMS Care Wiltshire ,130764,SN4 ,Community Services,Placement Block Cont,Adult Care Nursing Placements- Block Contract,Third Party Payments,REVENUE
Wiltshire, http://opendatacommunities.org/id/unitary-authority/wiltshire,15/09/2020,1902677606,2847.56,AMS Care Wiltshire ,130764,SN4 ,Community Services,Placement Block Cont,Adult Care Nursing Placements- Block Contract,Third Party Payments,REVENUE
Wiltshire, http://opendatacommunities.org/id/unitary-authority/wiltshire,15/09/2020,1902677607,2847.56,AMS Care Wiltshire ,130764,SN4 ,Community Services,Placement Block Cont,Adult Care Nursing Placements- Block Contract,Third Party Payments,REVENUE
Wiltshire, http://opendatacommunities.org/id/unitary-authority/wiltshire,15/09/2020,1902677608,2847.56,AMS Care Wiltshire ,130764,SN4 ,Community Services,Placement Block Cont,Adult Care Nursing Placements- Block Contract,Third Party Payments,REVENUE
Wiltshire, http://opendatacommunities.org/id/unitary-authority/wiltshire,15/09/2020,1902677609,2847.56,AMS Care Wiltshire ,130764,SN4 ,Community Services,Placement Block Cont,Adult Care Nursing Placements- Block Contract,Third Party Payments,REVENUE
Wiltshire, http://opendatacommunities.org/id/unitary-authority/wiltshire,15/09/2020,1902677610,2847.56,AMS Care Wiltshire ,130764,SN4 ,Community Services,Placement Block Cont,Adult Care Nursing Placements- Block Contract,Third Party Payments,REVENUE
Wiltshire, http://opendatacommunities.org/id/unitary-authority/wiltshire,15/09/2020,1902677611,2847.56,AMS Care Wiltshire ,130764,SN4 ,Community Services,Placement Block Cont,Adult Care Nursing Placements- Block Contract,Third Party Payments,REVENUE
Wiltshire, http://opendatacommunities.org/id/unitary-authority/wiltshire,15/09/2020,1902677612,2847.56,AMS Care Wiltshire ,130764,SN4 ,Community Services,Placement Block Cont,Adult Care Nursing Placements- Block Contract,Third Party Payments,REVENUE
Wiltshire, http://opendatacommunities.org/id/unitary-authority/wiltshire,15/09/2020,1902677613,2847.56,AMS Care Wiltshire ,130764,SN4 ,Community Services,Placement Block Cont,Adult Care Nursing Placements- Block Contract,Third Party Payments,REVENUE
Wiltshire, http://opendatacommunities.org/id/unitary-authority/wiltshire,15/09/2020,1902677614,2847.56,AMS Care Wiltshire ,130764,SN4 ,Community Services,Placement Block Cont,Adult Care Nursing Placements- Block Contract,Third Party Payments,REVENUE
Wiltshire, http://opendatacommunities.org/id/unitary-authority/wiltshire,15/09/2020,1902677615,610.19,AMS Care Wiltshire ,130764,SN4 ,Community Services,Placement Block Cont,Adult Care Nursing Placements- Block Contract,Third Party Payments,REVENUE
Wiltshire, http://opendatacommunities.org/id/unitary-authority/wiltshire,15/09/2020,1902677616,302.8,AMS Care Wiltshire ,130764,SN4 ,Community Services,North Care Packages,Adult Care Nursing Placements - Spot,Third Party Payments,REVENUE
Wiltshire, http://opendatacommunities.org/id/unitary-authority/wiltshire,15/09/2020,1902677617,2744.64,AMS Care Wiltshire ,130764,SN4 ,Community Services,Adult Care Gross Loa,Adult Care Nursing Placements - Spot,Third Party Payments,REVENUE
Wiltshire, http://opendatacommunities.org/id/unitary-authority/wiltshire,15/09/2020,1902677618,2744.64,AMS Care Wiltshire ,130764,SN4 ,Community Services,Adult Care Gross Loa,Adult Care Nursing Placements - Spot,Third Party Payments,REVENUE
Wiltshire, http://opendatacommunities.org/id/unitary-authority/wiltshire,15/09/2020,1902677619,2744.64,AMS Care Wiltshire ,130764,SN4 ,Community Services,Adult Care Gross Loa,Adult Care Nursing Placements - Spot,Third Party Payments,REVENUE
Wiltshire, http://opendatacommunities.org/id/unitary-authority/wiltshire,15/09/2020,1902677620,2744.64,AMS Care Wiltshire ,130764,SN4 ,Community Services,Adult Care Gross Loa,Adult Care Nursing Placements - Spot,Third Party Payments,REVENUE
Wiltshire, http://opendatacommunities.org/id/unitary-authority/wiltshire,15/09/2020,1902677621,1310,AMS Care Wiltshire ,130764,SN4 ,Community Services,Placement Block Cont,Adult Care Nursing Placements- Block Contract,Third Party Payments,REVENUE
Wiltshire, http://opendatacommunities.org/id/unitary-authority/wiltshire,15/09/2020,1902677622,2339.29,AMS Care Wiltshire ,130764,SN4 ,Community Services,Placement Block Cont,Adult Care Nursing Placements- Block Contract,Third Party Payments,REVENUE
Wiltshire, http://opendatacommunities.org/id/unitary-authority/wiltshire,15/09/2020,1902677623,2620,AMS Care Wiltshire ,130764,SN4 ,Community Services,Placement Block Cont,Adult Care Nursing Placements- Block Contract,Third Party Payments,REVENUE
Wiltshire, http://opendatacommunities.org/id/unitary-authority/wiltshire,15/09/2020,1902677624,2620,AMS Care Wiltshire ,130764,SN4 ,Community Services,Placement Block Cont,Adult Care Nursing Placements- Block Contract,Third Party Payments,REVENUE
Wiltshire, http://opendatacommunities.org/id/unitary-authority/wiltshire,15/09/2020,1902677625,2620,AMS Care Wiltshire ,130764,SN4 ,Community Services,Placement Block Cont,Adult Care Nursing Placements- Block Contract,Third Party Payments,REVENUE
Wiltshire, http://opendatacommunities.org/id/unitary-authority/wiltshire,15/09/2020,1902677626,2620,AMS Care Wiltshire ,130764,SN4 ,Community Services,Placement Block Cont,Adult Care Nursing Placements- Block Contract,Third Party Payments,REVENUE
Wiltshire, http://opendatacommunities.org/id/unitary-authority/wiltshire,15/09/2020,1902677627,2620,AMS Care Wiltshire ,130764,SN4 ,Community Services,Placement Block Cont,Adult Care Nursing Placements- Block Contract,Third Party Payments,REVENUE
Wiltshire, http://opendatacommunities.org/id/unitary-authority/wiltshire,15/09/2020,1902677628,2620,AMS Care Wiltshire ,130764,SN4 ,Community Services,Placement Block Cont,Adult Care Nursing Placements- Block Contract,Third Party Payments,REVENUE
Wiltshire, http://opendatacommunities.org/id/unitary-authority/wiltshire,15/09/2020,1902677629,2620,AMS Care Wiltshire ,130764,SN4 ,Community Services,Placement Block Cont,Adult Care Nursing Placements- Block Contract,Third Party Payments,REVENUE
Wiltshire, http://opendatacommunities.org/id/unitary-authority/wiltshire,15/09/2020,1902677630,2620,AMS Care Wiltshire ,130764,SN4 ,Community Services,Placement Block Cont,Adult Care Nursing Placements- Block Contract,Third Party Payments,REVENUE
Wiltshire, http://opendatacommunities.org/id/unitary-authority/wiltshire,15/09/2020,1902677631,655,AMS Care Wiltshire ,130764,SN4 ,Community Services,Placement Block Cont,Adult Care Nursing Placements- Block Contract,Third Party Payments,REVENUE
Wiltshire, http://opendatacommunities.org/id/unitary-authority/wiltshire,15/09/2020,1902677632,2135.94,AMS Care Wiltshire ,130764,SN4 ,Community Services,North Care Packages,Adult Care Nursing Placements - Spot,Third Party Payments,REVENUE
Wiltshire, http://opendatacommunities.org/id/unitary-authority/wiltshire,15/09/2020,1902677633,2600.28,AMS Care Wiltshire ,130764,SN4 ,Community Services,North Care Packages,Adult Care Nursing Placements - Spot,Third Party Payments,REVENUE
Wiltshire, http://opendatacommunities.org/id/unitary-authority/wiltshire,15/09/2020,1902677634,2600.28,AMS Care Wiltshire ,130764,SN4 ,Community Services,North Care Packages,Adult Care Nursing Placements - Spot,Third Party Payments,REVENUE
Wiltshire, http://opendatacommunities.org/id/unitary-authority/wiltshire,15/09/2020,1902677635,2600.28,AMS Care Wiltshire ,130764,SN4 ,Community Services,North Care Packages,Adult Care Nursing Placements - Spot,Third Party Payments,REVENUE
Wiltshire, http://opendatacommunities.org/id/unitary-authority/wiltshire,15/09/2020,1902677636,2620,AMS Care Wiltshire ,130764,SN4 ,Community Services,Placement Block Cont,Adult Care Nursing Placements- Block Contract,Third Party Payments,REVENUE
Wiltshire, http://opendatacommunities.org/id/unitary-authority/wiltshire,15/09/2020,1902677637,2620,AMS Care Wiltshire ,130764,SN4 ,Community Services,Placement Block Cont,Adult Care Nursing Placements- Block Contract,Third Party Payments,REVENUE
Wiltshire, http://opendatacommunities.org/id/unitary-authority/wiltshire,16/09/2020,1902679561,1005,AMS Care Wiltshire ,130764,SN4 ,Community Services,West Care Packages,Adult Domiciliary Care,Third Party Payments,REVENUE
Wiltshire, http://opendatacommunities.org/id/unitary-authority/wiltshire,16/09/2020,1902679562,10752,AMS Care Wiltshire ,130764,SN4 ,Community Services,West Care Packages,Adult Domiciliary Care,Third Party Payments,REVENUE
Wiltshire, http://opendatacommunities.org/id/unitary-authority/wiltshire,16/09/2020,1902679563,1920,AMS Care Wiltshire ,130764,SN4 ,Community Services,West Care Packages,Adult Domiciliary Care,Third Party Payments,REVENUE
Wiltshire, http://opendatacommunities.org/id/unitary-authority/wiltshire,16/09/2020,1902679564,3618,AMS Care Wiltshire ,130764,SN4 ,Community Services,West Care Packages,Adult Domiciliary Care,Third Party Payments,REVENUE
Wiltshire, http://opendatacommunities.org/id/unitary-authority/wiltshire,16/09/2020,1902679565,4224,AMS Care Wiltshire ,130764,SN4 ,Community Services,West Care Packages,Adult Domiciliary Care,Third Party Payments,REVENUE
Wiltshire, http://opendatacommunities.org/id/unitary-authority/wiltshire,16/09/2020,1902679566,9216,AMS Care Wiltshire ,130764,SN4 ,Community Services,West Care Packages,Adult Domiciliary Care,Third Party Payments,REVENUE
Wiltshire, http://opendatacommunities.org/id/unitary-authority/wiltshire,28/09/2020,5107418522,1600,ANA Treatment Centres ,126008,PO6 ,Community Services,T4 Treatments,Substance Misuse Contracts,Third Party Payments,REVENUE
Wiltshire, http://opendatacommunities.org/id/unitary-authority/wiltshire,28/09/2020,5107418523,1600,ANA Treatment Centres ,126008,PO6 ,Community Services,T4 Treatments,Substance Misuse Contracts,Third Party Payments,REVENUE
Wiltshire, http://opendatacommunities.org/id/unitary-authority/wiltshire,28/09/2020,5107418524,1980,ANA Treatment Centres ,126008,PO6 ,Community Services,T4 Treatments,Substance Misuse Contracts,Third Party Payments,REVENUE
Wiltshire, http://opendatacommunities.org/id/unitary-authority/wiltshire,09/09/2020,1902673141,335,Andover Fire and Security Ltd ,147308,SP10,Neighbourhood & Planning,Porton Science Park,Property Maintenance,Premises Related,REVENUE
Wiltshire, http://opendatacommunities.org/id/unitary-authority/wiltshire,15/09/2020,1902673622,5280,Andover Nursing Home ,110142,SP10,Community Services,MH OP N&E Locality,Adult Care Nursing Placements - Spot,Third Party Payments,REVENUE
Wiltshire, http://opendatacommunities.org/id/unitary-authority/wiltshire,15/09/2020,1902673623,6000,Andover Nursing Home ,110142,SP10,Community Services,MH AOWA South Locali,Adult Care Nursing Placements - Spot,Third Party Payments,REVENUE
Wiltshire, http://opendatacommunities.org/id/unitary-authority/wiltshire,23/09/2020,1902685739,1111.11,Andybus  and  Coach Ltd ,100132,SN16,Neighbourhood & Planning,Mainstream Primary,Transport Contracts,Third Party Payments,REVENUE
Wiltshire, http://opendatacommunities.org/id/unitary-authority/wiltshire,23/09/2020,1902685739,18171.56,Andybus  and  Coach Ltd ,100132,SN16,Neighbourhood & Planning,Mainstream Secondary,Transport Contracts,Third Party Payments,REVENUE
Wiltshire, http://opendatacommunities.org/id/unitary-authority/wiltshire,23/09/2020,1902685740,3166.67,Andybus  and  Coach Ltd ,100132,SN16,Neighbourhood & Planning,Mainstream Secondary,Transport Contracts,Third Party Payments,REVENUE
Wiltshire, http://opendatacommunities.org/id/unitary-authority/wiltshire,22/09/2020,1902680814,1694,Angel Holistic Care Ltd ,150024,SP7 ,Community Services,South Care Packages,Adult Domiciliary Care,Third Party Payments,REVENUE
Wiltshire, http://opendatacommunities.org/id/unitary-authority/wiltshire,11/09/2020,5107416499,525.56,Antalis Limited ,122876,LE67,Resources,DesignPrintTrowbridg,Stationery,Supplies and Services,REVENUE
Wiltshire, http://opendatacommunities.org/id/unitary-authority/wiltshire,02/09/2020,1902670559,2750.55,Aon Limited ,113554,CF10,Neighbourhood & Planning,Asset Management,Tenants� Contents Insurance,Premises Related,REVENUE
Wiltshire, http://opendatacommunities.org/id/unitary-authority/wiltshire,16/09/2020,1902678112,3411.33,Aon Limited ,113554,CF10,Neighbourhood & Planning,Asset Management,Tenants� Contents Insurance,Premises Related,REVENUE
Wiltshire, http://opendatacommunities.org/id/unitary-authority/wiltshire,25/09/2020,1902686636,2786.28,Aon Limited ,113554,CF10,Neighbourhood & Planning,Asset Management,Tenants� Contents Insurance,Premises Related,REVENUE
Wiltshire, http://opendatacommunities.org/id/unitary-authority/wiltshire,25/09/2020,1902686637,2848.94,Aon Limited ,113554,CF10,Neighbourhood & Planning,Asset Management,Tenants� Contents Insurance,Premises Related,REVENUE
Wiltshire, http://opendatacommunities.org/id/unitary-authority/wiltshire,02/09/2020,1902669254,858.45,APAM Ltd re Nexus Properties ,147980,M17 ,Resources,FM Leisure Centres,Premises Rental,Premises Related,REVENUE
Wiltshire, http://opendatacommunities.org/id/unitary-authority/wiltshire,21/09/2020,5107418545,23500,APAM Ltd re Nexus Properties ,147980,M17 ,Resources,FM Leisure Centres,Premises Rental,Premises Related,REVENUE
Wiltshire, http://opendatacommunities.org/id/unitary-authority/wiltshire,21/09/2020,5107418546,9300,APAM Ltd re Nexus Properties ,147980,M17 ,Resources,FM Leisure Centres,Premises Rental,Premises Related,REVENUE
Wiltshire, http://opendatacommunities.org/id/unitary-authority/wiltshire,22/09/2020,1902681540,1661.24,Apex Prime Care Ltd ,148170,SO40,Community Services,West Care Packages,Adult Domiciliary Care,Third Party Payments,REVENUE
Wiltshire, http://opendatacommunities.org/id/unitary-authority/wiltshire,22/09/2020,1902681541,1695.96,Apex Prime Care Ltd ,148170,SO40,Community Services,West Care Packages,Adult Domiciliary Care,Third Party Payments,REVENUE
Wiltshire, http://opendatacommunities.org/id/unitary-authority/wiltshire,22/09/2020,1902681542,363.44,Apex Prime Care Ltd ,148170,SO40,Community Services,West Care Packages,Adult Domiciliary Care,Third Party Payments,REVENUE
Wiltshire, http://opendatacommunities.org/id/unitary-authority/wiltshire,22/09/2020,1902681543,969.08,Apex Prime Care Ltd ,148170,SO40,Resources,Covid19 - Hospital D,Adult Domiciliary Care,Third Party Payments,REVENUE
Wiltshire, http://opendatacommunities.org/id/unitary-authority/wiltshire,22/09/2020,1902681544,259.6,Apex Prime Care Ltd ,148170,SO40,Community Services,MH AOWA South Locali,Adult Domiciliary Care,Third Party Payments,REVENUE
Wiltshire, http://opendatacommunities.org/id/unitary-authority/wiltshire,22/09/2020,1902681545,519.2,Apex Prime Care Ltd ,148170,SO40,Community Services,West Care Packages,Adult Domiciliary Care,Third Party Payments,REVENUE
Wiltshire, http://opendatacommunities.org/id/unitary-authority/wiltshire,22/09/2020,1902681546,530.32,Apex Prime Care Ltd ,148170,SO40,Community Services,South Care Packages,Adult Domiciliary Care,Third Party Payments,REVENUE
Wiltshire, http://opendatacommunities.org/id/unitary-authority/wiltshire,16/09/2020,1902678411,11139,Appletree Nursery 1026 ,110163,SN11,Children & Education,Free Enttlmnt 3 & 4y,Childcare Free Entitlement Early Years,Supplies and Services,REVENUE
Wiltshire, http://opendatacommunities.org/id/unitary-authority/wiltshire,16/09/2020,1902678412,3591,Appletree Nursery 1026 ,110163,SN11,Children & Education,Free Entitlement 2 Y,Childcare Free Entitlement Early Years,Supplies and Services,REVENUE
Wiltshire, http://opendatacommunities.org/id/unitary-authority/wiltshire,25/09/2020,5107417626,2030.03,APS Group ,148025,SK3 ,Resources,Customer Services,Printing,Supplies and Services,REVENUE
Wiltshire, http://opendatacommunities.org/id/unitary-authority/wiltshire,17/09/2020,5107418335,705,Aquaid ( Kennet  and  North Wilts) ,113580,SN9 ,Neighbourhood & Planning,Devizes,Equipment Purchase,Supplies and Services,REVENUE
Wiltshire, http://opendatacommunities.org/id/unitary-authority/wiltshire,15/09/2020,1902674626,1900,Arch Care Services Ltd ,110169,BS21,Community Services,MH AOWA West Localit,Supported Living,Third Party Payments,REVENUE
Wiltshire, http://opendatacommunities.org/id/unitary-authority/wiltshire,08/09/2020,5107417596,393.62,Arco Limited ,130295,HU1 ,Neighbourhood & Planning,Housing Repairs Oper,Clothing and Uniform Purchase,Supplies and Services,REVENUE
Wiltshire, http://opendatacommunities.org/id/unitary-authority/wiltshire,03/09/2020,5107417519,15050,Arcus Global Limited ,149680,CB4 ,Wiltshire Council,Wiltshire Council,ICT - Support arrangements,Supplies and Services,CAPITAL
Wiltshire, http://opendatacommunities.org/id/unitary-authority/wiltshire,04/09/2020,5107417520,3500,Arcus Global Limited ,149680,CB4 ,Wiltshire Council,Wiltshire Council,ICT - Support arrangements,Supplies and Services,CAPITAL
Wiltshire, http://opendatacommunities.org/id/unitary-authority/wiltshire,10/09/2020,5107417521,54594,Arcus Global Limited ,149680,CB4 ,Wiltshire Council,Wiltshire Council,ICT - Support arrangements,Supplies and Services,CAPITAL
Wiltshire, http://opendatacommunities.org/id/unitary-authority/wiltshire,15/09/2020,1902673624,2272,Arliemoor Care Homes ,110174,EX22,Community Services,MH AOWA West Localit,Adult Residential Placements - Spot Purchase,Third Party Payments,REVENUE
Wiltshire, http://opendatacommunities.org/id/unitary-authority/wiltshire,15/09/2020,1902673625,2859.36,Arliemoor Care Homes ,110174,EX22,Community Services,MH AOWA South Locali,Adult Residential Placements - Spot Purchase,Third Party Payments,REVENUE
Wiltshire, http://opendatacommunities.org/id/unitary-authority/wiltshire,15/09/2020,1902673626,7532.6,Arliemoor Care Homes ,110174,EX22,Community Services,MH AOWA South Locali,Adult Residential Placements - Spot Purchase,Third Party Payments,REVENUE
Wiltshire, http://opendatacommunities.org/id/unitary-authority/wiltshire,15/09/2020,1902675111,2175,Arliemoor Care Homes ,110174,EX22,Community Services,MH AOWA West Localit,Adult Domiciliary Care,Third Party Payments,REVENUE
Wiltshire, http://opendatacommunities.org/id/unitary-authority/wiltshire,18/09/2020,5107418426,1262.25,Armada Training Solutions Ltd ,149787,B60 ,Neighbourhood & Planning,Private Sector Hsg,Staff Training - General,Employee Related,REVENUE
Wiltshire, http://opendatacommunities.org/id/unitary-authority/wiltshire,22/09/2020,1902681502,265.8,Arrow Care Services Ltd ,146643,SN12,Community Services,MH AOWA West Localit,Adult Domiciliary Care Contribution,Income,REVENUE
Wiltshire, http://opendatacommunities.org/id/unitary-authority/wiltshire,22/09/2020,1902681503,265.8,Arrow Care Services Ltd ,146643,SN12,Community Services,MH AOWA West Localit,Adult Domiciliary Care Contribution,Income,REVENUE
Wiltshire, http://opendatacommunities.org/id/unitary-authority/wiltshire,22/09/2020,1902681504,265.8,Arrow Care Services Ltd ,146643,SN12,Community Services,MH AOWA West Localit,Adult Domiciliary Care Contribution,Income,REVENUE
Wiltshire, http://opendatacommunities.org/id/unitary-authority/wiltshire,22/09/2020,1902681505,265.8,Arrow Care Services Ltd ,146643,SN12,Community Services,MH AOWA West Localit,Adult Domiciliary Care Contribution,Income,REVENUE
Wiltshire, http://opendatacommunities.org/id/unitary-authority/wiltshire,22/09/2020,1902681507,3500,Arrow Care Services Ltd ,146643,SN12,Community Services,West Care Packages,Adult Domiciliary Care,Third Party Payments,REVENUE
Wiltshire, http://opendatacommunities.org/id/unitary-authority/wiltshire,22/09/2020,1902681508,3600,Arrow Care Services Ltd ,146643,SN12,Community Services,North Care Packages,Adult Domiciliary Care,Third Party Payments,REVENUE
Wiltshire, http://opendatacommunities.org/id/unitary-authority/wiltshire,22/09/2020,1902681509,436.4,Arrow Care Services Ltd ,146643,SN12,Community Services,Adult Care Gross Loa,Adult Domiciliary Care,Third Party Payments,REVENUE
Wiltshire, http://opendatacommunities.org/id/unitary-authority/wiltshire,22/09/2020,1902681510,1129.2,Arrow Care Services Ltd ,146643,SN12,Community Services,West Care Packages,Adult Domiciliary Care,Third Party Payments,REVENUE
Wiltshire, http://opendatacommunities.org/id/unitary-authority/wiltshire,22/09/2020,1902681511,1129.2,Arrow Care Services Ltd ,146643,SN12,Community Services,West Care Packages,Adult Domiciliary Care,Third Party Payments,REVENUE
Wiltshire, http://opendatacommunities.org/id/unitary-authority/wiltshire,22/09/2020,1902681512,1129.2,Arrow Care Services Ltd ,146643,SN12,Community Services,West Care Packages,Adult Domiciliary Care,Third Party Payments,REVENUE
Wiltshire, http://opendatacommunities.org/id/unitary-authority/wiltshire,22/09/2020,1902681513,1254.96,Arrow Care Services Ltd ,146643,SN12,Community Services,West Care Packages,Adult Domiciliary Care,Third Party Payments,REVENUE
Wiltshire, http://opendatacommunities.org/id/unitary-authority/wiltshire,22/09/2020,1902681515,1456.84,Arrow Care Services Ltd ,146643,SN12,Community Services,West Care Packages,Adult Domiciliary Care,Third Party Payments,REVENUE
Wiltshire, http://opendatacommunities.org/id/unitary-authority/wiltshire,22/09/2020,1902681516,1821.96,Arrow Care Services Ltd ,146643,SN12,Community Services,West Care Packages,Adult Domiciliary Care,Third Party Payments,REVENUE
Wiltshire, http://opendatacommunities.org/id/unitary-authority/wiltshire,22/09/2020,1902681517,2711.8,Arrow Care Services Ltd ,146643,SN12,Community Services,West Care Packages,Adult Domiciliary Care,Third Party Payments,REVENUE
Wiltshire, http://opendatacommunities.org/id/unitary-authority/wiltshire,22/09/2020,1902681518,418.32,Arrow Care Services Ltd ,146643,SN12,Community Services,MH OP West Locality,Adult Domiciliary Care,Third Party Payments,REVENUE
Wiltshire, http://opendatacommunities.org/id/unitary-authority/wiltshire,22/09/2020,1902681519,418.32,Arrow Care Services Ltd ,146643,SN12,Community Services,West Care Packages,Adult Domiciliary Care,Third Party Payments,REVENUE
Wiltshire, http://opendatacommunities.org/id/unitary-authority/wiltshire,22/09/2020,1902681520,504.84,Arrow Care Services Ltd ,146643,SN12,Community Services,West Care Packages,Adult Domiciliary Care,Third Party Payments,REVENUE
Wiltshire, http://opendatacommunities.org/id/unitary-authority/wiltshire,22/09/2020,1902681521,506.25,Arrow Care Services Ltd ,146643,SN12,Community Services,West Care Packages,Adult Domiciliary Care,Third Party Payments,REVENUE
Wiltshire, http://opendatacommunities.org/id/unitary-authority/wiltshire,22/09/2020,1902681522,531.6,Arrow Care Services Ltd ,146643,SN12,Community Services,MH AOWA West Localit,Adult Domiciliary Care,Third Party Payments,REVENUE
Wiltshire, http://opendatacommunities.org/id/unitary-authority/wiltshire,22/09/2020,1902681523,567,Arrow Care Services Ltd ,146643,SN12,Community Services,West Care Packages,Adult Domiciliary Care,Third Party Payments,REVENUE
Wiltshire, http://opendatacommunities.org/id/unitary-authority/wiltshire,22/09/2020,1902681526,620.2,Arrow Care Services Ltd ,146643,SN12,Community Services,West Care Packages,Adult Domiciliary Care,Third Party Payments,REVENUE
Wiltshire, http://opendatacommunities.org/id/unitary-authority/wiltshire,22/09/2020,1902681527,620.2,Arrow Care Services Ltd ,146643,SN12,Community Services,MH AOWA West Localit,Adult Domiciliary Care,Third Party Payments,REVENUE
Wiltshire, http://opendatacommunities.org/id/unitary-authority/wiltshire,22/09/2020,1902681528,620.2,Arrow Care Services Ltd ,146643,SN12,Community Services,West Care Packages,Adult Domiciliary Care,Third Party Payments,REVENUE
Wiltshire, http://opendatacommunities.org/id/unitary-authority/wiltshire,22/09/2020,1902681529,620.2,Arrow Care Services Ltd ,146643,SN12,Community Services,West Care Packages,Adult Domiciliary Care,Third Party Payments,REVENUE
Wiltshire, http://opendatacommunities.org/id/unitary-authority/wiltshire,22/09/2020,1902681530,836.64,Arrow Care Services Ltd ,146643,SN12,Community Services,West Care Packages,Adult Domiciliary Care,Third Party Payments,REVENUE
Wiltshire, http://opendatacommunities.org/id/unitary-authority/wiltshire,22/09/2020,1902681531,906.66,Arrow Care Services Ltd ,146643,SN12,Community Services,West Care Packages,Adult Domiciliary Care,Third Party Payments,REVENUE
Wiltshire, http://opendatacommunities.org/id/unitary-authority/wiltshire,22/09/2020,1902681532,985.32,Arrow Care Services Ltd ,146643,SN12,Community Services,West Care Packages,Adult Domiciliary Care,Third Party Payments,REVENUE
Wiltshire, http://opendatacommunities.org/id/unitary-authority/wiltshire,22/09/2020,1902681533,575.9,Arrow Care Services Ltd ,146643,SN12,Community Services,MH AOWA West Localit,Adult Domiciliary Care,Third Party Payments,REVENUE
Wiltshire, http://opendatacommunities.org/id/unitary-authority/wiltshire,23/09/2020,1902685796,2900,Asbestos Contracting Ltd ,148488,BH15,Neighbourhood & Planning,PrivateSectorLeasing,Premises Related Other Maintenance Costs,Premises Related,REVENUE
Wiltshire, http://opendatacommunities.org/id/unitary-authority/wiltshire,22/09/2020,1902681315,778.96,Ash Care Services ,140706,SP2 ,Community Services,South Care Packages,Adult Domiciliary Care,Third Party Payments,REVENUE
Wiltshire, http://opendatacommunities.org/id/unitary-authority/wiltshire,22/09/2020,1902681316,429.68,Ash Care Services ,140706,SP2 ,Community Services,South Care Packages,Adult Domiciliary Care,Third Party Payments,REVENUE
Wiltshire, http://opendatacommunities.org/id/unitary-authority/wiltshire,22/09/2020,1902681317,632.44,Ash Care Services ,140706,SP2 ,Community Services,South Care Packages,Adult Domiciliary Care,Third Party Payments,REVENUE
Wiltshire, http://opendatacommunities.org/id/unitary-authority/wiltshire,22/09/2020,1902681318,778.96,Ash Care Services ,140706,SP2 ,Community Services,South Care Packages,Adult Domiciliary Care,Third Party Payments,REVENUE
Wiltshire, http://opendatacommunities.org/id/unitary-authority/wiltshire,22/09/2020,1902681319,805.76,Ash Care Services ,140706,SP2 ,Community Services,South Care Packages,Adult Domiciliary Care,Third Party Payments,REVENUE
Wiltshire, http://opendatacommunities.org/id/unitary-authority/wiltshire,15/09/2020,1902673653,3896.88,Ashness Care ,143773,N15 ,Community Services,MH AOWA N&E Locality,Adult Residential Placements - Spot Purchase,Third Party Payments,REVENUE
Wiltshire, http://opendatacommunities.org/id/unitary-authority/wiltshire,16/09/2020,1902678327,2646,Ashton Keynes Playgroup 249 ,110188,SN6 ,Children & Education,Free Enttlmnt 3 & 4y,Childcare Free Entitlement Early Years,Supplies and Services,REVENUE
Wiltshire, http://opendatacommunities.org/id/unitary-authority/wiltshire,16/09/2020,1902678328,283.5,Ashton Keynes Playgroup 249 ,110188,SN6 ,Children & Education,Free Entitlement 2 Y,Childcare Free Entitlement Early Years,Supplies and Services,REVENUE
Wiltshire, http://opendatacommunities.org/id/unitary-authority/wiltshire,15/09/2020,1902673651,1841.76,Ashton Manor Nursing Home ,139060,GU10,Community Services,South Care Packages,Adult Care Nursing Placements - Spot,Third Party Payments,REVENUE
Wiltshire, http://opendatacommunities.org/id/unitary-authority/wiltshire,17/09/2020,1902679692,294.5,Ashton Mill Services Limited ,144812,SN12,Community Services,CTPLD Placements,Adult Domiciliary Care,Third Party Payments,REVENUE
Wiltshire, http://opendatacommunities.org/id/unitary-authority/wiltshire,07/09/2020,1902655394,4393.36,Askews & Holts Library Services Ltd ,101034,PR1 ,Community Services,Libraries,Books & Publications,Supplies and Services,REVENUE
Wiltshire, http://opendatacommunities.org/id/unitary-authority/wiltshire,21/09/2020,1902670199,5050.08,Askews & Holts Library Services Ltd ,101034,PR1 ,Community Services,Libraries,Books & Publications,Supplies and Services,REVENUE
Wiltshire, http://opendatacommunities.org/id/unitary-authority/wiltshire,16/09/2020,5107417541,850,Asphalt Recycling UK Ltd ,149290,SN26,Neighbourhood & Planning,Off Street Parking,Vehicle Parking,Transport Related,REVENUE
Wiltshire, http://opendatacommunities.org/id/unitary-authority/wiltshire,04/09/2020,5107417542,790,Asphalt Recycling UK Ltd ,149290,SN26,Neighbourhood & Planning,Off Street Parking,Vehicle Parking,Transport Related,REVENUE
Wiltshire, http://opendatacommunities.org/id/unitary-authority/wiltshire,25/09/2020,5107418797,1190,Asphalt Recycling UK Ltd ,149290,SN26,Neighbourhood & Planning,Off Street Parking,Vehicle Parking,Transport Related,REVENUE
Wiltshire, http://opendatacommunities.org/id/unitary-authority/wiltshire,16/09/2020,1902679163,800,Aspire Taxis ,101274,SP2 ,Community Services,CTPLD Placements,Transport Contracts,Third Party Payments,REVENUE
Wiltshire, http://opendatacommunities.org/id/unitary-authority/wiltshire,16/09/2020,1902679166,450,Aspire Taxis ,101274,SP2 ,Community Services,CTPLD Placements,Transport Contracts,Third Party Payments,REVENUE
Wiltshire, http://opendatacommunities.org/id/unitary-authority/wiltshire,15/09/2020,1902673925,4948.24,Assisted Living South West ,149587,B70 ,Community Services,MH AOWA N&E Locality,Adult Residential Placements - Spot Purchase,Third Party Payments,REVENUE
Wiltshire, http://opendatacommunities.org/id/unitary-authority/wiltshire,15/09/2020,1902673924,1948.32,Assured Healthcare Solutions Ltd ,149399,CV23,Community Services,MH AOWA N&E Locality,Adult Care Nursing Placements - Spot,Third Party Payments,REVENUE
Wiltshire, http://opendatacommunities.org/id/unitary-authority/wiltshire,16/09/2020,1902678695,10519.1,Atelier Nursery Ltd ,145940,SN15,Children & Education,Free Enttlmnt 3 & 4y,Childcare Free Entitlement Early Years,Supplies and Services,REVENUE
Wiltshire, http://opendatacommunities.org/id/unitary-authority/wiltshire,16/09/2020,1902678696,283.5,Atelier Nursery Ltd ,145940,SN15,Children & Education,Free Entitlement 2 Y,Childcare Free Entitlement Early Years,Supplies and Services,REVENUE
Wiltshire, http://opendatacommunities.org/id/unitary-authority/wiltshire,03/09/2020,1902671010,15380.5,Atkins Ltd ,110197,KT18,Resources,Future High Streets,Consultants Fees,Supplies and Services,REVENUE
Wiltshire, http://opendatacommunities.org/id/unitary-authority/wiltshire,22/09/2020,1902681605,361.31,Atkins Ltd ,110197,KT18,Wiltshire Council,Wiltshire Council,Highways Contracts,Third Party Payments,CAPITAL
Wiltshire, http://opendatacommunities.org/id/unitary-authority/wiltshire,22/09/2020,1902681605,387.86,Atkins Ltd ,110197,KT18,Wiltshire Council,Wiltshire Council,Highways Contracts,Third Party Payments,CAPITAL
Wiltshire, http://opendatacommunities.org/id/unitary-authority/wiltshire,22/09/2020,1902681605,393.84,Atkins Ltd ,110197,KT18,Wiltshire Council,Wiltshire Council,Highways Contracts,Third Party Payments,CAPITAL
Wiltshire, http://opendatacommunities.org/id/unitary-authority/wiltshire,22/09/2020,1902681605,640.28,Atkins Ltd ,110197,KT18,Wiltshire Council,Wiltshire Council,Highways Contracts,Third Party Payments,CAPITAL
Wiltshire, http://opendatacommunities.org/id/unitary-authority/wiltshire,22/09/2020,1902681605,1030.01,Atkins Ltd ,110197,KT18,Wiltshire Council,Wiltshire Council,Highways Contracts,Third Party Payments,CAPITAL
Wiltshire, http://opendatacommunities.org/id/unitary-authority/wiltshire,22/09/2020,1902681605,1115.53,Atkins Ltd ,110197,KT18,Wiltshire Council,Wiltshire Council,Highways Contracts,Third Party Payments,CAPITAL
Wiltshire, http://opendatacommunities.org/id/unitary-authority/wiltshire,22/09/2020,1902681605,1347.3,Atkins Ltd ,110197,KT18,Wiltshire Council,Wiltshire Council,Highways Contracts,Third Party Payments,CAPITAL
Wiltshire, http://opendatacommunities.org/id/unitary-authority/wiltshire,22/09/2020,1902681605,1760.72,Atkins Ltd ,110197,KT18,Wiltshire Council,Wiltshire Council,Highways Contracts,Third Party Payments,CAPITAL
Wiltshire, http://opendatacommunities.org/id/unitary-authority/wiltshire,22/09/2020,1902681605,2442.93,Atkins Ltd ,110197,KT18,Neighbourhood & Planning,Highw Hedges & Trees,Highways Contracts,Third Party Payments,REVENUE
Wiltshire, http://opendatacommunities.org/id/unitary-authority/wiltshire,22/09/2020,1902681605,4162.49,Atkins Ltd ,110197,KT18,Wiltshire Council,Wiltshire Council,Highways Contracts,Third Party Payments,CAPITAL
Wiltshire, http://opendatacommunities.org/id/unitary-authority/wiltshire,22/09/2020,1902681605,5048.49,Atkins Ltd ,110197,KT18,Wiltshire Council,Wiltshire Council,Highways Contracts,Third Party Payments,CAPITAL
Wiltshire, http://opendatacommunities.org/id/unitary-authority/wiltshire,22/09/2020,1902681605,6209.14,Atkins Ltd ,110197,KT18,Wiltshire Council,Wiltshire Council,Highways Contracts,Third Party Payments,CAPITAL
Wiltshire, http://opendatacommunities.org/id/unitary-authority/wiltshire,22/09/2020,1902681605,8393.83,Atkins Ltd ,110197,KT18,Wiltshire Council,Wiltshire Council,Highways Contracts,Third Party Payments,CAPITAL
Wiltshire, http://opendatacommunities.org/id/unitary-authority/wiltshire,22/09/2020,1902681605,10398,Atkins Ltd ,110197,KT18,Wiltshire Council,Wiltshire Council,Highways Contracts,Third Party Payments,CAPITAL
Wiltshire, http://opendatacommunities.org/id/unitary-authority/wiltshire,22/09/2020,1902681605,10403.06,Atkins Ltd ,110197,KT18,Neighbourhood & Planning,Traffic Signal Mtc,Highways Contracts,Third Party Payments,REVENUE
Wiltshire, http://opendatacommunities.org/id/unitary-authority/wiltshire,22/09/2020,1902681605,13105.36,Atkins Ltd ,110197,KT18,Neighbourhood & Planning,Street Lighting,Highways Contracts,Third Party Payments,REVENUE
Wiltshire, http://opendatacommunities.org/id/unitary-authority/wiltshire,22/09/2020,1902681605,14950.2,Atkins Ltd ,110197,KT18,Wiltshire Council,Wiltshire Council,Highways Contracts,Third Party Payments,CAPITAL
Wiltshire, http://opendatacommunities.org/id/unitary-authority/wiltshire,22/09/2020,1902681605,18270.05,Atkins Ltd ,110197,KT18,Wiltshire Council,Wiltshire Council,Highways Contracts,Third Party Payments,CAPITAL
Wiltshire, http://opendatacommunities.org/id/unitary-authority/wiltshire,22/09/2020,1902681605,23667.95,Atkins Ltd ,110197,KT18,Neighbourhood & Planning,Transport Plan & DC,Highways Contracts,Third Party Payments,REVENUE
Wiltshire, http://opendatacommunities.org/id/unitary-authority/wiltshire,22/09/2020,1902681605,29000,Atkins Ltd ,110197,KT18,Wiltshire Council,Wiltshire Council,Highways Contracts,Third Party Payments,CAPITAL
Wiltshire, http://opendatacommunities.org/id/unitary-authority/wiltshire,22/09/2020,1902681605,30441.99,Atkins Ltd ,110197,KT18,Wiltshire Council,Wiltshire Council,Highways Contracts,Third Party Payments,CAPITAL
Wiltshire, http://opendatacommunities.org/id/unitary-authority/wiltshire,22/09/2020,1902681605,33211.98,Atkins Ltd ,110197,KT18,Wiltshire Council,Wiltshire Council,Highways Contracts,Third Party Payments,CAPITAL
Wiltshire, http://opendatacommunities.org/id/unitary-authority/wiltshire,22/09/2020,1902681605,117855.54,Atkins Ltd ,110197,KT18,Wiltshire Council,Wiltshire Council,Highways Contracts,Third Party Payments,CAPITAL
Wiltshire, http://opendatacommunities.org/id/unitary-authority/wiltshire,22/09/2020,1902681605,153107.5,Atkins Ltd ,110197,KT18,Wiltshire Council,Wiltshire Council,Highways Contracts,Third Party Payments,CAPITAL
Wiltshire, http://opendatacommunities.org/id/unitary-authority/wiltshire,22/09/2020,1902681605,189211.33,Atkins Ltd ,110197,KT18,Wiltshire Council,Wiltshire Council,Highways Contracts,Third Party Payments,CAPITAL
Wiltshire, http://opendatacommunities.org/id/unitary-authority/wiltshire,30/09/2020,1902690825,7860,Atkins Ltd ,110197,KT18,Resources,Future High Streets,Consultants Fees,Supplies and Services,REVENUE
Wiltshire, http://opendatacommunities.org/id/unitary-authority/wiltshire,09/09/2020,5107417806,2679,Atkins Ltd ,110197,KT18,Wiltshire Council,Wiltshire Council,Professional Fees,Supplies and Services,CAPITAL
Wiltshire, http://opendatacommunities.org/id/unitary-authority/wiltshire,02/09/2020,1902670343,598.92,Audley Care White Horse ,121958,SN8 ,Community Services,North Care Packages,Adult Domiciliary Care Contribution,Income,REVENUE
Wiltshire, http://opendatacommunities.org/id/unitary-authority/wiltshire,02/09/2020,1902670345,807.52,Audley Care White Horse ,121958,SN8 ,Community Services,North Care Packages,Adult Domiciliary Care Contribution,Income,REVENUE
Wiltshire, http://opendatacommunities.org/id/unitary-authority/wiltshire,02/09/2020,1902670346,807.52,Audley Care White Horse ,121958,SN8 ,Community Services,North Care Packages,Adult Domiciliary Care Contribution,Income,REVENUE
Wiltshire, http://opendatacommunities.org/id/unitary-authority/wiltshire,02/09/2020,1902670347,807.52,Audley Care White Horse ,121958,SN8 ,Community Services,North Care Packages,Adult Domiciliary Care Contribution,Income,REVENUE
Wiltshire, http://opendatacommunities.org/id/unitary-authority/wiltshire,02/09/2020,1902670348,807.52,Audley Care White Horse ,121958,SN8 ,Community Services,North Care Packages,Adult Domiciliary Care Contribution,Income,REVENUE
Wiltshire, http://opendatacommunities.org/id/unitary-authority/wiltshire,02/09/2020,1902670349,807.52,Audley Care White Horse ,121958,SN8 ,Community Services,North Care Packages,Adult Domiciliary Care Contribution,Income,REVENUE
Wiltshire, http://opendatacommunities.org/id/unitary-authority/wiltshire,02/09/2020,1902670350,1270.32,Audley Care White Horse ,121958,SN8 ,Community Services,North Care Packages,Adult Domiciliary Care,Third Party Payments,REVENUE
Wiltshire, http://opendatacommunities.org/id/unitary-authority/wiltshire,02/09/2020,1902670351,1303.5,Audley Care White Horse ,121958,SN8 ,Resources,Covid19 - Hospital D,Adult Domiciliary Care,Third Party Payments,REVENUE
Wiltshire, http://opendatacommunities.org/id/unitary-authority/wiltshire,02/09/2020,1902670352,3318,Audley Care White Horse ,121958,SN8 ,Resources,Covid19 - Hospital D,Adult Domiciliary Care,Third Party Payments,REVENUE
Wiltshire, http://opendatacommunities.org/id/unitary-authority/wiltshire,02/09/2020,1902670353,711,Audley Care White Horse ,121958,SN8 ,Resources,Covid19 - Hospital D,Adult Domiciliary Care,Third Party Payments,REVENUE
Wiltshire, http://opendatacommunities.org/id/unitary-authority/wiltshire,17/09/2020,1902679628,320.24,Audley Care White Horse ,121958,SN8 ,Community Services,MH OP N&E Locality,Adult Domiciliary Care Contribution,Income,REVENUE
Wiltshire, http://opendatacommunities.org/id/unitary-authority/wiltshire,17/09/2020,1902679629,320.24,Audley Care White Horse ,121958,SN8 ,Community Services,MH OP N&E Locality,Adult Domiciliary Care Contribution,Income,REVENUE
Wiltshire, http://opendatacommunities.org/id/unitary-authority/wiltshire,17/09/2020,1902679631,1270.32,Audley Care White Horse ,121958,SN8 ,Community Services,North Care Packages,Adult Domiciliary Care,Third Party Payments,REVENUE
Wiltshire, http://opendatacommunities.org/id/unitary-authority/wiltshire,17/09/2020,1902679632,1374.6,Audley Care White Horse ,121958,SN8 ,Resources,Covid19 - Hospital D,Adult Domiciliary Care,Third Party Payments,REVENUE
Wiltshire, http://opendatacommunities.org/id/unitary-authority/wiltshire,17/09/2020,1902679633,3318,Audley Care White Horse ,121958,SN8 ,Community Services,North Care Packages,Adult Domiciliary Care,Third Party Payments,REVENUE
Wiltshire, http://opendatacommunities.org/id/unitary-authority/wiltshire,17/09/2020,1902679634,3318,Audley Care White Horse ,121958,SN8 ,Resources,Covid19 - Hospital D,Adult Domiciliary Care,Third Party Payments,REVENUE
Wiltshire, http://opendatacommunities.org/id/unitary-authority/wiltshire,17/09/2020,1902679635,398.16,Audley Care White Horse ,121958,SN8 ,Community Services,West Care Packages,Adult Domiciliary Care,Third Party Payments,REVENUE
Wiltshire, http://opendatacommunities.org/id/unitary-authority/wiltshire,17/09/2020,1902679636,464.52,Audley Care White Horse ,121958,SN8 ,Community Services,West Care Packages,Adult Domiciliary Care,Third Party Payments,REVENUE
Wiltshire, http://opendatacommunities.org/id/unitary-authority/wiltshire,17/09/2020,1902679637,980.84,Audley Care White Horse ,121958,SN8 ,Community Services,West Care Packages,Adult Domiciliary Care,Third Party Payments,REVENUE
Wiltshire, http://opendatacommunities.org/id/unitary-authority/wiltshire,17/09/2020,1902679638,980.84,Audley Care White Horse ,121958,SN8 ,Community Services,North Care Packages,Adult Domiciliary Care,Third Party Payments,REVENUE
Wiltshire, http://opendatacommunities.org/id/unitary-authority/wiltshire,17/09/2020,1902679639,1062.96,Audley Care White Horse ,121958,SN8 ,Community Services,North Care Packages,Adult Domiciliary Care,Third Party Payments,REVENUE
Wiltshire, http://opendatacommunities.org/id/unitary-authority/wiltshire,17/09/2020,1902679640,1178.6,Audley Care White Horse ,121958,SN8 ,Community Services,North Care Packages,Adult Domiciliary Care,Third Party Payments,REVENUE
Wiltshire, http://opendatacommunities.org/id/unitary-authority/wiltshire,17/09/2020,1902679641,1211.28,Audley Care White Horse ,121958,SN8 ,Community Services,West Care Packages,Adult Domiciliary Care,Third Party Payments,REVENUE
Wiltshire, http://opendatacommunities.org/id/unitary-authority/wiltshire,17/09/2020,1902679642,1272.04,Audley Care White Horse ,121958,SN8 ,Community Services,North Care Packages,Adult Domiciliary Care,Third Party Payments,REVENUE
Wiltshire, http://opendatacommunities.org/id/unitary-authority/wiltshire,17/09/2020,1902679643,1272.04,Audley Care White Horse ,121958,SN8 ,Community Services,North Care Packages,Adult Domiciliary Care,Third Party Payments,REVENUE
Wiltshire, http://opendatacommunities.org/id/unitary-authority/wiltshire,17/09/2020,1902679644,1384.32,Audley Care White Horse ,121958,SN8 ,Community Services,North Care Packages,Adult Domiciliary Care,Third Party Payments,REVENUE
Wiltshire, http://opendatacommunities.org/id/unitary-authority/wiltshire,17/09/2020,1902679645,1384.32,Audley Care White Horse ,121958,SN8 ,Community Services,North Care Packages,Adult Domiciliary Care,Third Party Payments,REVENUE
Wiltshire, http://opendatacommunities.org/id/unitary-authority/wiltshire,17/09/2020,1902679646,1445.08,Audley Care White Horse ,121958,SN8 ,Community Services,North Care Packages,Adult Domiciliary Care,Third Party Payments,REVENUE
Wiltshire, http://opendatacommunities.org/id/unitary-authority/wiltshire,17/09/2020,1902679647,1615.04,Audley Care White Horse ,121958,SN8 ,Community Services,West Care Packages,Adult Domiciliary Care,Third Party Payments,REVENUE
Wiltshire, http://opendatacommunities.org/id/unitary-authority/wiltshire,17/09/2020,1902679649,1675.8,Audley Care White Horse ,121958,SN8 ,Community Services,North Care Packages,Adult Domiciliary Care,Third Party Payments,REVENUE
Wiltshire, http://opendatacommunities.org/id/unitary-authority/wiltshire,17/09/2020,1902679650,1675.8,Audley Care White Horse ,121958,SN8 ,Community Services,North Care Packages,Adult Domiciliary Care,Third Party Payments,REVENUE
Wiltshire, http://opendatacommunities.org/id/unitary-authority/wiltshire,17/09/2020,1902679651,1736.56,Audley Care White Horse ,121958,SN8 ,Community Services,North Care Packages,Adult Domiciliary Care,Third Party Payments,REVENUE
Wiltshire, http://opendatacommunities.org/id/unitary-authority/wiltshire,17/09/2020,1902679652,1788.08,Audley Care White Horse ,121958,SN8 ,Community Services,North Care Packages,Adult Domiciliary Care,Third Party Payments,REVENUE
Wiltshire, http://opendatacommunities.org/id/unitary-authority/wiltshire,17/09/2020,1902679653,1848.84,Audley Care White Horse ,121958,SN8 ,Community Services,South Care Packages,Adult Domiciliary Care,Third Party Payments,REVENUE
Wiltshire, http://opendatacommunities.org/id/unitary-authority/wiltshire,17/09/2020,1902679654,2018.8,Audley Care White Horse ,121958,SN8 ,Community Services,North Care Packages,Adult Domiciliary Care,Third Party Payments,REVENUE
Wiltshire, http://opendatacommunities.org/id/unitary-authority/wiltshire,17/09/2020,1902679655,2544.08,Audley Care White Horse ,121958,SN8 ,Community Services,North Care Packages,Adult Domiciliary Care,Third Party Payments,REVENUE
Wiltshire, http://opendatacommunities.org/id/unitary-authority/wiltshire,17/09/2020,1902679656,329.6,Audley Care White Horse ,121958,SN8 ,Community Services,MH AOWA N&E Locality,Adult Domiciliary Care,Third Party Payments,REVENUE
Wiltshire, http://opendatacommunities.org/id/unitary-authority/wiltshire,17/09/2020,1902679657,329.6,Audley Care White Horse ,121958,SN8 ,Community Services,North Care Packages,Adult Domiciliary Care,Third Party Payments,REVENUE
Wiltshire, http://opendatacommunities.org/id/unitary-authority/wiltshire,17/09/2020,1902679658,3351.6,Audley Care White Horse ,121958,SN8 ,Community Services,North Care Packages,Adult Domiciliary Care,Third Party Payments,REVENUE
Wiltshire, http://opendatacommunities.org/id/unitary-authority/wiltshire,17/09/2020,1902679659,3351.6,Audley Care White Horse ,121958,SN8 ,Community Services,North Care Packages,Adult Domiciliary Care,Third Party Payments,REVENUE
Wiltshire, http://opendatacommunities.org/id/unitary-authority/wiltshire,17/09/2020,1902679660,3351.6,Audley Care White Horse ,121958,SN8 ,Community Services,North Care Packages,Adult Domiciliary Care,Third Party Payments,REVENUE
Wiltshire, http://opendatacommunities.org/id/unitary-authority/wiltshire,17/09/2020,1902679661,403.76,Audley Care White Horse ,121958,SN8 ,Community Services,North Care Packages,Adult Domiciliary Care,Third Party Payments,REVENUE
Wiltshire, http://opendatacommunities.org/id/unitary-authority/wiltshire,17/09/2020,1902679662,464.52,Audley Care White Horse ,121958,SN8 ,Community Services,North Care Packages,Adult Domiciliary Care,Third Party Payments,REVENUE
Wiltshire, http://opendatacommunities.org/id/unitary-authority/wiltshire,17/09/2020,1902679663,602.84,Audley Care White Horse ,121958,SN8 ,Community Services,North Care Packages,Adult Domiciliary Care,Third Party Payments,REVENUE
Wiltshire, http://opendatacommunities.org/id/unitary-authority/wiltshire,17/09/2020,1902679664,807.52,Audley Care White Horse ,121958,SN8 ,Community Services,North Care Packages,Adult Domiciliary Care,Third Party Payments,REVENUE
Wiltshire, http://opendatacommunities.org/id/unitary-authority/wiltshire,17/09/2020,1902679665,807.52,Audley Care White Horse ,121958,SN8 ,Community Services,North Care Packages,Adult Domiciliary Care,Third Party Payments,REVENUE
Wiltshire, http://opendatacommunities.org/id/unitary-authority/wiltshire,17/09/2020,1902679666,988.8,Audley Care White Horse ,121958,SN8 ,Community Services,MH OP N&E Locality,Adult Domiciliary Care,Third Party Payments,REVENUE
Wiltshire, http://opendatacommunities.org/id/unitary-authority/wiltshire,30/09/2020,1902690592,1236.27,Audley Care White Horse ,121958,SN8 ,Community Services,West Care Packages,Adult Domiciliary Care,Third Party Payments,REVENUE
Wiltshire, http://opendatacommunities.org/id/unitary-authority/wiltshire,15/09/2020,1902673696,6007.4,Autism Specialised care Homes ,110205,BS10,Community Services,CTPLD Placements,Adult Residential Placements - Spot Purchase,Third Party Payments,REVENUE
Wiltshire, http://opendatacommunities.org/id/unitary-authority/wiltshire,15/09/2020,1902673937,7332.32,Autism West Midlands ,110206,WR9 ,Community Services,CTPLD Placements,Adult Residential Placements - Spot Purchase,Third Party Payments,REVENUE
Wiltshire, http://opendatacommunities.org/id/unitary-authority/wiltshire,11/09/2020,5107416919,321.21,Automotive Leasing Ltd ,113729,SL1 ,Neighbourhood & Planning,Fleet,Commercial Leased Vehicles,Transport Related,REVENUE
Wiltshire, http://opendatacommunities.org/id/unitary-authority/wiltshire,09/09/2020,1902673052,442.6,Autonomy Care Limited ,126128,SN12,Community Services,North Care Packages,Adult Domiciliary Care,Third Party Payments,REVENUE
Wiltshire, http://opendatacommunities.org/id/unitary-authority/wiltshire,09/09/2020,1902673053,442.6,Autonomy Care Limited ,126128,SN12,Community Services,North Care Packages,Adult Domiciliary Care,Third Party Payments,REVENUE
Wiltshire, http://opendatacommunities.org/id/unitary-authority/wiltshire,09/09/2020,1902673054,442.6,Autonomy Care Limited ,126128,SN12,Community Services,North Care Packages,Adult Domiciliary Care,Third Party Payments,REVENUE
Wiltshire, http://opendatacommunities.org/id/unitary-authority/wiltshire,09/09/2020,1902673055,442.6,Autonomy Care Limited ,126128,SN12,Community Services,North Care Packages,Adult Domiciliary Care,Third Party Payments,REVENUE
Wiltshire, http://opendatacommunities.org/id/unitary-authority/wiltshire,09/09/2020,1902673056,442.6,Autonomy Care Limited ,126128,SN12,Community Services,North Care Packages,Adult Domiciliary Care,Third Party Payments,REVENUE
Wiltshire, http://opendatacommunities.org/id/unitary-authority/wiltshire,09/09/2020,1902673057,442.6,Autonomy Care Limited ,126128,SN12,Community Services,North Care Packages,Adult Domiciliary Care,Third Party Payments,REVENUE
Wiltshire, http://opendatacommunities.org/id/unitary-authority/wiltshire,30/09/2020,1902690600,442.6,Autonomy Care Limited ,126128,SN12,Community Services,North Care Packages,Adult Domiciliary Care,Third Party Payments,REVENUE
Wiltshire, http://opendatacommunities.org/id/unitary-authority/wiltshire,30/09/2020,1902690601,741,Autonomy Care Limited ,126128,SN12,Community Services,North Care Packages,Adult Domiciliary Care,Third Party Payments,REVENUE
Wiltshire, http://opendatacommunities.org/id/unitary-authority/wiltshire,30/09/2020,1902690887,11513.84,Autonomy Care Limited ,126128,SN12,Community Services,CTPLD Placements,Supported Living,Third Party Payments,REVENUE
Wiltshire, http://opendatacommunities.org/id/unitary-authority/wiltshire,30/09/2020,1902690888,2065.44,Autonomy Care Limited ,126128,SN12,Community Services,CTPLD Placements,Supported Living,Third Party Payments,REVENUE
Wiltshire, http://opendatacommunities.org/id/unitary-authority/wiltshire,30/09/2020,1902690889,2320.92,Autonomy Care Limited ,126128,SN12,Community Services,CTPLD Placements,Supported Living,Third Party Payments,REVENUE
Wiltshire, http://opendatacommunities.org/id/unitary-authority/wiltshire,30/09/2020,1902690890,23489.52,Autonomy Care Limited ,126128,SN12,Community Services,CTPLD Placements,Supported Living,Third Party Payments,REVENUE
Wiltshire, http://opendatacommunities.org/id/unitary-authority/wiltshire,30/09/2020,1902690891,564.84,Autonomy Care Limited ,126128,SN12,Community Services,West Care Packages,Supported Living,Third Party Payments,REVENUE
Wiltshire, http://opendatacommunities.org/id/unitary-authority/wiltshire,30/09/2020,1902690892,875.48,Autonomy Care Limited ,126128,SN12,Community Services,North Care Packages,Supported Living,Third Party Payments,REVENUE
Wiltshire, http://opendatacommunities.org/id/unitary-authority/wiltshire,30/09/2020,1902690893,1136.12,Autonomy Care Limited ,126128,SN12,Community Services,CTPLD Placements,Supported Living,Third Party Payments,REVENUE
Wiltshire, http://opendatacommunities.org/id/unitary-authority/wiltshire,30/09/2020,1902690894,2616,Autonomy Care Limited ,126128,SN12,Community Services,CTPLD Placements,Supported Living,Third Party Payments,REVENUE
Wiltshire, http://opendatacommunities.org/id/unitary-authority/wiltshire,30/09/2020,1902690895,26466.16,Autonomy Care Limited ,126128,SN12,Community Services,CTPLD Placements,Supported Living,Third Party Payments,REVENUE
Wiltshire, http://opendatacommunities.org/id/unitary-authority/wiltshire,30/09/2020,1902690896,4659.84,Autonomy Care Limited ,126128,SN12,Community Services,CTPLD Placements,Supported Living,Third Party Payments,REVENUE
Wiltshire, http://opendatacommunities.org/id/unitary-authority/wiltshire,15/09/2020,5107418225,918.4,Autonomy Care Limited ,126128,SN12,Children & Education,CDT DP & Care Packag,Other Social & Welfare Costs,Third Party Payments,REVENUE
Wiltshire, http://opendatacommunities.org/id/unitary-authority/wiltshire,15/09/2020,5107418227,1305.67,Autonomy Care Limited ,126128,SN12,Children & Education,CDT DP & Care Packag,Other Social & Welfare Costs,Third Party Payments,REVENUE
Wiltshire, http://opendatacommunities.org/id/unitary-authority/wiltshire,15/09/2020,5107418228,824,Autonomy Care Limited ,126128,SN12,Children & Education,CDT DP & Care Packag,Other Social & Welfare Costs,Third Party Payments,REVENUE
Wiltshire, http://opendatacommunities.org/id/unitary-authority/wiltshire,15/09/2020,5107418229,18372.76,Autonomy Care Limited ,126128,SN12,Children & Education,0-25 extnl disabty p,Other Social & Welfare Costs,Third Party Payments,REVENUE
Wiltshire, http://opendatacommunities.org/id/unitary-authority/wiltshire,28/09/2020,5107418909,3836.8,Autonomy Care Limited ,126128,SN12,Children & Education,0-25 extnl disabty p,Other Social & Welfare Costs,Third Party Payments,REVENUE
Wiltshire, http://opendatacommunities.org/id/unitary-authority/wiltshire,28/09/2020,5107418910,8829,Autonomy Care Limited ,126128,SN12,Children & Education,0-25 extnl disabty p,Other Social & Welfare Costs,Third Party Payments,REVENUE
Wiltshire, http://opendatacommunities.org/id/unitary-authority/wiltshire,15/09/2020,1902674208,10708,Autonomy Life Ltd ,110896,SN12,Community Services,CTPLD Placements,Adult Residential Placements - Spot Purchase,Third Party Payments,REVENUE
Wiltshire, http://opendatacommunities.org/id/unitary-authority/wiltshire,15/09/2020,1902674209,1652.86,Autonomy Life Ltd ,110896,SN12,Community Services,CTPLD Placements,Adult Residential Placements - Spot Purchase,Third Party Payments,REVENUE
Wiltshire, http://opendatacommunities.org/id/unitary-authority/wiltshire,15/09/2020,1902674210,5777.64,Autonomy Life Ltd ,110896,SN12,Community Services,West Care Packages,Adult Residential Placements - Spot Purchase,Third Party Payments,REVENUE
Wiltshire, http://opendatacommunities.org/id/unitary-authority/wiltshire,15/09/2020,1902674211,6791.76,Autonomy Life Ltd ,110896,SN12,Community Services,CTPLD Placements,Adult Residential Placements - Spot Purchase,Third Party Payments,REVENUE
Wiltshire, http://opendatacommunities.org/id/unitary-authority/wiltshire,15/09/2020,1902674212,6942,Autonomy Life Ltd ,110896,SN12,Community Services,CTPLD Placements,Adult Residential Placements - Spot Purchase,Third Party Payments,REVENUE
Wiltshire, http://opendatacommunities.org/id/unitary-authority/wiltshire,15/09/2020,1902674213,7036.92,Autonomy Life Ltd ,110896,SN12,Community Services,North Care Packages,Adult Residential Placements - Spot Purchase,Third Party Payments,REVENUE
